{"text_format":"1","workbook":"xlsx","n_sheets":22,"sheets":["TITELBLATT","FRAGEN","FRAGEN_H","FRAGEN_L","SKALA","AUSDRUCK","AUSDRUCK_GRAFIK","AUSDRUCK_GRAFIK_DIFF","FRAGEBOGEN_S","FRAGEBOGEN_H","FRAGEBOGEN_L","LOGIN","AUSGEWÄHLTE_F_S","AUSGEWAEHLTE_F_H","AUSGEWÄHLTE_F_L","ERGEBNISSE_S","ERGEBNISSE_H","ERGEBNISSE_L","AUSWERTUNG_S","AUSWERTUNG_H","AUSWERTUNG_L","BERECHNUNG_DIFF"],"not_rendered":{"charts":4,"images":1,"macros":1,"external_links":0,"defined_names":4,"comments":0,"pivot_tables":0},"unopened":[],"bounds":{"document_bytes":16777216,"sheet_cells":100000,"rows_first":2000,"rows_last":500,"rows_between":2000,"halvings":0,"cell_chars":16384,"cell_head_chars":4096},"cells_cut":0,"cells_raw":0,"read":"whole","date_system":"1900"}

{"sheet":"TITELBLATT","index":0,"n_rows":0,"n_cols":0,"rows_kept":0,"cut":false,"hidden":false,"merged":[]}

{"sheet":"FRAGEN","index":1,"n_rows":108,"n_cols":2,"rows_kept":108,"cut":false,"hidden":false,"merged":[]}
["Frage","Unterricht"]
[1,"Selbstreguliertes Lernen (adaptiert)"]
["1.1","Beim Lernen für den Unterricht setze ich mir eigene Ziele, die ich erreichen möchte. "]
["1.2","Bei der Art und Weise, wie ich Aufgaben für den Unterricht löse, greife ich auf meine eigenen Erfahrungen zurück. "]
["1.3","Zum Lösen schwieriger Aufgaben habe ich selber bestimmte Strategien, die ich einsetzen kann."]
["1.4","Ich kann selber gut einschätzen und steuern, wie ich Aufgaben für den Unterricht lösen kann."]
["1.5","Ich kann selber ganz gut erkennen, wie gut ich gerade in den Unterrichtsfächern bin. "]
[2,"Schülerorientierung"]
["2.1","Im Unterricht gibt uns der Lehrer/die Lehrerin verschiedene Aufgaben zur Auswahl."]
["2.2","Im Unterricht geht der Lehrer/die Lehrerin auf Vorschläge und Anregungen der Schüler/innen ein."]
["2.3","Im Unterricht arbeiten wir oft in kleinen Gruppen an verschieden Aufgaben."]
["2.4","Im Unterricht helfen die leistungsstärkeren Schüler/innen den schwächeren auch einzeln oder in kleinen Gruppen. "]
[null,"Berufliche Perspektive"]
[3,"Problemorientierung"]
["3.1","Es wurden zuerst Probleme thematisiert und durch ihre Bearbeitung habe ich somit die Themen gelernt."]
["3.2","Ich konnte echte Probleme bearbeiten und darin die zuvor gelernten Inhalte vertiefen."]
["3.3","Es wurden wahre Vorfälle aus dem Berufsalltag vorgestellt und durch das selbstständige Entwickeln von Lösungen habe ich die Themen vertieft."]
["3.4","Es wurden Situationen aus dem Arbeitsalltag vorgestellt und ich musste herausfinden, was das mit dem Thema des Unterricht zu tun hat."]
["3.5","Es wurden problematische Situationen aus dem Arbeitsalltag vorgestellt und ich musste herausfinden, mit welchen Fähigkeiten/welchem Wissen die Situation hätte verbessert werden können."]
["3.6","Im Unterricht wurden Situationen vorgestellt, die wir dann auf das Thema des Unterrichts hin genauer betrachteten."]
[4,"Aktivierung"]
["4.1","Ich konnte mein eigenes Wissen in den Unterricht mit einbringen."]
["4.2","Auf meine bisherigen Erfahrungen zu den behandelten Themen ist eingegangen worden."]
["4.3","Ich konnte mein berufliches Wissen in den Unterricht mit einbringen."]
["4.4","Ich konnte meine bisherigen beruflichen Erlebnisse einbringen."]
["4.5","Der Lehrer hat mich aufgefordert mein Wissen und meine Erlebnisse aus dem Berufsalltag einzubringen."]
[null,"Lernerfolg"]
[5,"Selbstwirksamkeit"]
["5.1","Allgemeine Selbstwirksamkeit (ASKU)"]
["5.2","Inwieweit treffen folgende Aussagen auf Sie zu?"]
["5.3","In schwierigen Situationen kann ich mich auf meine Fähigkeiten verlassen."]
["5.4","Die meisten Probleme kann ich aus eigener Kraft gut meistern."]
["5.5","Auch anstrengende und komplizierte Aufgaben kann ich in der Regel gut lösen."]
[6,"Digitale Selbstwirksamkeit"]
["6.1"," Ich bin immer in der Lage, schwierige Probleme im Umgang mit digitalen Informations- und Kommunikationstechnologien zu lösen, wenn ich mich nur ausreichend bemühe."]
["6.2"," Wenn eine digitale Informations- oder Kommunikationstechnologie bei der Nutzung verrücktspielt, finde ich einen Weg, der trotzdem zum Ziel führt."]
["6.3"," Es ist leicht für mich, meine Ziele mit digitalen Informations- und Kommunikationstechnologien zu erreichen."]
["6.4"," Ich bin zuversichtlich, dass ich effizient mit unerwarteten Ereignissen bei der Nutzung digitaler Informations- und Kommunikationstechnologien umgehen kann."]
["6.5"," Wenn ich den nötigen Aufwand investiere, bin ich in der Lage, mit den meisten digitalen Informations- und Kommunikationstechnologien sicher umzugehen."]
["6.6"," Im Hinblick auf Schwierigkeiten im Umgang mit digitalen Informations- und Kommunikationstechnologien bin ich in der Lage, ruhig zu bleiben, weil ich auf meine Fähigkeiten vertrauen kann."]
["6.7"," In der Regel finde ich mehrere Lösungen, wenn ich mit Problemen bei der Nutzung digitaler Informations- und Kommunikationstechnologien konfrontiert werde."]
["6.8"," Was auch immer für ein Problem mit digitalen Informations- und Kommunikationstechnologien auf mich zukommt, ich bin in der Lage, damit umzugehen."]
["6.9"," Wenn ich im Umgang mit digitalen Informations- und Kommunikationstechnologien an etwas scheitere, dann gebe ich mir noch mehr Mühe."]
["6.10"," Ich bin selbstständig, wenn es darum geht, etwas mit digitalen Informations- und Kommunikationstechnologien zu tun."]
["6.11"," Es gibt nur wenige Dinge, die ich im Umgang mit digitalen Informations- und Kommunikationstechnologien nicht kann."]
["6.12"," Ich bin in der Lage, nahezu jede Aufgabe bezogen auf die Nutzung digitaler Informations- und Kommunikationstechnologien zu bestehen und abzuschließen."]
[null,"Subjektiver Lernerfolg"]
[7,"Subjektive Freude"]
["7.1","Der Unterricht hat mir generell gefallen."]
["7.2","Die Lernatmosphäre war angenehm."]
["7.3","Das Lernen hat Spaß gemacht."]
[8,"Subjektiver Wissenszuwachs"]
["8.1","Ich habe den Eindruck, mein Wissen hat sich langfristig erweitert."]
["8.2","Ich werde mir die neuen Themen gut merken können."]
["8.3","Ich denke, ich werde auch einige Zeit nach dem Unterricht noch berichten können, was ich gelernt habe."]
[9,"Wahrgenommene Schwierigkeit"]
["9.1","Die Inhalte waren verständlich."]
["9.2","Die Sprache (Fremd- und Fachwörter) war verständlich."]
["9.3","Ich bin thematisch im Unterricht mitgekommen"]
["9.4","Die Zeit war ausreichend für die bearbeiteten Themen."]
[]
[null,"Zusätzliche Skalen"]
[null,"Methodenvariation"]
[10,"Wie denken Sie über die methodische Gestaltung des Unterrichts in Ihrem Unterricht?"]
["10.1","In diesem Unterricht findet häufig eine Variation der Methoden statt."]
["10.2","Dieser Unterricht ist methodisch abwechslungsreich."]
["10.3","In diesem Unterricht werden immer dieselben Methoden eingesetzt"]
[null,"Klassenmanagement"]
[11,"Klarheit des Handlungsprogramms"]
["11.1","Bei diesem Lehrer frage ich mich oft, was zu tun ist. "]
["11.2","Bei diesem Lehrer weiß ich oft gar nicht, wo wir im Stoff gerade sind. "]
["11.3","Bei diesem Lehrer sind die Aufgaben immer ganz klar. "]
["11.4","Dieser Lehrer geht im Unterricht in einer logischen Reihenfolge vor. "]
[12,"Lehrer-Schüler-Beziehung"]
["12.1","Dieser Lehrer schafft es, dass sich seine Schüler freiwillig anstrengen. "]
["12.2","Dieser Lehrer verhält sich uns gegenüber fair. "]
["12.3","Dieser Lehrer hat eine gute Beziehung zu den Schülern."]
["12.4","Diesem Lehrer ist es sehr wichtig, dass wir etwas lernen. "]
["12.5","Mit diesem Lehrer macht das Lernen Spaß. "]
[null,"Wahrgenommene Kompetenzunterstützung (Lernklima)"]
[13,"Inwiefern treffen die folgenden Aussagen auf Ihren Unterricht in Ihren verschiedenen Prüfungsfächern zu?"]
["13.1","Im Unterricht finden meine Leistungen meistens Anerkennung. "]
["13.2","Im Unterricht werde ich oft für gute Leistungen gelobt. "]
["13.3","Im Unterricht informiert mich die Lehrperson regelmäßig über meine Fortschritte."]
["13.4","Im Unterricht traut mir die Lehrperson etwas zu. "]
[]
[null,"Zusatzblock für eigene Fragen"]
["14","Überbegriff der eigenen Fragen "]
["14.1","eigene Frage 1"]
["14.2","eigene Frage 2"]
["14.3","eigene Frage 3"]
["14.4","eigene Frage 4"]
["14.5","eigene Frage 5"]
["14.6","eigene Frage 6"]
["14.7","eigene Frage 7"]
["14.8","eigene Frage 8"]
["14.9","eigene Frage 9"]
["14.10","eigene Frage 10"]
["14.11","eigene Frage 11"]
["14.12","eigene Frage 12"]
["14.13","eigene Frage 13"]
["14.14","eigene Frage 14"]
["14.15","eigene Frage 15"]
["14.16","eigene Frage 16"]
["14.17","eigene Frage 17"]
["14.18","eigene Frage 18"]
["14.19","eigene Frage 19"]
["14.20","eigene Frage 20"]

{"sheet":"FRAGEN_H","index":2,"n_rows":108,"n_cols":1,"rows_kept":108,"cut":false,"hidden":false,"merged":[]}
["Unterricht"]
["Selbstreguliertes Lernen (adaptiert)"]
["Beim Lernen für den Unterricht setzen die SuS ihre eigenen Ziele, die sie erreichen möchten."]
["Die SuS haben die Möglichkeit beim lösen von Aufgaben auf ihre eigenen Erfahrungen  zurückzugreifen."]
["Die SuS kennen eigene Strategien zum lösen von schwierigen Aufgaben."]
["Die SuS können selbst gut einschätzen und steuern, wie sie Aufgaben für den Unterricht lösen können."]
["Die SuS können selbst ganz gut erkennen, wie gut sie gerade in den Unterrichtsfächern sind. "]
["Schülerorientierung"]
["Die SuS haben im Unterricht verschiedene Aufgaben zur Auswahl."]
["Der Lehrer/die Lehrerin geht auf Vorschläge und Anregungen der Schüler/innen ein."]
["Die SuS arbeiten oft in kleinen Gruppen an verschieden Aufgaben."]
["Im Unterricht helfen die leistungsstärkeren Schüler/innen den schwächeren auch einzeln oder in kleinen Gruppen. "]
["Berufliche Perspektive"]
["Problemorientierung"]
["Es wurden zuerst Probleme thematisiert und durch ihre Bearbeitung haben die SuS die Themen gelernt."]
["Die SuS konnten echte Probleme bearbeiten und darin die zuvor gelernten Inhalte vertiefen."]
["Es wurden wahre Vorfälle aus dem Berufsalltag vorgestellt und durch das selbstständige Entwickeln von Lösungen seitens der SuS wurden die Themen vertieft."]
["Es wurden Situationen aus dem Arbeitsalltag vorgestellt und die SuS mussten herausfinden, was das mit dem Thema des Unterricht zu tun hat."]
["Es wurden problematische Situationen aus dem Arbeitsalltag vorgestellt und die SuS mussten herausfinden, mit welchen Fähigkeiten/welchem Wissen die Situation hätte verbessert werden können."]
["Im Unterricht wurden Situationen vorgestellt, die die SuS dann auf das Thema des Unterrichts hin genauer betrachteten."]
["Aktivierung"]
["Die SuS konnten ihr eigenes Wissen in den Unterricht mit einbringen."]
["Auf die  bisherigen Erfahrungen der SuS zu den behandelten Themen ist eingegangen worden."]
["Die SuS konnten ihr berufliches Wissen in den Unterricht mit einbringen."]
["Die SuS konnten ihre bisherigen beruflichen Erlebnisse einbringen."]
["Der Lehrer hat die SuS aufgefordert ihr Wissen und ihre Erlebnisse aus dem Berufsalltag einzubringen."]
["Lernerfolg"]
["Selbstwirksamkeit"]
["Allgemeine Selbstwirksamkeit (ASKU)"]
["Inwieweit treffen folgende Aussagen zu?"]
["In schwierigen Situationen können sich die SuS auf ihre Fähigkeiten verlassen."]
["Die meisten Probleme können die SuS aus eigener Kraft gut meistern."]
["Auch anstrengende und komplizierte Aufgaben können die SuS in der Regel gut lösen."]
["Digitale Selbstwirksamkeit"]
[" Die SuS sind immer in der Lage, schwierige Probleme im Umgang mit digitalen Informations- und Kommunikationstechnologien zu lösen, wenn sie sich nur ausreichend bemühen."]
[" Wenn eine digitale Informations- oder Kommunikationstechnologie bei der Nutzung verrücktspielt, finden die SuS einen Weg, der trotzdem zum Ziel führt."]
[" Es ist leicht für die SuS, ihre Ziele mit digitalen Informations- und Kommunikationstechnologien zu erreichen."]
[" Die SuS sind aus objektiver Sicht zuversichtlich, dass sie effizient mit unerwarteten Ereignissen bei der Nutzung digitaler Informations- und Kommunikationstechnologien umgehen können."]
[" Wenn die SuS den nötigen Aufwand investieren, sind sie in der Lage, mit den meisten digitalen Informations- und Kommunikationstechnologien sicher umzugehen."]
[" Im Hinblick auf Schwierigkeiten im Umgang mit digitalen Informations- und Kommunikationstechnologien sind die SuS in der Lage, ruhig zu bleiben, weil sie auf ihre Fähigkeiten vertrauen können."]
[" In der Regel finden die SuS mehrere Lösungen, wenn sie mit Problemen bei der Nutzung digitaler Informations- und Kommunikationstechnologien konfrontiert werden."]
[" Was auch immer für ein Problem mit digitalen Informations- und Kommunikationstechnologien auf die SuS zukommt, sie sind in der Lage, damit umzugehen."]
[" Wenn die SuS im Umgang mit digitalen Informations- und Kommunikationstechnologien an etwas scheitern, dann geben sie sich noch mehr Mühe."]
[" Die SuS sind selbstständig, wenn es darum geht, etwas mit digitalen Informations- und Kommunikationstechnologien zu tun."]
[" Es gibt nur wenige Dinge, die die SuS im Umgang mit digitalen Informations- und Kommunikationstechnologien nicht können."]
[" Die SuS sind in der Lage, nahezu jede Aufgabe bezogen auf die Nutzung digitaler Informations- und Kommunikationstechnologien zu bestehen und abzuschließen."]
["Subjektiver Lernerfolg"]
["Subjektive Freude"]
["Der Unterricht hat mir generell gefallen."]
["Die Lernatmosphäre war angenehm."]
["Das Lernen hat den SuS Spaß gemacht."]
["Subjektiver Wissenszuwachs"]
["Ich habe den Eindruck, das Wissen der SuS hat sich langfristig erweitert."]
["Die SuS werden sich die neuen Themen gut merken können."]
["Ich denke, die SuS werden auch einige Zeit nach dem Unterricht noch berichten können, was sie gelernt haben."]
["Wahrgenommene Schwierigkeit"]
["Die Inhalte waren verständlich."]
["Die Sprache (Fremd- und Fachwörter) war verständlich."]
["Die SuS sind thematisch im Unterricht mitgekommen."]
["Die Zeit war ausreichend für die bearbeiteten Themen."]
[]
["Zusätzliche Skalen"]
["Methodenvariation"]
["Wie denken Sie über die methodische Gestaltung des Unterrichts in Ihrem Unterricht?"]
["In diesem Unterricht findet häufig eine Variation der Methoden statt."]
["Dieser Unterricht ist methodisch abwechslungsreich."]
["In diesem Unterricht werden immer dieselben Methoden eingesetzt."]
["Klassenmanagement"]
["Klarheit des Handlungsprogramms"]
["Den SuS ist unklar, was sie zu erledigen haben."]
["Die SuS wissen oft gar nicht, wo sie im Stoff gerade sind. "]
["Die zu erledigenten Aufgaben sind für die SuS immer ganz klar. "]
["Dieser Lehrer geht im Unterricht in einer logischen Reihenfolge vor. "]
["Lehrer-Schüler-Beziehung"]
["Dieser Lehrer schafft es, dass sich seine Schüler freiwillig anstrengen. "]
["Dieser Lehrer verhält sich den SuS gegenüber fair. "]
["Dieser Lehrer hat eine gute Beziehung zu den Schülern."]
["Diesem Lehrer ist es sehr wichtig, dass die SuS etwas lernen. "]
["Mit diesem Lehrer macht den SuS das Lernen Spaß. "]
["Wahrgenommene Kompetenzunterstützung (Lernklima)"]
["Inwiefern treffen die folgenden Aussagen auf den Unterricht in den verschiedenen Prüfungsfächern zu?"]
["Im Unterricht finden die Leistungen der SuS meistens Anerkennung. "]
["Im Unterricht werden die SuS oft für gute Leistungen gelobt. "]
["Im Unterricht informiert die Lehrperson die SuS regelmäßig über ihre Fortschritte."]
["Im Unterricht traut die Lehrperson den SuS etwas zu. "]
[]
["Zusatzblock für eigene Fragen"]
["Überbegriff der eigenen Fragen "]
["eigene Frage 1"]
["eigene Frage 2"]
["eigene Frage 3"]
["eigene Frage 4"]
["eigene Frage 5"]
["eigene Frage 6"]
["eigene Frage 7"]
["eigene Frage 8"]
["eigene Frage 9"]
["eigene Frage 10"]
["eigene Frage 11"]
["eigene Frage 12"]
["eigene Frage 13"]
["eigene Frage 14"]
["eigene Frage 15"]
["eigene Frage 16"]
["eigene Frage 17"]
["eigene Frage 18"]
["eigene Frage 19"]
["eigene Frage 20"]

{"sheet":"FRAGEN_L","index":3,"n_rows":108,"n_cols":1,"rows_kept":108,"cut":false,"hidden":false,"merged":[]}
["Unterricht"]
["Selbstreguliertes Lernen (adaptiert)"]
["Beim Lernen für den Unterricht setzen die SuS ihre eigenen Ziele, die sie erreichen möchten."]
["Die SuS haben die Möglichkeit beim lösen von Aufgaben auf ihre eigenen Erfahrungen  zurückzugreifen."]
["Die SuS kennen eigene Strategien zum lösen von schwierigen Aufgaben."]
["Die SuS können selbst gut einschätzen und steuern, wie sie Aufgaben für den Unterricht lösen können."]
["Die SuS können selbst ganz gut erkennen, wie gut sie gerade in den Unterrichtsfächern sind. "]
["Schülerorientierung"]
["Die SuS haben im Unterricht verschiedene Aufgaben zur Auswahl."]
["Ich gehe auf Vorschläge und Anregungen der Schüler/innen ein."]
["Ich lasse die SuS  oft in kleinen Gruppen an verschieden Aufgaben arbeiten."]
["Im Unterricht helfen die leistungsstärkeren Schüler/innen den schwächeren auch einzeln oder in kleinen Gruppen. "]
["Berufliche Perspektive"]
["Problemorientierung"]
["Es wurden zuerst Probleme thematisiert und durch ihre Bearbeitung haben die SuS die Themen gelernt."]
["Die SuS konnten echte Probleme bearbeiten und darin die zuvor gelernten Inhalte vertiefen."]
["Es wurden wahre Vorfälle aus dem Berufsalltag vorgestellt und durch das selbstständige Entwickeln von Lösungen seitens der SuS wurden die Themen vertieft."]
["Es wurden Situationen aus dem Arbeitsalltag vorgestellt und die SuS mussten herausfinden, was das mit dem Thema des Unterricht zu tun hat."]
["Es wurden problematische Situationen aus dem Arbeitsalltag vorgestellt und die SuS mussten herausfinden, mit welchen Fähigkeiten/welchem Wissen die Situation hätte verbessert werden können."]
["Im Unterricht wurden Situationen vorgestellt, die die SuS dann auf das Thema des Unterrichts hin genauer betrachteten."]
["Aktivierung"]
["Die SuS konnten ihr eigenes Wissen in den Unterricht mit einbringen."]
["Auf die  bisherigen Erfahrungen der SuS zu den behandelten Themen bin ich eingegangen."]
["Die SuS konnten ihr berufliches Wissen in den Unterricht mit einbringen."]
["Die SuS konnten ihre bisherigen beruflichen Erlebnisse einbringen."]
["Ich habe die SuS aufgefordert ihr Wissen und ihre Erlebnisse aus dem Berufsalltag einzubringen."]
["Lernerfolg"]
["Selbstwirksamkeit"]
["Allgemeine Selbstwirksamkeit (ASKU)"]
["Inwieweit treffen folgende Aussagen zu?"]
["In schwierigen Situationen können sich die SuS auf ihre Fähigkeiten verlassen."]
["Die meisten Probleme können die SuS aus eigener Kraft gut meistern."]
["Auch anstrengende und komplizierte Aufgaben können die SuS in der Regel gut lösen."]
["Digitale Selbstwirksamkeit"]
[" Die SuS sind immer in der Lage, schwierige Probleme im Umgang mit digitalen Informations- und Kommunikationstechnologien zu lösen, wenn sie sich nur ausreichend bemühen."]
[" Wenn eine digitale Informations- oder Kommunikationstechnologie bei der Nutzung verrücktspielt, finden die SuS einen Weg, der trotzdem zum Ziel führt."]
[" Es ist leicht für die SuS, ihre Ziele mit digitalen Informations- und Kommunikationstechnologien zu erreichen."]
[" Die SuS sind aus objektiver Sicht zuversichtlich, dass sie effizient mit unerwarteten Ereignissen bei der Nutzung digitaler Informations- und Kommunikationstechnologien umgehen können."]
[" Wenn die SuS den nötigen Aufwand investieren, sind sie in der Lage, mit den meisten digitalen Informations- und Kommunikationstechnologien sicher umzugehen."]
[" Im Hinblick auf Schwierigkeiten im Umgang mit digitalen Informations- und Kommunikationstechnologien sind die SuS in der Lage, ruhig zu bleiben, weil sie auf ihre Fähigkeiten vertrauen können."]
[" In der Regel finden die SuS mehrere Lösungen, wenn sie mit Problemen bei der Nutzung digitaler Informations- und Kommunikationstechnologien konfrontiert werden."]
[" Was auch immer für ein Problem mit digitalen Informations- und Kommunikationstechnologien auf die SuS zukommt, sie sind in der Lage, damit umzugehen."]
[" Wenn die SuS im Umgang mit digitalen Informations- und Kommunikationstechnologien an etwas scheitern, dann geben sie sich noch mehr Mühe."]
[" Die SuS sind selbstständig, wenn es darum geht, etwas mit digitalen Informations- und Kommunikationstechnologien zu tun."]
[" Es gibt nur wenige Dinge, die die SuS im Umgang mit digitalen Informations- und Kommunikationstechnologien nicht können."]
[" Die SuS sind in der Lage, nahezu jede Aufgabe bezogen auf die Nutzung digitaler Informations- und Kommunikationstechnologien zu bestehen und abzuschließen."]
["Subjektiver Lernerfolg"]
["Subjektive Freude"]
["Der Unterricht hat den SuS generell gefallen."]
["Die Lernatmosphäre war angenehm."]
["Das Lernen hat den SuS Spaß gemacht."]
["Subjektiver Wissenszuwachs"]
["Ich habe den Eindruck, das Wissen der SuS hat sich langfristig erweitert."]
["Die SuS werden sich die neuen Themen gut merken können."]
["Ich denke, die SuS werden auch einige Zeit nach dem Unterricht noch berichten können, was sie gelernt haben."]
["Wahrgenommene Schwierigkeit"]
["Die Inhalte waren für die SuS verständlich."]
["Die Sprache (Fremd- und Fachwörter) war verständlich."]
["Die SuS sind thematisch im Unterricht mitgekommen."]
["Die Zeit war für die SuS ausreichend für die bearbeiteten Themen."]
[]
["Zusätzliche Skalen"]
["Methodenvariation"]
["Wie denken Sie über die methodische Gestaltung des Unterrichts in Ihrem Unterricht?"]
["In diesem Unterricht findet häufig eine Variation der Methoden statt."]
["Dieser Unterricht ist methodisch abwechslungsreich."]
["In diesem Unterricht werden immer dieselben Methoden eingesetzt."]
["Klassenmanagement"]
["Klarheit des Handlungsprogramms"]
["Den SuS ist unklar, was sie zu erledigen haben."]
["Die SuS wissen oft gar nicht, wo sie im Stoff gerade sind. "]
["Die zu erledigenten Aufgaben sind für die SuS immer ganz klar. "]
["Ich gehe im Unterricht in einer logischen Reihenfolge vor. "]
["Lehrer-Schüler-Beziehung"]
["Ich schaffe es, dass sich meine SuS freiwillig anstrengen. "]
["Ich verhalte mich den SuS gegenüber fair. "]
["Ich habe eine gute Beziehung zu den SuS."]
["Mir ist es sehr wichtig, dass die SuS etwas lernen. "]
["Die SuS haben Spaß mit mir zu Lernen. "]
["Wahrgenommene Kompetenzunterstützung (Lernklima)"]
["Inwiefern treffen die folgenden Aussagen auf den Unterricht in den verschiedenen Prüfungsfächern zu?"]
["Im Unterricht finden die Leistungen der SuS meistens Anerkennung. "]
["Im Unterricht werden die SuS oft für gute Leistungen gelobt. "]
["Im Unterricht informiere ich die SuS regelmäßig über ihre Fortschritte."]
["Im Unterricht traue ich den SuS etwas zu. "]
[]
["Zusatzblock für eigene Fragen"]
["Überbegriff der eigenen Fragen "]
["eigene Frage 1"]
["eigene Frage 2"]
["eigene Frage 3"]
["eigene Frage 4"]
["eigene Frage 5"]
["eigene Frage 6"]
["eigene Frage 7"]
["eigene Frage 8"]
["eigene Frage 9"]
["eigene Frage 10"]
["eigene Frage 11"]
["eigene Frage 12"]
["eigene Frage 13"]
["eigene Frage 14"]
["eigene Frage 15"]
["eigene Frage 16"]
["eigene Frage 17"]
["eigene Frage 18"]
["eigene Frage 19"]
["eigene Frage 20"]

{"sheet":"SKALA","index":4,"n_rows":1,"n_cols":5,"rows_kept":1,"cut":false,"hidden":false,"merged":[]}
["trifft gar nicht zu","trifft wenig zu","trifft etwas zu","trifft ziemlich zu","trifft voll und ganz zu"]

{"sheet":"AUSDRUCK","index":5,"n_rows":141,"n_cols":8,"rows_kept":141,"cut":false,"hidden":false,"merged":[[31,2,31,3],[31,4,31,5],[31,6,31,7],[0,1,1,7]]}
[null,"Unterrichtsdiagnostik an beruflichen Schulen"]
[]
[]
[]
[null,null,"Datum"]
[]
[null,null,"Uhrzeit"]
[]
[null,null,"Klasse"]
[]
[null,null,"Stundenthema"]
[]
[null,null,"Lehrkraft"]
[]
[null,null,"Hospitant",null,null,1,{"$f":"SKALA!A1","v":"trifft gar nicht zu"}]
[null,null,null,null,null,2,{"$f":"SKALA!B1","v":"trifft wenig zu"}]
[null,null,"Reflexionen",null,null,3,{"$f":"SKALA!C1","v":"trifft etwas zu"}]
[null,null,null,null,null,4,{"$f":"SKALA!D1","v":"trifft ziemlich zu"}]
[null,null,null,null,null,5,{"$f":"SKALA!E1","v":"trifft voll und ganz zu"}]
[]
[null,"Hier bitte den Dateipfad angeben:"]
[null,"C:\\Users\\lisa\\Documents\\SS21\\Bachelorarbeit\\Unterrichtsdiagnostik_Test"]
[]
[]
[]
[]
[]
[]
[]
[]
[]
[null,null,"Mittelwerte",null,"Mittelwerte",null,"Mittelwerte"]
[null,"Frage","Schüler","Schüler"," Hospitant"," Hospitant","Lehrer","Lehrer"]
["Frage",{"$f":"IF(OR(FRAGEN!$D$2=TRUE,FRAGEN!D3=TRUE,FRAGEN!D4=TRUE,FRAGEN!D5=TRUE,FRAGEN!D6=TRUE,FRAGEN!D7=TRUE),FRAGEN!B1,\"leer\")","v":"leer"}]
[1,{"$f":"IF(OR(FRAGEN!$D$2=TRUE,FRAGEN!D3=TRUE,FRAGEN!D4=TRUE,FRAGEN!D5=TRUE,FRAGEN!D6=TRUE,FRAGEN!D7=TRUE),FRAGEN!B2,\"leer\")","v":"leer"},null,{"$f":"AUSWERTUNG_S!D1","v":{"$error":"#DIV/0!"}},null,{"$f":"AUSWERTUNG_H!D1","v":{"$error":"#DIV/0!"}},null,{"$f":"AUSWERTUNG_L!D1","v":{"$error":"#DIV/0!"}}]
[1,{"$f":"IF(OR(FRAGEN!$D$2=TRUE, FRAGEN!$D$3=TRUE),FRAGEN!$B$3,\"leer\")","v":"leer"},{"$f":"AUSWERTUNG_S!B2","v":{"$error":"#DIV/0!"}},null,{"$f":"AUSWERTUNG_H!B2","v":{"$error":"#DIV/0!"}},null,{"$f":"AUSWERTUNG_L!B2","v":{"$error":"#DIV/0!"}}]
[2,{"$f":"IF(OR(FRAGEN!$D$2=TRUE, FRAGEN!$D$4=TRUE),FRAGEN!$B$4,\"leer\")","v":"leer"},{"$f":"AUSWERTUNG_S!B3","v":{"$error":"#DIV/0!"}},null,{"$f":"AUSWERTUNG_H!B3","v":{"$error":"#DIV/0!"}},null,{"$f":"AUSWERTUNG_L!B3","v":{"$error":"#DIV/0!"}}]
[3,{"$f":"IF(OR(FRAGEN!$D$2=TRUE, FRAGEN!$D$5=TRUE),FRAGEN!$B$5,\"leer\")","v":"leer"},{"$f":"AUSWERTUNG_S!B4","v":{"$error":"#DIV/0!"}},null,{"$f":"AUSWERTUNG_H!B4","v":{"$error":"#DIV/0!"}},null,{"$f":"AUSWERTUNG_L!B4","v":{"$error":"#DIV/0!"}}]
[4,{"$f":"IF(OR(FRAGEN!$D$2=TRUE, FRAGEN!$D$6=TRUE),FRAGEN!$B$6,\"leer\")","v":"leer"},{"$f":"AUSWERTUNG_S!B5","v":{"$error":"#DIV/0!"}},null,{"$f":"AUSWERTUNG_H!B5","v":{"$error":"#DIV/0!"}},null,{"$f":"AUSWERTUNG_L!B5","v":{"$error":"#DIV/0!"}}]
[5,{"$f":"IF(OR(FRAGEN!$D$2=TRUE, FRAGEN!$D$7=TRUE),FRAGEN!$B$7,\"leer\")","v":"leer"},{"$f":"AUSWERTUNG_S!B6","v":{"$error":"#DIV/0!"}},null,{"$f":"AUSWERTUNG_H!B6","v":{"$error":"#DIV/0!"}},null,{"$f":"AUSWERTUNG_L!B6","v":{"$error":"#DIV/0!"}}]
[2,{"$f":"IF(OR(FRAGEN!$D$8=TRUE,FRAGEN!$D$9=TRUE,FRAGEN!$D$10=TRUE,FRAGEN!$D$11=TRUE,FRAGEN!$D$12=TRUE,),FRAGEN!$B$8,\"leer\")","v":"leer"},null,{"$f":"AUSWERTUNG_S!D7","v":{"$error":"#DIV/0!"}},null,{"$f":"AUSWERTUNG_H!D7","v":{"$error":"#DIV/0!"}},null,{"$f":"AUSWERTUNG_L!D7","v":{"$error":"#DIV/0!"}}]
[6,{"$f":"IF(OR(FRAGEN!$D$8=TRUE,FRAGEN!$D$9=TRUE),FRAGEN!$B$9,\"leer\")","v":"leer"},{"$f":"AUSWERTUNG_S!B8","v":{"$error":"#DIV/0!"}},null,{"$f":"AUSWERTUNG_H!B8","v":{"$error":"#DIV/0!"}},null,{"$f":"AUSWERTUNG_L!B8","v":{"$error":"#DIV/0!"}}]
[7,{"$f":"IF(OR(FRAGEN!$D$8=TRUE,FRAGEN!$D$10=TRUE),FRAGEN!$B$10,\"leer\")","v":"leer"},{"$f":"AUSWERTUNG_S!B9","v":{"$error":"#DIV/0!"}},null,{"$f":"AUSWERTUNG_H!B9","v":{"$error":"#DIV/0!"}},null,{"$f":"AUSWERTUNG_L!B9","v":{"$error":"#DIV/0!"}}]
[8,{"$f":"IF(OR(FRAGEN!$D$8=TRUE,FRAGEN!$D$11=TRUE),FRAGEN!$B$11,\"leer\")","v":"leer"},{"$f":"AUSWERTUNG_S!B10","v":{"$error":"#DIV/0!"}},null,{"$f":"AUSWERTUNG_H!B10","v":{"$error":"#DIV/0!"}},null,{"$f":"AUSWERTUNG_L!B10","v":{"$error":"#DIV/0!"}}]
[9,{"$f":"IF(OR(FRAGEN!$D$8=TRUE,FRAGEN!$D$12=TRUE),FRAGEN!$B$12,\"leer\")","v":"leer"},{"$f":"AUSWERTUNG_S!B11","v":{"$error":"#DIV/0!"}},null,{"$f":"AUSWERTUNG_H!B11","v":{"$error":"#DIV/0!"}},null,{"$f":"AUSWERTUNG_L!B11","v":{"$error":"#DIV/0!"}}]
[null,{"$f":"IF(OR(FRAGEN!$D$14=TRUE,FRAGEN!$D$15=TRUE,FRAGEN!$D$16=TRUE,FRAGEN!$D$17=TRUE,FRAGEN!$D$18=TRUE,FRAGEN!$D$19=TRUE,FRAGEN!$D$20=TRUE),FRAGEN!$B$13,\"leer\")","v":"leer"}]
[3,{"$f":"IF(OR(FRAGEN!$D$14=TRUE,FRAGEN!$D$15=TRUE,FRAGEN!$D$16=TRUE,FRAGEN!$D$17=TRUE,FRAGEN!$D$18=TRUE,FRAGEN!$D$19=TRUE,FRAGEN!$D$20=TRUE),FRAGEN!$B$14,\"leer\")","v":"leer"},null,{"$f":"AUSWERTUNG_S!D13","v":{"$error":"#DIV/0!"}},null,{"$f":"AUSWERTUNG_H!D13","v":{"$error":"#DIV/0!"}},null,{"$f":"AUSWERTUNG_L!D13","v":{"$error":"#DIV/0!"}}]
[10,{"$f":"IF(OR(FRAGEN!$D$14=TRUE,FRAGEN!$D$15=TRUE),FRAGEN!$B$15,\"leer\")","v":"leer"},{"$f":"AUSWERTUNG_S!B14","v":{"$error":"#DIV/0!"}},null,{"$f":"AUSWERTUNG_H!B14","v":{"$error":"#DIV/0!"}},null,{"$f":"AUSWERTUNG_L!B14","v":{"$error":"#DIV/0!"}}]
[11,{"$f":"IF(OR(FRAGEN!$D$14=TRUE,FRAGEN!$D$16=TRUE),FRAGEN!$B$16,\"leer\")","v":"leer"},{"$f":"AUSWERTUNG_S!B15","v":{"$error":"#DIV/0!"}},null,{"$f":"AUSWERTUNG_H!B15","v":{"$error":"#DIV/0!"}},null,{"$f":"AUSWERTUNG_L!B15","v":{"$error":"#DIV/0!"}}]
[12,{"$f":"IF(OR(FRAGEN!$D$14=TRUE,FRAGEN!$D$17=TRUE),FRAGEN!$B$17,\"leer\")","v":"leer"},{"$f":"AUSWERTUNG_S!B16","v":{"$error":"#DIV/0!"}},null,{"$f":"AUSWERTUNG_H!B16","v":{"$error":"#DIV/0!"}},null,{"$f":"AUSWERTUNG_L!B16","v":{"$error":"#DIV/0!"}}]
[13,{"$f":"IF(OR(FRAGEN!$D$14=TRUE,FRAGEN!$D$18=TRUE),FRAGEN!$B$18,\"leer\")","v":"leer"},{"$f":"AUSWERTUNG_S!B17","v":{"$error":"#DIV/0!"}},null,{"$f":"AUSWERTUNG_H!B17","v":{"$error":"#DIV/0!"}},null,{"$f":"AUSWERTUNG_L!B17","v":{"$error":"#DIV/0!"}}]
[14,{"$f":"IF(OR(FRAGEN!$D$14=TRUE,FRAGEN!$D$19=TRUE),FRAGEN!$B$19,\"leer\")","v":"leer"},{"$f":"AUSWERTUNG_S!B18","v":{"$error":"#DIV/0!"}},null,{"$f":"AUSWERTUNG_H!B18","v":{"$error":"#DIV/0!"}},null,{"$f":"AUSWERTUNG_L!B18","v":{"$error":"#DIV/0!"}}]
[15,{"$f":"IF(OR(FRAGEN!$D$14=TRUE,FRAGEN!$D$20=TRUE),FRAGEN!$B$20,\"leer\")","v":"leer"},{"$f":"AUSWERTUNG_S!B19","v":{"$error":"#DIV/0!"}},null,{"$f":"AUSWERTUNG_H!B19","v":{"$error":"#DIV/0!"}},null,{"$f":"AUSWERTUNG_L!B19","v":{"$error":"#DIV/0!"}}]
[4,{"$f":"IF(OR(FRAGEN!$D$21=TRUE,FRAGEN!$D$22=TRUE,FRAGEN!$D$23=TRUE,FRAGEN!$D$24=TRUE,FRAGEN!$D$25=TRUE,FRAGEN!$D$26=TRUE),FRAGEN!$B$21,\"leer\")","v":"leer"},null,{"$f":"AUSWERTUNG_S!D20","v":{"$error":"#DIV/0!"}},null,{"$f":"AUSWERTUNG_H!D20","v":{"$error":"#DIV/0!"}},null,{"$f":"AUSWERTUNG_L!D20","v":{"$error":"#DIV/0!"}}]
[16,{"$f":"IF(OR(FRAGEN!$D$21=TRUE,FRAGEN!$D$22=TRUE),FRAGEN!$B$22,\"leer\")","v":"leer"},{"$f":"AUSWERTUNG_S!B21","v":{"$error":"#DIV/0!"}},null,{"$f":"AUSWERTUNG_H!B21","v":{"$error":"#DIV/0!"}},null,{"$f":"AUSWERTUNG_L!B21","v":{"$error":"#DIV/0!"}}]
[17,{"$f":"IF(OR(FRAGEN!$D$21=TRUE,FRAGEN!$D$23=TRUE),FRAGEN!$B$23,\"leer\")","v":"leer"},{"$f":"AUSWERTUNG_S!B22","v":{"$error":"#DIV/0!"}},null,{"$f":"AUSWERTUNG_H!B22","v":{"$error":"#DIV/0!"}},null,{"$f":"AUSWERTUNG_L!B22","v":{"$error":"#DIV/0!"}}]
[18,{"$f":"IF(OR(FRAGEN!$D$21=TRUE,FRAGEN!$D$24=TRUE),FRAGEN!$B$24,\"leer\")","v":"leer"},{"$f":"AUSWERTUNG_S!B23","v":{"$error":"#DIV/0!"}},null,{"$f":"AUSWERTUNG_H!B23","v":{"$error":"#DIV/0!"}},null,{"$f":"AUSWERTUNG_L!B23","v":{"$error":"#DIV/0!"}}]
[19,{"$f":"IF(OR(FRAGEN!$D$21=TRUE,FRAGEN!$D$25=TRUE),FRAGEN!$B$25,\"leer\")","v":"leer"},{"$f":"AUSWERTUNG_S!B24","v":{"$error":"#DIV/0!"}},null,{"$f":"AUSWERTUNG_H!B24","v":{"$error":"#DIV/0!"}},null,{"$f":"AUSWERTUNG_L!B24","v":{"$error":"#DIV/0!"}}]
[20,{"$f":"IF(OR(FRAGEN!$D$21=TRUE,FRAGEN!$D$26=TRUE),FRAGEN!$B$26,\"leer\")","v":"leer"},{"$f":"AUSWERTUNG_S!B25","v":{"$error":"#DIV/0!"}},null,{"$f":"AUSWERTUNG_H!B25","v":{"$error":"#DIV/0!"}},null,{"$f":"AUSWERTUNG_L!B25","v":{"$error":"#DIV/0!"}}]
[null,{"$f":"IF(OR(FRAGEN!$D$28=TRUE,FRAGEN!$D$31=TRUE,FRAGEN!$D$32=TRUE,FRAGEN!$D$33=TRUE),FRAGEN!$B$27,\"leer\")","v":"leer"}]
[5,{"$f":"IF(OR(FRAGEN!$D$28=TRUE,FRAGEN!$D$31=TRUE,FRAGEN!$D$32=TRUE,FRAGEN!$D$33=TRUE),FRAGEN!$B$28,\"leer\")","v":"leer"},null,{"$f":"AUSWERTUNG_S!D27","v":{"$error":"#DIV/0!"}},null,{"$f":"AUSWERTUNG_H!D27","v":{"$error":"#DIV/0!"}},null,{"$f":"AUSWERTUNG_L!D27","v":{"$error":"#DIV/0!"}}]
[null,{"$f":"IF(OR(FRAGEN!$D$28=TRUE,FRAGEN!$D$31=TRUE,FRAGEN!$D$32=TRUE,FRAGEN!$D$33=TRUE),FRAGEN!$B$29,\"leer\")","v":"leer"}]
[null,{"$f":"IF(OR(FRAGEN!$D$28=TRUE,FRAGEN!$D$31=TRUE,FRAGEN!$D$32=TRUE,FRAGEN!$D$33=TRUE),FRAGEN!$B$30,\"leer\")","v":"leer"}]
[21,{"$f":"IF(OR(FRAGEN!$D$28=TRUE,FRAGEN!$D$31=TRUE),FRAGEN!$B$31,\"leer\")","v":"leer"},{"$f":"AUSWERTUNG_S!B30","v":{"$error":"#DIV/0!"}},null,{"$f":"AUSWERTUNG_H!B30","v":{"$error":"#DIV/0!"}},null,{"$f":"AUSWERTUNG_L!B30","v":{"$error":"#DIV/0!"}}]
[22,{"$f":"IF(OR(FRAGEN!$D$28=TRUE,FRAGEN!$D$32=TRUE),FRAGEN!$B$32,\"leer\")","v":"leer"},{"$f":"AUSWERTUNG_S!B31","v":{"$error":"#DIV/0!"}},null,{"$f":"AUSWERTUNG_H!B31","v":{"$error":"#DIV/0!"}},null,{"$f":"AUSWERTUNG_L!B31","v":{"$error":"#DIV/0!"}}]
[23,{"$f":"IF(OR(FRAGEN!$D$28=TRUE,FRAGEN!$D$33=TRUE),FRAGEN!$B$33,\"leer\")","v":"leer"},{"$f":"AUSWERTUNG_S!B32","v":{"$error":"#DIV/0!"}},null,{"$f":"AUSWERTUNG_H!B32","v":{"$error":"#DIV/0!"}},null,{"$f":"AUSWERTUNG_L!B32","v":{"$error":"#DIV/0!"}}]
[6,{"$f":"IF(OR(FRAGEN!$D$34=TRUE,FRAGEN!$D$35=TRUE,FRAGEN!$D$36=TRUE,FRAGEN!$D$37=TRUE,FRAGEN!$D$38=TRUE,FRAGEN!$D$39=TRUE,FRAGEN!$D$40=TRUE,FRAGEN!$D$41=TRUE,FRAGEN!$D$42=TRUE,FRAGEN!$D$43=TRUE,FRAGEN!$D$44=TRUE,FRAGEN!$D$45=TRUE,FRAGEN!$D$46=TRUE),FRAGEN!$B$34,\"leer\")","v":"leer"},null,{"$f":"AUSWERTUNG_S!D33","v":{"$error":"#DIV/0!"}},null,{"$f":"AUSWERTUNG_H!D33","v":{"$error":"#DIV/0!"}},null,{"$f":"AUSWERTUNG_L!D33","v":{"$error":"#DIV/0!"}}]
[24,{"$f":"IF(OR(FRAGEN!$D$34=TRUE,FRAGEN!$D$35=TRUE),FRAGEN!$B$35,\"leer\")","v":"leer"},{"$f":"AUSWERTUNG_S!B34","v":{"$error":"#DIV/0!"}},null,{"$f":"AUSWERTUNG_H!B34","v":{"$error":"#DIV/0!"}},null,{"$f":"AUSWERTUNG_L!B34","v":{"$error":"#DIV/0!"}}]
[25,{"$f":"IF(OR(FRAGEN!$D$34=TRUE,FRAGEN!$D$36=TRUE),FRAGEN!$B$36,\"leer\")","v":"leer"},{"$f":"AUSWERTUNG_S!B35","v":{"$error":"#DIV/0!"}},null,{"$f":"AUSWERTUNG_H!B35","v":{"$error":"#DIV/0!"}},null,{"$f":"AUSWERTUNG_L!B35","v":{"$error":"#DIV/0!"}}]
[26,{"$f":"IF(OR(FRAGEN!$D$34=TRUE,FRAGEN!$D$37=TRUE),FRAGEN!$B$37,\"leer\")","v":"leer"},{"$f":"AUSWERTUNG_S!B36","v":{"$error":"#DIV/0!"}},null,{"$f":"AUSWERTUNG_H!B36","v":{"$error":"#DIV/0!"}},null,{"$f":"AUSWERTUNG_L!B36","v":{"$error":"#DIV/0!"}}]
[27,{"$f":"IF(OR(FRAGEN!$D$34=TRUE,FRAGEN!$D$38=TRUE),FRAGEN!$B$38,\"leer\")","v":"leer"},{"$f":"AUSWERTUNG_S!B37","v":{"$error":"#DIV/0!"}},null,{"$f":"AUSWERTUNG_H!B37","v":{"$error":"#DIV/0!"}},null,{"$f":"AUSWERTUNG_L!B37","v":{"$error":"#DIV/0!"}}]
[28,{"$f":"IF(OR(FRAGEN!$D$34=TRUE,FRAGEN!$D$39=TRUE),FRAGEN!$B$39,\"leer\")","v":"leer"},{"$f":"AUSWERTUNG_S!B38","v":{"$error":"#DIV/0!"}},null,{"$f":"AUSWERTUNG_H!B38","v":{"$error":"#DIV/0!"}},null,{"$f":"AUSWERTUNG_L!B38","v":{"$error":"#DIV/0!"}}]
[29,{"$f":"IF(OR(FRAGEN!$D$34=TRUE,FRAGEN!$D$40=TRUE),FRAGEN!$B$40,\"leer\")","v":"leer"},{"$f":"AUSWERTUNG_S!B39","v":{"$error":"#DIV/0!"}},null,{"$f":"AUSWERTUNG_H!B39","v":{"$error":"#DIV/0!"}},null,{"$f":"AUSWERTUNG_L!B39","v":{"$error":"#DIV/0!"}}]
[30,{"$f":"IF(OR(FRAGEN!$D$34=TRUE,FRAGEN!$D$41=TRUE),FRAGEN!$B$41,\"leer\")","v":"leer"},{"$f":"AUSWERTUNG_S!B40","v":{"$error":"#DIV/0!"}},null,{"$f":"AUSWERTUNG_H!B40","v":{"$error":"#DIV/0!"}},null,{"$f":"AUSWERTUNG_L!B40","v":{"$error":"#DIV/0!"}}]
[31,{"$f":"IF(OR(FRAGEN!$D$34=TRUE,FRAGEN!$D$42=TRUE),FRAGEN!$B$42,\"leer\")","v":"leer"},{"$f":"AUSWERTUNG_S!B41","v":{"$error":"#DIV/0!"}},null,{"$f":"AUSWERTUNG_H!B41","v":{"$error":"#DIV/0!"}},null,{"$f":"AUSWERTUNG_L!B41","v":{"$error":"#DIV/0!"}}]
[32,{"$f":"IF(OR(FRAGEN!$D$34=TRUE,FRAGEN!$D$43=TRUE),FRAGEN!$B$43,\"leer\")","v":"leer"},{"$f":"AUSWERTUNG_S!B42","v":{"$error":"#DIV/0!"}},null,{"$f":"AUSWERTUNG_H!B42","v":{"$error":"#DIV/0!"}},null,{"$f":"AUSWERTUNG_L!B42","v":{"$error":"#DIV/0!"}}]
[33,{"$f":"IF(OR(FRAGEN!$D$34=TRUE,FRAGEN!$D$44=TRUE),FRAGEN!$B$44,\"leer\")","v":"leer"},{"$f":"AUSWERTUNG_S!B43","v":{"$error":"#DIV/0!"}},null,{"$f":"AUSWERTUNG_H!B43","v":{"$error":"#DIV/0!"}},null,{"$f":"AUSWERTUNG_L!B43","v":{"$error":"#DIV/0!"}}]
[34,{"$f":"IF(OR(FRAGEN!$D$34=TRUE,FRAGEN!$D$45=TRUE),FRAGEN!$B$45,\"leer\")","v":"leer"},{"$f":"AUSWERTUNG_S!B44","v":{"$error":"#DIV/0!"}},null,{"$f":"AUSWERTUNG_H!B44","v":{"$error":"#DIV/0!"}},null,{"$f":"AUSWERTUNG_L!B44","v":{"$error":"#DIV/0!"}}]
[35,{"$f":"IF(OR(FRAGEN!$D$34=TRUE,FRAGEN!$D$46=TRUE),FRAGEN!$B$46,\"leer\")","v":"leer"},{"$f":"AUSWERTUNG_S!B45","v":{"$error":"#DIV/0!"}},null,{"$f":"AUSWERTUNG_H!B45","v":{"$error":"#DIV/0!"}},null,{"$f":"AUSWERTUNG_L!B45","v":{"$error":"#DIV/0!"}}]
[null,{"$f":"IF(OR(FRAGEN!$D$48=TRUE,FRAGEN!$D$49=TRUE,FRAGEN!$D$50=TRUE,FRAGEN!$D$51=TRUE),FRAGEN!$B$47,\"leer\")","v":"leer"}]
[7,{"$f":"IF(OR(FRAGEN!$D$48=TRUE,FRAGEN!$D$49=TRUE,FRAGEN!$D$50=TRUE,FRAGEN!$D$51=TRUE),FRAGEN!$B$48,\"leer\")","v":"leer"},null,{"$f":"AUSWERTUNG_S!D47","v":{"$error":"#DIV/0!"}},null,{"$f":"AUSWERTUNG_H!D47","v":{"$error":"#DIV/0!"}},null,{"$f":"AUSWERTUNG_L!D47","v":{"$error":"#DIV/0!"}}]
[36,{"$f":"IF(OR(FRAGEN!$D$48=TRUE,FRAGEN!$D$49=TRUE),FRAGEN!$B$49,\"leer\")","v":"leer"},{"$f":"AUSWERTUNG_S!B48","v":{"$error":"#DIV/0!"}},null,{"$f":"AUSWERTUNG_H!B48","v":{"$error":"#DIV/0!"}},null,{"$f":"AUSWERTUNG_L!B48","v":{"$error":"#DIV/0!"}}]
[37,{"$f":"IF(OR(FRAGEN!$D$48=TRUE,FRAGEN!$D$50=TRUE),FRAGEN!$B$50,\"leer\")","v":"leer"},{"$f":"AUSWERTUNG_S!B49","v":{"$error":"#DIV/0!"}},null,{"$f":"AUSWERTUNG_H!B49","v":{"$error":"#DIV/0!"}},null,{"$f":"AUSWERTUNG_L!B49","v":{"$error":"#DIV/0!"}}]
[38,{"$f":"IF(OR(FRAGEN!$D$48=TRUE,FRAGEN!$D$51=TRUE),FRAGEN!$B$51,\"leer\")","v":"leer"},{"$f":"AUSWERTUNG_S!B50","v":{"$error":"#DIV/0!"}},null,{"$f":"AUSWERTUNG_H!B50","v":{"$error":"#DIV/0!"}},null,{"$f":"AUSWERTUNG_L!B50","v":{"$error":"#DIV/0!"}}]
[8,{"$f":"IF(OR(FRAGEN!$D$52=TRUE,FRAGEN!$D$53=TRUE,FRAGEN!$D$54=TRUE,FRAGEN!$D$55=TRUE),FRAGEN!$B$52,\"leer\")","v":"leer"},null,{"$f":"AUSWERTUNG_S!D51","v":{"$error":"#DIV/0!"}},null,{"$f":"AUSWERTUNG_H!D51","v":{"$error":"#DIV/0!"}},null,{"$f":"AUSWERTUNG_L!D51","v":{"$error":"#DIV/0!"}}]
[39,{"$f":"IF(OR(FRAGEN!$D$52=TRUE,FRAGEN!$D$53=TRUE),FRAGEN!$B$53,\"leer\")","v":"leer"},{"$f":"AUSWERTUNG_S!B52","v":{"$error":"#DIV/0!"}},null,{"$f":"AUSWERTUNG_H!B52","v":{"$error":"#DIV/0!"}},null,{"$f":"AUSWERTUNG_L!B52","v":{"$error":"#DIV/0!"}}]
[40,{"$f":"IF(OR(FRAGEN!$D$52=TRUE,FRAGEN!$D$54=TRUE),FRAGEN!$B$54,\"leer\")","v":"leer"},{"$f":"AUSWERTUNG_S!B53","v":{"$error":"#DIV/0!"}},null,{"$f":"AUSWERTUNG_H!B53","v":{"$error":"#DIV/0!"}},null,{"$f":"AUSWERTUNG_L!B53","v":{"$error":"#DIV/0!"}}]
[41,{"$f":"IF(OR(FRAGEN!$D$52=TRUE,FRAGEN!$D$55=TRUE),FRAGEN!$B$55,\"leer\")","v":"leer"},{"$f":"AUSWERTUNG_S!B54","v":{"$error":"#DIV/0!"}},null,{"$f":"AUSWERTUNG_H!B54","v":{"$error":"#DIV/0!"}},null,{"$f":"AUSWERTUNG_L!B54","v":{"$error":"#DIV/0!"}}]
[9,{"$f":"IF(OR(FRAGEN!$D$56=TRUE,FRAGEN!$D$57=TRUE,FRAGEN!$D$58=TRUE,FRAGEN!$D$59=TRUE,FRAGEN!$D$60=TRUE),FRAGEN!$B$56,\"leer\")","v":"leer"},null,{"$f":"AUSWERTUNG_S!D55","v":{"$error":"#DIV/0!"}},null,{"$f":"AUSWERTUNG_H!D55","v":{"$error":"#DIV/0!"}},null,{"$f":"AUSWERTUNG_L!D55","v":{"$error":"#DIV/0!"}}]
[42,{"$f":"IF(OR(FRAGEN!$D$56=TRUE,FRAGEN!$D$57=TRUE),FRAGEN!$B$57,\"leer\")","v":"leer"},{"$f":"AUSWERTUNG_S!B56","v":{"$error":"#DIV/0!"}},null,{"$f":"AUSWERTUNG_H!B56","v":{"$error":"#DIV/0!"}},null,{"$f":"AUSWERTUNG_L!B56","v":{"$error":"#DIV/0!"}}]
[43,{"$f":"IF(OR(FRAGEN!$D$56=TRUE,FRAGEN!$D$58=TRUE),FRAGEN!$B$58,\"leer\")","v":"leer"},{"$f":"AUSWERTUNG_S!B57","v":{"$error":"#DIV/0!"}},null,{"$f":"AUSWERTUNG_H!B57","v":{"$error":"#DIV/0!"}},null,{"$f":"AUSWERTUNG_L!B57","v":{"$error":"#DIV/0!"}}]
[44,{"$f":"IF(OR(FRAGEN!$D$56=TRUE,FRAGEN!$D$59=TRUE),FRAGEN!$B$59,\"leer\")","v":"leer"},{"$f":"AUSWERTUNG_S!B58","v":{"$error":"#DIV/0!"}},null,{"$f":"AUSWERTUNG_H!B58","v":{"$error":"#DIV/0!"}},null,{"$f":"AUSWERTUNG_L!B58","v":{"$error":"#DIV/0!"}}]
[45,{"$f":"IF(OR(FRAGEN!$D$56=TRUE,FRAGEN!$D$60=TRUE),FRAGEN!$B$60,\"leer\")","v":"leer"},{"$f":"AUSWERTUNG_S!B59","v":{"$error":"#DIV/0!"}},null,{"$f":"AUSWERTUNG_H!B59","v":{"$error":"#DIV/0!"}},null,{"$f":"AUSWERTUNG_L!B59","v":{"$error":"#DIV/0!"}}]
[]
[]
[null,{"$f":"IF(OR(FRAGEN!$D$64=TRUE,FRAGEN!$D$65=TRUE,FRAGEN!$D$66=TRUE,FRAGEN!$D$67=TRUE),FRAGEN!$B$63,\"leer\")","v":"leer"}]
[10,{"$f":"IF(OR(FRAGEN!$D$64=TRUE,FRAGEN!$D$65=TRUE,FRAGEN!$D$66=TRUE,FRAGEN!$D$67=TRUE),FRAGEN!$B$64,\"leer\")","v":"leer"},null,{"$f":"AUSWERTUNG_S!D63","v":{"$error":"#DIV/0!"}},null,{"$f":"AUSWERTUNG_H!D63","v":{"$error":"#DIV/0!"}},null,{"$f":"AUSWERTUNG_L!D63","v":{"$error":"#DIV/0!"}}]
[46,{"$f":"IF(OR(FRAGEN!$D$64=TRUE,FRAGEN!$D$65=TRUE),FRAGEN!$B$65,\"leer\")","v":"leer"},{"$f":"AUSWERTUNG_S!B64","v":{"$error":"#DIV/0!"}},null,{"$f":"AUSWERTUNG_H!B64","v":{"$error":"#DIV/0!"}},null,{"$f":"AUSWERTUNG_L!B64","v":{"$error":"#DIV/0!"}}]
[47,{"$f":"IF(OR(FRAGEN!$D$64=TRUE,FRAGEN!$D$66=TRUE),FRAGEN!$B$66,\"leer\")","v":"leer"},{"$f":"AUSWERTUNG_S!B65","v":{"$error":"#DIV/0!"}},null,{"$f":"AUSWERTUNG_H!B65","v":{"$error":"#DIV/0!"}},null,{"$f":"AUSWERTUNG_L!B65","v":{"$error":"#DIV/0!"}}]
[48,{"$f":"IF(OR(FRAGEN!$D$64=TRUE,FRAGEN!$D$67=TRUE),FRAGEN!$B$67,\"leer\")","v":"leer"},{"$f":"AUSWERTUNG_S!B66","v":{"$error":"#DIV/0!"}},null,{"$f":"AUSWERTUNG_H!B66","v":{"$error":"#DIV/0!"}},null,{"$f":"AUSWERTUNG_L!B66","v":{"$error":"#DIV/0!"}}]
[null,{"$f":"IF(OR(FRAGEN!$D$69=TRUE,FRAGEN!$D$70=TRUE,FRAGEN!$D$71=TRUE,FRAGEN!$D$72=TRUE,FRAGEN!$D$73=TRUE),FRAGEN!$B$68,\"leer\")","v":"leer"}]
[11,{"$f":"IF(OR(FRAGEN!$D$69=TRUE,FRAGEN!$D$70=TRUE,FRAGEN!$D$71=TRUE,FRAGEN!$D$72=TRUE,FRAGEN!$D$73=TRUE),FRAGEN!$B$69,\"leer\")","v":"leer"},null,{"$f":"AUSWERTUNG_S!D68","v":{"$error":"#DIV/0!"}},null,{"$f":"AUSWERTUNG_H!D68","v":{"$error":"#DIV/0!"}},null,{"$f":"AUSWERTUNG_L!D68","v":{"$error":"#DIV/0!"}}]
[49,{"$f":"IF(OR(FRAGEN!$D$69=TRUE,FRAGEN!$D$70=TRUE),FRAGEN!$B$70,\"leer\")","v":"leer"},{"$f":"AUSWERTUNG_S!B69","v":{"$error":"#DIV/0!"}},null,{"$f":"AUSWERTUNG_H!B69","v":{"$error":"#DIV/0!"}},null,{"$f":"AUSWERTUNG_L!B69","v":{"$error":"#DIV/0!"}}]
[50,{"$f":"IF(OR(FRAGEN!$D$69=TRUE,FRAGEN!$D$71=TRUE),FRAGEN!$B$71,\"leer\")","v":"leer"},{"$f":"AUSWERTUNG_S!B70","v":{"$error":"#DIV/0!"}},null,{"$f":"AUSWERTUNG_H!B70","v":{"$error":"#DIV/0!"}},null,{"$f":"AUSWERTUNG_L!B70","v":{"$error":"#DIV/0!"}}]
[51,{"$f":"IF(OR(FRAGEN!$D$69=TRUE,FRAGEN!$D$72=TRUE),FRAGEN!$B$72,\"leer\")","v":"leer"},{"$f":"AUSWERTUNG_S!B71","v":{"$error":"#DIV/0!"}},null,{"$f":"AUSWERTUNG_H!B71","v":{"$error":"#DIV/0!"}},null,{"$f":"AUSWERTUNG_L!B71","v":{"$error":"#DIV/0!"}}]
[52,{"$f":"IF(OR(FRAGEN!$D$69=TRUE,FRAGEN!$D$73=TRUE),FRAGEN!$B$73,\"leer\")","v":"leer"},{"$f":"AUSWERTUNG_S!B72","v":{"$error":"#DIV/0!"}},null,{"$f":"AUSWERTUNG_H!B72","v":{"$error":"#DIV/0!"}},null,{"$f":"AUSWERTUNG_L!B72","v":{"$error":"#DIV/0!"}}]
[12,{"$f":"IF(OR(FRAGEN!$D$74=TRUE,FRAGEN!$D$75=TRUE,FRAGEN!$D$76=TRUE,FRAGEN!$D$77=TRUE,FRAGEN!$D$78=TRUE,FRAGEN!$D$79=TRUE),FRAGEN!$B$74,\"leer\")","v":"leer"},null,{"$f":"AUSWERTUNG_S!D73","v":{"$error":"#DIV/0!"}},null,{"$f":"AUSWERTUNG_H!D73","v":{"$error":"#DIV/0!"}},null,{"$f":"AUSWERTUNG_L!D73","v":{"$error":"#DIV/0!"}}]
[53,{"$f":"IF(OR(FRAGEN!$D$74=TRUE,FRAGEN!$D$75=TRUE),FRAGEN!$B$75,\"leer\")","v":"leer"},{"$f":"AUSWERTUNG_S!B74","v":{"$error":"#DIV/0!"}},null,{"$f":"AUSWERTUNG_H!B74","v":{"$error":"#DIV/0!"}},null,{"$f":"AUSWERTUNG_L!B74","v":{"$error":"#DIV/0!"}}]
[54,{"$f":"IF(OR(FRAGEN!$D$74=TRUE,FRAGEN!$D$76=TRUE),FRAGEN!$B$76,\"leer\")","v":"leer"},{"$f":"AUSWERTUNG_S!B75","v":{"$error":"#DIV/0!"}},null,{"$f":"AUSWERTUNG_H!B75","v":{"$error":"#DIV/0!"}},null,{"$f":"AUSWERTUNG_L!B75","v":{"$error":"#DIV/0!"}}]
[55,{"$f":"IF(OR(FRAGEN!$D$74=TRUE,FRAGEN!$D$77=TRUE),FRAGEN!$B$77,\"leer\")","v":"leer"},{"$f":"AUSWERTUNG_S!B76","v":{"$error":"#DIV/0!"}},null,{"$f":"AUSWERTUNG_H!B76","v":{"$error":"#DIV/0!"}},null,{"$f":"AUSWERTUNG_L!B76","v":{"$error":"#DIV/0!"}}]
[56,{"$f":"IF(OR(FRAGEN!$D$74=TRUE,FRAGEN!$D$78=TRUE),FRAGEN!$B$78,\"leer\")","v":"leer"},{"$f":"AUSWERTUNG_S!B77","v":{"$error":"#DIV/0!"}},null,{"$f":"AUSWERTUNG_H!B77","v":{"$error":"#DIV/0!"}},null,{"$f":"AUSWERTUNG_L!B77","v":{"$error":"#DIV/0!"}}]
[57,{"$f":"IF(OR(FRAGEN!$D$74=TRUE,FRAGEN!$D$79=TRUE),FRAGEN!$B$79,\"leer\")","v":"leer"},{"$f":"AUSWERTUNG_S!B78","v":{"$error":"#DIV/0!"}},null,{"$f":"AUSWERTUNG_H!B78","v":{"$error":"#DIV/0!"}},null,{"$f":"AUSWERTUNG_L!B78","v":{"$error":"#DIV/0!"}}]
[13,{"$f":"IF(OR(FRAGEN!$D$81=TRUE,FRAGEN!$D$82=TRUE,FRAGEN!$D$83=TRUE,FRAGEN!$D$84=TRUE,FRAGEN!$D$85=TRUE),FRAGEN!$B$80,\"leer\")","v":"leer"},null,{"$f":"AUSWERTUNG_S!D80","v":{"$error":"#DIV/0!"}},null,{"$f":"AUSWERTUNG_H!D80","v":{"$error":"#DIV/0!"}},null,{"$f":"AUSWERTUNG_L!D80","v":{"$error":"#DIV/0!"}}]
[null,{"$f":"IF(OR(FRAGEN!$D$81=TRUE,FRAGEN!$D$82=TRUE,FRAGEN!$D$83=TRUE,FRAGEN!$D$84=TRUE,FRAGEN!$D$85=TRUE),FRAGEN!$B$81,\"leer\")","v":"leer"}]
[58,{"$f":"IF(OR(FRAGEN!$D$81=TRUE,FRAGEN!$D$82=TRUE),FRAGEN!$B$82,\"leer\")","v":"leer"},{"$f":"AUSWERTUNG_S!B81","v":{"$error":"#DIV/0!"}},null,{"$f":"AUSWERTUNG_H!B81","v":{"$error":"#DIV/0!"}},null,{"$f":"AUSWERTUNG_L!B81","v":{"$error":"#DIV/0!"}}]
[59,{"$f":"IF(OR(FRAGEN!$D$81=TRUE,FRAGEN!$D$83=TRUE),FRAGEN!$B$83,\"leer\")","v":"leer"},{"$f":"AUSWERTUNG_S!B82","v":{"$error":"#DIV/0!"}},null,{"$f":"AUSWERTUNG_H!B82","v":{"$error":"#DIV/0!"}},null,{"$f":"AUSWERTUNG_L!B82","v":{"$error":"#DIV/0!"}}]
[60,{"$f":"IF(OR(FRAGEN!$D$81=TRUE,FRAGEN!$D$84=TRUE),FRAGEN!$B$84,\"leer\")","v":"leer"},{"$f":"AUSWERTUNG_S!B83","v":{"$error":"#DIV/0!"}},null,{"$f":"AUSWERTUNG_H!B83","v":{"$error":"#DIV/0!"}},null,{"$f":"AUSWERTUNG_L!B83","v":{"$error":"#DIV/0!"}}]
[61,{"$f":"IF(OR(FRAGEN!$D$81=TRUE,FRAGEN!$D$85=TRUE),FRAGEN!$B$85,\"leer\")","v":"leer"},{"$f":"AUSWERTUNG_S!B84","v":{"$error":"#DIV/0!"}},null,{"$f":"AUSWERTUNG_H!B84","v":{"$error":"#DIV/0!"}},null,{"$f":"AUSWERTUNG_L!B84","v":{"$error":"#DIV/0!"}}]
[]
[]
[14,{"$f":"IF(OR(FRAGEN!$D$88=TRUE,FRAGEN!$D$89=TRUE,FRAGEN!$D$90=TRUE,FRAGEN!$D$91=TRUE,FRAGEN!$D$92=TRUE,FRAGEN!$D$93=TRUE,FRAGEN!$D$94=TRUE,FRAGEN!$D$95=TRUE,FRAGEN!$D$96=TRUE,FRAGEN!$D$97=TRUE,FRAGEN!$D$98=TRUE,FRAGEN!$D$99=TRUE,FRAGEN!$D$100=TRUE,FRAGEN!$D$101=TRUE,FRAGEN!$D$102=TRUE,FRAGEN!$D$104=TRUE,FRAGEN!$D$103=TRUE,FRAGEN!$D$105=TRUE,FRAGEN!$D$106=TRUE,FRAGEN!$D$107=TRUE,FRAGEN!$D$108=TRUE),FRAGEN!$B$88,\"leer\")","v":"leer"},null,{"$f":"AUSWERTUNG_S!D88","v":{"$error":"#DIV/0!"}},null,{"$f":"AUSWERTUNG_H!D88","v":{"$error":"#DIV/0!"}},null,{"$f":"AUSWERTUNG_L!D88","v":{"$error":"#DIV/0!"}}]
[62,{"$f":"IF(OR(FRAGEN!$D$88=TRUE,FRAGEN!$D$89=TRUE),FRAGEN!$B$89,\"leer\")","v":"leer"},{"$f":"AUSWERTUNG_S!B89","v":{"$error":"#DIV/0!"}},null,{"$f":"AUSWERTUNG_H!B89","v":{"$error":"#DIV/0!"}},null,{"$f":"AUSWERTUNG_L!B89","v":{"$error":"#DIV/0!"}}]
[63,{"$f":"IF(OR(FRAGEN!$D$88=TRUE,FRAGEN!$D$90=TRUE),FRAGEN!$B$90,\"leer\")","v":"leer"},{"$f":"AUSWERTUNG_S!B90","v":{"$error":"#DIV/0!"}},null,{"$f":"AUSWERTUNG_H!B90","v":{"$error":"#DIV/0!"}},null,{"$f":"AUSWERTUNG_L!B90","v":{"$error":"#DIV/0!"}}]
[64,{"$f":"IF(OR(FRAGEN!$D$88=TRUE,FRAGEN!$D$91=TRUE),FRAGEN!$B$91,\"leer\")","v":"leer"},{"$f":"AUSWERTUNG_S!B91","v":{"$error":"#DIV/0!"}},null,{"$f":"AUSWERTUNG_H!B91","v":{"$error":"#DIV/0!"}},null,{"$f":"AUSWERTUNG_L!B91","v":{"$error":"#DIV/0!"}}]
[65,{"$f":"IF(OR(FRAGEN!$D$88=TRUE,FRAGEN!$D$92=TRUE),FRAGEN!$B$92,\"leer\")","v":"leer"},{"$f":"AUSWERTUNG_S!B92","v":{"$error":"#DIV/0!"}},null,{"$f":"AUSWERTUNG_H!B92","v":{"$error":"#DIV/0!"}},null,{"$f":"AUSWERTUNG_L!B92","v":{"$error":"#DIV/0!"}}]
[66,{"$f":"IF(OR(FRAGEN!$D$88=TRUE,FRAGEN!$D$93=TRUE),FRAGEN!$B$93,\"leer\")","v":"leer"},{"$f":"AUSWERTUNG_S!B93","v":{"$error":"#DIV/0!"}},null,{"$f":"AUSWERTUNG_H!B93","v":{"$error":"#DIV/0!"}},null,{"$f":"AUSWERTUNG_L!B93","v":{"$error":"#DIV/0!"}}]
[67,{"$f":"IF(OR(FRAGEN!$D$88=TRUE,FRAGEN!$D$94=TRUE),FRAGEN!$B$94,\"leer\")","v":"leer"},{"$f":"AUSWERTUNG_S!B94","v":{"$error":"#DIV/0!"}},null,{"$f":"AUSWERTUNG_H!B94","v":{"$error":"#DIV/0!"}},null,{"$f":"AUSWERTUNG_L!B94","v":{"$error":"#DIV/0!"}}]
[68,{"$f":"IF(OR(FRAGEN!$D$88=TRUE,FRAGEN!$D$95=TRUE),FRAGEN!$B$95,\"leer\")","v":"leer"},{"$f":"AUSWERTUNG_S!B95","v":{"$error":"#DIV/0!"}},null,{"$f":"AUSWERTUNG_H!B95","v":{"$error":"#DIV/0!"}},null,{"$f":"AUSWERTUNG_L!B95","v":{"$error":"#DIV/0!"}}]
[69,{"$f":"IF(OR(FRAGEN!$D$88=TRUE,FRAGEN!$D$96=TRUE),FRAGEN!$B$96,\"leer\")","v":"leer"},{"$f":"AUSWERTUNG_S!B96","v":{"$error":"#DIV/0!"}},null,{"$f":"AUSWERTUNG_H!B96","v":{"$error":"#DIV/0!"}},null,{"$f":"AUSWERTUNG_L!B96","v":{"$error":"#DIV/0!"}}]
[70,{"$f":"IF(OR(FRAGEN!$D$88=TRUE,FRAGEN!$D$97=TRUE),FRAGEN!$B$97,\"leer\")","v":"leer"},{"$f":"AUSWERTUNG_S!B97","v":{"$error":"#DIV/0!"}},null,{"$f":"AUSWERTUNG_H!B97","v":{"$error":"#DIV/0!"}},null,{"$f":"AUSWERTUNG_L!B97","v":{"$error":"#DIV/0!"}}]
[71,{"$f":"IF(OR(FRAGEN!$D$88=TRUE,FRAGEN!$D$98=TRUE),FRAGEN!$B$98,\"leer\")","v":"leer"},{"$f":"AUSWERTUNG_S!B98","v":{"$error":"#DIV/0!"}},null,{"$f":"AUSWERTUNG_H!B98","v":{"$error":"#DIV/0!"}},null,{"$f":"AUSWERTUNG_L!B98","v":{"$error":"#DIV/0!"}}]
[72,{"$f":"IF(OR(FRAGEN!$D$88=TRUE,FRAGEN!$D$99=TRUE),FRAGEN!$B$99,\"leer\")","v":"leer"},{"$f":"AUSWERTUNG_S!B99","v":{"$error":"#DIV/0!"}},null,{"$f":"AUSWERTUNG_H!B99","v":{"$error":"#DIV/0!"}},null,{"$f":"AUSWERTUNG_L!B99","v":{"$error":"#DIV/0!"}}]
[73,{"$f":"IF(OR(FRAGEN!$D$88=TRUE,FRAGEN!$D$100=TRUE),FRAGEN!$B$100,\"leer\")","v":"leer"},{"$f":"AUSWERTUNG_S!B100","v":{"$error":"#DIV/0!"}},null,{"$f":"AUSWERTUNG_H!B100","v":{"$error":"#DIV/0!"}},null,{"$f":"AUSWERTUNG_L!B100","v":{"$error":"#DIV/0!"}}]
[74,{"$f":"IF(OR(FRAGEN!$D$88=TRUE,FRAGEN!$D$101=TRUE),FRAGEN!$B$101,\"leer\")","v":"leer"},{"$f":"AUSWERTUNG_S!B101","v":{"$error":"#DIV/0!"}},null,{"$f":"AUSWERTUNG_H!B101","v":{"$error":"#DIV/0!"}},null,{"$f":"AUSWERTUNG_L!B101","v":{"$error":"#DIV/0!"}}]
[75,{"$f":"IF(OR(FRAGEN!$D$88=TRUE,FRAGEN!$D$102=TRUE),FRAGEN!$B$102,\"leer\")","v":"leer"},{"$f":"AUSWERTUNG_S!B102","v":{"$error":"#DIV/0!"}},null,{"$f":"AUSWERTUNG_H!B102","v":{"$error":"#DIV/0!"}},null,{"$f":"AUSWERTUNG_L!B102","v":{"$error":"#DIV/0!"}}]
[76,{"$f":"IF(OR(FRAGEN!$D$88=TRUE,FRAGEN!$D$103=TRUE),FRAGEN!$B$103,\"leer\")","v":"leer"},{"$f":"AUSWERTUNG_S!B103","v":{"$error":"#DIV/0!"}},null,{"$f":"AUSWERTUNG_H!B103","v":{"$error":"#DIV/0!"}},null,{"$f":"AUSWERTUNG_L!B103","v":{"$error":"#DIV/0!"}}]
[77,{"$f":"IF(OR(FRAGEN!$D$88=TRUE,FRAGEN!$D$104=TRUE),FRAGEN!$B$104,\"leer\")","v":"leer"},{"$f":"AUSWERTUNG_S!B104","v":{"$error":"#DIV/0!"}},null,{"$f":"AUSWERTUNG_H!B104","v":{"$error":"#DIV/0!"}},null,{"$f":"AUSWERTUNG_L!B104","v":{"$error":"#DIV/0!"}}]
[78,{"$f":"IF(OR(FRAGEN!$D$88=TRUE,FRAGEN!$D$105=TRUE),FRAGEN!$B$105,\"leer\")","v":"leer"},{"$f":"AUSWERTUNG_S!B105","v":{"$error":"#DIV/0!"}},null,{"$f":"AUSWERTUNG_H!B105","v":{"$error":"#DIV/0!"}},null,{"$f":"AUSWERTUNG_L!B105","v":{"$error":"#DIV/0!"}}]
[79,{"$f":"IF(OR(FRAGEN!$D$88=TRUE,FRAGEN!$D$106=TRUE),FRAGEN!$B$106,\"leer\")","v":"leer"},{"$f":"AUSWERTUNG_S!B106","v":{"$error":"#DIV/0!"}},null,{"$f":"AUSWERTUNG_H!B106","v":{"$error":"#DIV/0!"}},null,{"$f":"AUSWERTUNG_L!B106","v":{"$error":"#DIV/0!"}}]
[80,{"$f":"IF(OR(FRAGEN!$D$88=TRUE,FRAGEN!$D$107=TRUE),FRAGEN!$B$107,\"leer\")","v":"leer"},{"$f":"AUSWERTUNG_S!B107","v":{"$error":"#DIV/0!"}},null,{"$f":"AUSWERTUNG_H!B107","v":{"$error":"#DIV/0!"}},null,{"$f":"AUSWERTUNG_L!B107","v":{"$error":"#DIV/0!"}}]
[81,{"$f":"IF(OR(FRAGEN!$D$88=TRUE,FRAGEN!$D$108=TRUE),FRAGEN!$B$108,\"leer\")","v":"leer"},{"$f":"AUSWERTUNG_S!B108","v":{"$error":"#DIV/0!"}},null,{"$f":"AUSWERTUNG_H!B108","v":{"$error":"#DIV/0!"}},null,{"$f":"AUSWERTUNG_L!B108","v":{"$error":"#DIV/0!"}}]

{"sheet":"AUSDRUCK_GRAFIK","index":6,"n_rows":0,"n_cols":0,"rows_kept":0,"cut":false,"hidden":false,"merged":[]}

{"sheet":"AUSDRUCK_GRAFIK_DIFF","index":7,"n_rows":0,"n_cols":0,"rows_kept":0,"cut":false,"hidden":false,"merged":[]}

{"sheet":"FRAGEBOGEN_S","index":8,"n_rows":0,"n_cols":0,"rows_kept":0,"cut":false,"hidden":false,"merged":[]}

{"sheet":"FRAGEBOGEN_H","index":9,"n_rows":0,"n_cols":0,"rows_kept":0,"cut":false,"hidden":false,"merged":[]}

{"sheet":"FRAGEBOGEN_L","index":10,"n_rows":0,"n_cols":0,"rows_kept":0,"cut":false,"hidden":false,"merged":[]}

{"sheet":"LOGIN","index":11,"n_rows":4,"n_cols":2,"rows_kept":4,"cut":false,"hidden":false,"merged":[]}
["Nutzername","Passwort"]
["Admin","lehrer1997"]
["Schüler","schbsz1"]
["Hospitant","hos2021"]

{"sheet":"AUSGEWÄHLTE_F_S","index":12,"n_rows":109,"n_cols":1,"rows_kept":109,"cut":false,"hidden":false,"merged":[]}
[]
[{"$f":"IF(OR(FRAGEN!$D$2=TRUE, FRAGEN!$D$3=TRUE),FRAGEN!$B$3,\"leer\")","v":"leer"}]
[{"$f":"IF(OR(FRAGEN!$D$2=TRUE, FRAGEN!$D$4=TRUE),FRAGEN!$B$4,\"leer\")","v":"leer"}]
[{"$f":"IF(OR(FRAGEN!$D$2=TRUE, FRAGEN!$D$5=TRUE),FRAGEN!$B$5,\"leer\")","v":"leer"}]
[{"$f":"IF(OR(FRAGEN!$D$2=TRUE, FRAGEN!$D$6=TRUE),FRAGEN!$B$6,\"leer\")","v":"leer"}]
[{"$f":"IF(OR(FRAGEN!$D$2=TRUE, FRAGEN!$D$7=TRUE),FRAGEN!$B$7,\"leer\")","v":"leer"}]
[]
[{"$f":"IF(OR(FRAGEN!$D$8=TRUE,FRAGEN!$D$9=TRUE),FRAGEN!$B$9,\"leer\")","v":"leer"}]
[{"$f":"IF(OR(FRAGEN!$D$8=TRUE,FRAGEN!$D$10=TRUE),FRAGEN!$B$10,\"leer\")","v":"leer"}]
[{"$f":"IF(OR(FRAGEN!$D$8=TRUE,FRAGEN!$D$11=TRUE),FRAGEN!$B$11,\"leer\")","v":"leer"}]
[{"$f":"IF(OR(FRAGEN!$D$8=TRUE,FRAGEN!$D$12=TRUE),FRAGEN!$B$12,\"leer\")","v":"leer"}]
[]
[]
[{"$f":"IF(OR(FRAGEN!$D$14=TRUE,FRAGEN!$D$15=TRUE),FRAGEN!$B$15,\"leer\")","v":"leer"}]
[{"$f":"IF(OR(FRAGEN!$D$14=TRUE,FRAGEN!$D$16=TRUE),FRAGEN!$B$16,\"leer\")","v":"leer"}]
[{"$f":"IF(OR(FRAGEN!$D$14=TRUE,FRAGEN!$D$17=TRUE),FRAGEN!$B$17,\"leer\")","v":"leer"}]
[{"$f":"IF(OR(FRAGEN!$D$14=TRUE,FRAGEN!$D$18=TRUE),FRAGEN!$B$18,\"leer\")","v":"leer"}]
[{"$f":"IF(OR(FRAGEN!$D$14=TRUE,FRAGEN!$D$19=TRUE),FRAGEN!$B$19,\"leer\")","v":"leer"}]
[{"$f":"IF(OR(FRAGEN!$D$14=TRUE,FRAGEN!$D$20=TRUE),FRAGEN!$B$20,\"leer\")","v":"leer"}]
[]
[{"$f":"IF(OR(FRAGEN!$D$21=TRUE,FRAGEN!$D$22=TRUE),FRAGEN!$B$22,\"leer\")","v":"leer"}]
[{"$f":"IF(OR(FRAGEN!$D$21=TRUE,FRAGEN!$D$23=TRUE),FRAGEN!$B$23,\"leer\")","v":"leer"}]
[{"$f":"IF(OR(FRAGEN!$D$21=TRUE,FRAGEN!$D$24=TRUE),FRAGEN!$B$24,\"leer\")","v":"leer"}]
[{"$f":"IF(OR(FRAGEN!$D$21=TRUE,FRAGEN!$D$25=TRUE),FRAGEN!$B$25,\"leer\")","v":"leer"}]
[{"$f":"IF(OR(FRAGEN!$D$21=TRUE,FRAGEN!$D$26=TRUE),FRAGEN!$B$26,\"leer\")","v":"leer"}]
[]
[]
[]
[]
[{"$f":"IF(OR(FRAGEN!$D$28=TRUE,FRAGEN!$D$31=TRUE),FRAGEN!$B$31,\"leer\")","v":"leer"}]
[{"$f":"IF(OR(FRAGEN!$D$28=TRUE,FRAGEN!$D$32=TRUE),FRAGEN!$B$32,\"leer\")","v":"leer"}]
[{"$f":"IF(OR(FRAGEN!$D$28=TRUE,FRAGEN!$D$33=TRUE),FRAGEN!$B$33,\"leer\")","v":"leer"}]
[]
[{"$f":"IF(OR(FRAGEN!$D$28=TRUE,FRAGEN!$D$35=TRUE),FRAGEN!$B$35,\"leer\")","v":"leer"}]
[{"$f":"IF(OR(FRAGEN!$D$34=TRUE,FRAGEN!$D$36=TRUE),FRAGEN!$B$36,\"leer\")","v":"leer"}]
[{"$f":"IF(OR(FRAGEN!$D$34=TRUE,FRAGEN!$D$37=TRUE),FRAGEN!$B$37,\"leer\")","v":"leer"}]
[{"$f":"IF(OR(FRAGEN!$D$34=TRUE,FRAGEN!$D$38=TRUE),FRAGEN!$B$38,\"leer\")","v":"leer"}]
[{"$f":"IF(OR(FRAGEN!$D$34=TRUE,FRAGEN!$D$39=TRUE),FRAGEN!$B$39,\"leer\")","v":"leer"}]
[{"$f":"IF(OR(FRAGEN!$D$34=TRUE,FRAGEN!$D$40=TRUE),FRAGEN!$B$40,\"leer\")","v":"leer"}]
[{"$f":"IF(OR(FRAGEN!$D$34=TRUE,FRAGEN!$D$41=TRUE),FRAGEN!$B$41,\"leer\")","v":"leer"}]
[{"$f":"IF(OR(FRAGEN!$D$34=TRUE,FRAGEN!$D$42=TRUE),FRAGEN!$B$42,\"leer\")","v":"leer"}]
[{"$f":"IF(OR(FRAGEN!$D$34=TRUE,FRAGEN!$D$43=TRUE),FRAGEN!$B$43,\"leer\")","v":"leer"}]
[{"$f":"IF(OR(FRAGEN!$D$34=TRUE,FRAGEN!$D$44=TRUE),FRAGEN!$B$44,\"leer\")","v":"leer"}]
[{"$f":"IF(OR(FRAGEN!$D$34=TRUE,FRAGEN!$D$45=TRUE),FRAGEN!$B$45,\"leer\")","v":"leer"}]
[{"$f":"IF(OR(FRAGEN!$D$34=TRUE,FRAGEN!$D$46=TRUE),FRAGEN!$B$46,\"leer\")","v":"leer"}]
[]
[]
[{"$f":"IF(OR(FRAGEN!$D$48=TRUE,FRAGEN!$D$49=TRUE),FRAGEN!$B$49,\"leer\")","v":"leer"}]
[{"$f":"IF(OR(FRAGEN!$D$48=TRUE,FRAGEN!$D$50=TRUE),FRAGEN!$B$50,\"leer\")","v":"leer"}]
[{"$f":"IF(OR(FRAGEN!$D$48=TRUE,FRAGEN!$D$51=TRUE),FRAGEN!$B$51,\"leer\")","v":"leer"}]
[]
[{"$f":"IF(OR(FRAGEN!$D$52=TRUE,FRAGEN!$D$53=TRUE),FRAGEN!$B$53,\"leer\")","v":"leer"}]
[{"$f":"IF(OR(FRAGEN!$D$52=TRUE,FRAGEN!$D$54=TRUE),FRAGEN!$B$54,\"leer\")","v":"leer"}]
[{"$f":"IF(OR(FRAGEN!$D$52=TRUE,FRAGEN!$D$55=TRUE),FRAGEN!$B$55,\"leer\")","v":"leer"}]
[]
[{"$f":"IF(OR(FRAGEN!$D$56=TRUE,FRAGEN!$D$57=TRUE),FRAGEN!$B$57,\"leer\")","v":"leer"}]
[{"$f":"IF(OR(FRAGEN!$D$56=TRUE,FRAGEN!$D$58=TRUE),FRAGEN!$B$58,\"leer\")","v":"leer"}]
[{"$f":"IF(OR(FRAGEN!$D$56=TRUE,FRAGEN!$D$59=TRUE),FRAGEN!$B$59,\"leer\")","v":"leer"}]
[{"$f":"IF(OR(FRAGEN!$D$56=TRUE,FRAGEN!$D$60=TRUE),FRAGEN!$B$60,\"leer\")","v":"leer"}]
[]
[]
[]
[]
[{"$f":"IF(OR(FRAGEN!$D$64=TRUE,FRAGEN!$D$65=TRUE),FRAGEN!$B$65,\"leer\")","v":"leer"}]
[{"$f":"IF(OR(FRAGEN!$D$64=TRUE,FRAGEN!$D$66=TRUE),FRAGEN!$B$66,\"leer\")","v":"leer"}]
[{"$f":"IF(OR(FRAGEN!$D$64=TRUE,FRAGEN!$D$67=TRUE),FRAGEN!$B$67,\"leer\")","v":"leer"}]
[]
[]
[{"$f":"IF(OR(FRAGEN!$D$69=TRUE,FRAGEN!$D$70=TRUE),FRAGEN!$B$70,\"leer\")","v":"leer"}]
[{"$f":"IF(OR(FRAGEN!$D$69=TRUE,FRAGEN!$D$71=TRUE),FRAGEN!$B$71,\"leer\")","v":"leer"}]
[{"$f":"IF(OR(FRAGEN!$D$69=TRUE,FRAGEN!$D$72=TRUE),FRAGEN!$B$72,\"leer\")","v":"leer"}]
[{"$f":"IF(OR(FRAGEN!$D$69=TRUE,FRAGEN!$D$73=TRUE),FRAGEN!$B$73,\"leer\")","v":"leer"}]
[]
[{"$f":"IF(OR(FRAGEN!$D$74=TRUE,FRAGEN!$D$75=TRUE),FRAGEN!$B$75,\"leer\")","v":"leer"}]
[{"$f":"IF(OR(FRAGEN!$D$74=TRUE,FRAGEN!$D$76=TRUE),FRAGEN!$B$76,\"leer\")","v":"leer"}]
[{"$f":"IF(OR(FRAGEN!$D$74=TRUE,FRAGEN!$D$77=TRUE),FRAGEN!$B$77,\"leer\")","v":"leer"}]
[{"$f":"IF(OR(FRAGEN!$D$74=TRUE,FRAGEN!$D$78=TRUE),FRAGEN!$B$78,\"leer\")","v":"leer"}]
[{"$f":"IF(OR(FRAGEN!$D$74=TRUE,FRAGEN!$D$79=TRUE),FRAGEN!$B$79,\"leer\")","v":"leer"}]
[]
[]
[{"$f":"IF(OR(FRAGEN!$D$81=TRUE,FRAGEN!$D$82=TRUE),FRAGEN!$B$82,\"leer\")","v":"leer"}]
[{"$f":"IF(OR(FRAGEN!$D$81=TRUE,FRAGEN!$D$83=TRUE),FRAGEN!$B$83,\"leer\")","v":"leer"}]
[{"$f":"IF(OR(FRAGEN!$D$81=TRUE,FRAGEN!$D$84=TRUE),FRAGEN!$B$84,\"leer\")","v":"leer"}]
[{"$f":"IF(OR(FRAGEN!$D$81=TRUE,FRAGEN!$D$85=TRUE),FRAGEN!$B$85,\"leer\")","v":"leer"}]
[]
[]
[]
[]
[{"$f":"IF(OR(FRAGEN!$D$88=TRUE,FRAGEN!$D$89=TRUE),FRAGEN!$B$89,\"leer\")","v":"leer"}]
[{"$f":"IF(OR(FRAGEN!$D$88=TRUE,FRAGEN!$D$90=TRUE),FRAGEN!$B$90,\"leer\")","v":"leer"}]
[{"$f":"IF(OR(FRAGEN!$D$88=TRUE,FRAGEN!$D$91=TRUE),FRAGEN!$B$91,\"leer\")","v":"leer"}]
[{"$f":"IF(OR(FRAGEN!$D$88=TRUE,FRAGEN!$D$92=TRUE),FRAGEN!$B$92,\"leer\")","v":"leer"}]
[{"$f":"IF(OR(FRAGEN!$D$88=TRUE,FRAGEN!$D$93=TRUE),FRAGEN!$B$93,\"leer\")","v":"leer"}]
[{"$f":"IF(OR(FRAGEN!$D$88=TRUE,FRAGEN!$D$94=TRUE),FRAGEN!$B$94,\"leer\")","v":"leer"}]
[{"$f":"IF(OR(FRAGEN!$D$88=TRUE,FRAGEN!$D$95=TRUE),FRAGEN!$B$95,\"leer\")","v":"leer"}]
[{"$f":"IF(OR(FRAGEN!$D$88=TRUE,FRAGEN!$D$96=TRUE),FRAGEN!$B$96,\"leer\")","v":"leer"}]
[{"$f":"IF(OR(FRAGEN!$D$88=TRUE,FRAGEN!$D$97=TRUE),FRAGEN!$B$97,\"leer\")","v":"leer"}]
[{"$f":"IF(OR(FRAGEN!$D$88=TRUE,FRAGEN!$D$98=TRUE),FRAGEN!$B$98,\"leer\")","v":"leer"}]
[{"$f":"IF(OR(FRAGEN!$D$88=TRUE,FRAGEN!$D$99=TRUE),FRAGEN!$B$99,\"leer\")","v":"leer"}]
[{"$f":"IF(OR(FRAGEN!$D$88=TRUE,FRAGEN!$D$100=TRUE),FRAGEN!$B$100,\"leer\")","v":"leer"}]
[{"$f":"IF(OR(FRAGEN!$D$88=TRUE,FRAGEN!$D$101=TRUE),FRAGEN!$B$101,\"leer\")","v":"leer"}]
[{"$f":"IF(OR(FRAGEN!$D$88=TRUE,FRAGEN!$D$102=TRUE),FRAGEN!$B$102,\"leer\")","v":"leer"}]
[{"$f":"IF(OR(FRAGEN!$D$88=TRUE,FRAGEN!$D$103=TRUE),FRAGEN!$B$103,\"leer\")","v":"leer"}]
[{"$f":"IF(OR(FRAGEN!$D$88=TRUE,FRAGEN!$D$104=TRUE),FRAGEN!$B$104,\"leer\")","v":"leer"}]
[{"$f":"IF(OR(FRAGEN!$D$88=TRUE,FRAGEN!$D$105=TRUE),FRAGEN!$B$105,\"leer\")","v":"leer"}]
[{"$f":"IF(OR(FRAGEN!$D$88=TRUE,FRAGEN!$D$106=TRUE),FRAGEN!$B$106,\"leer\")","v":"leer"}]
[{"$f":"IF(OR(FRAGEN!$D$88=TRUE,FRAGEN!$D$107=TRUE),FRAGEN!$B$107,\"leer\")","v":"leer"}]
[{"$f":"IF(OR(FRAGEN!$D$88=TRUE,FRAGEN!$D$108=TRUE),FRAGEN!$B$108,\"leer\")","v":"leer"}]
["Ende"]

{"sheet":"AUSGEWAEHLTE_F_H","index":13,"n_rows":109,"n_cols":1,"rows_kept":109,"cut":false,"hidden":false,"merged":[]}
[]
[{"$f":"IF(OR(FRAGEN!$D$2=TRUE,FRAGEN!D3=TRUE),FRAGEN_H!A3,\"nix\")","v":"nix"}]
[{"$f":"IF(OR(FRAGEN!$D$2=TRUE,FRAGEN!D4=TRUE),FRAGEN_H!A4,\"nix\")","v":"nix"}]
[{"$f":"IF(OR(FRAGEN!$D$2=TRUE,FRAGEN!D5=TRUE),FRAGEN_H!A5,\"nix\")","v":"nix"}]
[{"$f":"IF(OR(FRAGEN!$D$2=TRUE,FRAGEN!D6=TRUE),FRAGEN_H!A6,\"nix\")","v":"nix"}]
[{"$f":"IF(OR(FRAGEN!$D$2=TRUE,FRAGEN!D7=TRUE),FRAGEN_H!A7,\"nix\")","v":"nix"}]
[]
[{"$f":"IF(OR(FRAGEN!$D$8=TRUE,FRAGEN!D9=TRUE),FRAGEN_H!A9,\"nix\")","v":"nix"}]
[{"$f":"IF(OR(FRAGEN!$D$8=TRUE,FRAGEN!D10=TRUE),FRAGEN_H!A10,\"nix\")","v":"nix"}]
[{"$f":"IF(OR(FRAGEN!$D$8=TRUE,FRAGEN!D11=TRUE),FRAGEN_H!A11,\"nix\")","v":"nix"}]
[{"$f":"IF(OR(FRAGEN!$D$8=TRUE,FRAGEN!D12=TRUE),FRAGEN_H!A12,\"nix\")","v":"nix"}]
[]
[]
[{"$f":"IF(OR(FRAGEN!$D$14=TRUE,FRAGEN!D15=TRUE),FRAGEN_H!A15,\"nix\")","v":"nix"}]
[{"$f":"IF(OR(FRAGEN!$D$14=TRUE,FRAGEN!D16=TRUE),FRAGEN_H!A16,\"nix\")","v":"nix"}]
[{"$f":"IF(OR(FRAGEN!$D$14=TRUE,FRAGEN!D17=TRUE),FRAGEN_H!A17,\"nix\")","v":"nix"}]
[{"$f":"IF(OR(FRAGEN!$D$14=TRUE,FRAGEN!D18=TRUE),FRAGEN_H!A18,\"nix\")","v":"nix"}]
[{"$f":"IF(OR(FRAGEN!$D$14=TRUE,FRAGEN!D19=TRUE),FRAGEN_H!A19,\"nix\")","v":"nix"}]
[{"$f":"IF(OR(FRAGEN!$D$14=TRUE,FRAGEN!D20=TRUE),FRAGEN_H!A20,\"nix\")","v":"nix"}]
[]
[{"$f":"IF(OR(FRAGEN!$D$21=TRUE,FRAGEN!D22=TRUE),FRAGEN_H!A22,\"nix\")","v":"nix"}]
[{"$f":"IF(OR(FRAGEN!$D$21=TRUE,FRAGEN!D23=TRUE),FRAGEN_H!A23,\"nix\")","v":"nix"}]
[{"$f":"IF(OR(FRAGEN!$D$21=TRUE,FRAGEN!D24=TRUE),FRAGEN_H!A24,\"nix\")","v":"nix"}]
[{"$f":"IF(OR(FRAGEN!$D$21=TRUE,FRAGEN!D25=TRUE),FRAGEN_H!A25,\"nix\")","v":"nix"}]
[{"$f":"IF(OR(FRAGEN!$D$21=TRUE,FRAGEN!D26=TRUE),FRAGEN_H!A26,\"nix\")","v":"nix"}]
[]
[]
[]
[]
[{"$f":"IF(OR(FRAGEN!$D$28=TRUE,FRAGEN!D31=TRUE),FRAGEN_H!A31,\"nix\")","v":"nix"}]
[{"$f":"IF(OR(FRAGEN!$D$28=TRUE,FRAGEN!D32=TRUE),FRAGEN_H!A32,\"nix\")","v":"nix"}]
[{"$f":"IF(OR(FRAGEN!$D$28=TRUE,FRAGEN!D33=TRUE),FRAGEN_H!A33,\"nix\")","v":"nix"}]
[]
[{"$f":"IF(OR(FRAGEN!$D$34=TRUE,FRAGEN!D35=TRUE),FRAGEN_H!A35,\"nix\")","v":"nix"}]
[{"$f":"IF(OR(FRAGEN!$D$34=TRUE,FRAGEN!D36=TRUE),FRAGEN_H!A36,\"nix\")","v":"nix"}]
[{"$f":"IF(OR(FRAGEN!$D$34=TRUE,FRAGEN!D37=TRUE),FRAGEN_H!A37,\"nix\")","v":"nix"}]
[{"$f":"IF(OR(FRAGEN!$D$34=TRUE,FRAGEN!D38=TRUE),FRAGEN_H!A38,\"nix\")","v":"nix"}]
[{"$f":"IF(OR(FRAGEN!$D$34=TRUE,FRAGEN!D39=TRUE),FRAGEN_H!A39,\"nix\")","v":"nix"}]
[{"$f":"IF(OR(FRAGEN!$D$34=TRUE,FRAGEN!D40=TRUE),FRAGEN_H!A40,\"nix\")","v":"nix"}]
[{"$f":"IF(OR(FRAGEN!$D$34=TRUE,FRAGEN!D41=TRUE),FRAGEN_H!A41,\"nix\")","v":"nix"}]
[{"$f":"IF(OR(FRAGEN!$D$34=TRUE,FRAGEN!D42=TRUE),FRAGEN_H!A42,\"nix\")","v":"nix"}]
[{"$f":"IF(OR(FRAGEN!$D$34=TRUE,FRAGEN!D43=TRUE),FRAGEN_H!A43,\"nix\")","v":"nix"}]
[{"$f":"IF(OR(FRAGEN!$D$34=TRUE,FRAGEN!D44=TRUE),FRAGEN_H!A44,\"nix\")","v":"nix"}]
[{"$f":"IF(OR(FRAGEN!$D$34=TRUE,FRAGEN!D45=TRUE),FRAGEN_H!A45,\"nix\")","v":"nix"}]
[{"$f":"IF(OR(FRAGEN!$D$34=TRUE,FRAGEN!D46=TRUE),FRAGEN_H!A46,\"nix\")","v":"nix"}]
[]
[]
[{"$f":"IF(OR(FRAGEN!$D$48=TRUE,FRAGEN!D49=TRUE),FRAGEN_H!A49,\"nix\")","v":"nix"}]
[{"$f":"IF(OR(FRAGEN!$D$48=TRUE,FRAGEN!D50=TRUE),FRAGEN_H!A50,\"nix\")","v":"nix"}]
[{"$f":"IF(OR(FRAGEN!$D$48=TRUE,FRAGEN!D51=TRUE),FRAGEN_H!A51,\"nix\")","v":"nix"}]
[]
[{"$f":"IF(OR(FRAGEN!$D$52=TRUE,FRAGEN!D53=TRUE),FRAGEN_H!A53,\"nix\")","v":"nix"}]
[{"$f":"IF(OR(FRAGEN!$D$52=TRUE,FRAGEN!D54=TRUE),FRAGEN_H!A54,\"nix\")","v":"nix"}]
[{"$f":"IF(OR(FRAGEN!$D$52=TRUE,FRAGEN!D55=TRUE),FRAGEN_H!A55,\"nix\")","v":"nix"}]
[]
[{"$f":"IF(OR(FRAGEN!$D$56=TRUE,FRAGEN!D57=TRUE),FRAGEN_H!A57,\"nix\")","v":"nix"}]
[{"$f":"IF(OR(FRAGEN!$D$56=TRUE,FRAGEN!D58=TRUE),FRAGEN_H!A58,\"nix\")","v":"nix"}]
[{"$f":"IF(OR(FRAGEN!$D$56=TRUE,FRAGEN!D59=TRUE),FRAGEN_H!A59,\"nix\")","v":"nix"}]
[{"$f":"IF(OR(FRAGEN!$D$56=TRUE,FRAGEN!D60=TRUE),FRAGEN_H!A60,\"nix\")","v":"nix"}]
[]
[]
[]
[]
[{"$f":"IF(OR(FRAGEN!$D$64=TRUE,FRAGEN!D65=TRUE),FRAGEN_H!A65,\"nix\")","v":"nix"}]
[{"$f":"IF(OR(FRAGEN!$D$64=TRUE,FRAGEN!D66=TRUE),FRAGEN_H!A66,\"nix\")","v":"nix"}]
[{"$f":"IF(OR(FRAGEN!$D$64=TRUE,FRAGEN!D67=TRUE),FRAGEN_H!A67,\"nix\")","v":"nix"}]
[]
[]
[{"$f":"IF(OR(FRAGEN!$D$69=TRUE,FRAGEN!D70=TRUE),FRAGEN_H!A70,\"nix\")","v":"nix"}]
[{"$f":"IF(OR(FRAGEN!$D$69=TRUE,FRAGEN!D71=TRUE),FRAGEN_H!A71,\"nix\")","v":"nix"}]
[{"$f":"IF(OR(FRAGEN!$D$69=TRUE,FRAGEN!D72=TRUE),FRAGEN_H!A72,\"nix\")","v":"nix"}]
[{"$f":"IF(OR(FRAGEN!$D$69=TRUE,FRAGEN!D73=TRUE),FRAGEN_H!A73,\"nix\")","v":"nix"}]
[]
[{"$f":"IF(OR(FRAGEN!$D$74=TRUE,FRAGEN!D75=TRUE),FRAGEN_H!A75,\"nix\")","v":"nix"}]
[{"$f":"IF(OR(FRAGEN!$D$74=TRUE,FRAGEN!D76=TRUE),FRAGEN_H!A76,\"nix\")","v":"nix"}]
[{"$f":"IF(OR(FRAGEN!$D$74=TRUE,FRAGEN!D77=TRUE),FRAGEN_H!A77,\"nix\")","v":"nix"}]
[{"$f":"IF(OR(FRAGEN!$D$74=TRUE,FRAGEN!D78=TRUE),FRAGEN_H!A78,\"nix\")","v":"nix"}]
[{"$f":"IF(OR(FRAGEN!$D$74=TRUE,FRAGEN!D79=TRUE),FRAGEN_H!A79,\"nix\")","v":"nix"}]
[]
[]
[{"$f":"IF(OR(FRAGEN!$D$81=TRUE,FRAGEN!D82=TRUE),FRAGEN_H!A82,\"nix\")","v":"nix"}]
[{"$f":"IF(OR(FRAGEN!$D$81=TRUE,FRAGEN!D83=TRUE),FRAGEN_H!A83,\"nix\")","v":"nix"}]
[{"$f":"IF(OR(FRAGEN!$D$81=TRUE,FRAGEN!D84=TRUE),FRAGEN_H!A84,\"nix\")","v":"nix"}]
[{"$f":"IF(OR(FRAGEN!$D$81=TRUE,FRAGEN!D85=TRUE),FRAGEN_H!A85,\"nix\")","v":"nix"}]
[]
[]
[]
[]
[{"$f":"IF(OR(FRAGEN!$D$88=TRUE,FRAGEN!D90=TRUE),FRAGEN_H!A89,\"nix\")","v":"nix"}]
[{"$f":"IF(OR(FRAGEN!$D$88=TRUE,FRAGEN!D90=TRUE),FRAGEN_H!A90,\"nix\")","v":"nix"}]
[{"$f":"IF(OR(FRAGEN!$D$88=TRUE,FRAGEN!D91=TRUE),FRAGEN_H!A91,\"nix\")","v":"nix"}]
[{"$f":"IF(OR(FRAGEN!$D$88=TRUE,FRAGEN!D92=TRUE),FRAGEN_H!A92,\"nix\")","v":"nix"}]
[{"$f":"IF(OR(FRAGEN!$D$88=TRUE,FRAGEN!D93=TRUE),FRAGEN_H!A93,\"nix\")","v":"nix"}]
[{"$f":"IF(OR(FRAGEN!$D$88=TRUE,FRAGEN!D94=TRUE),FRAGEN_H!A94,\"nix\")","v":"nix"}]
[{"$f":"IF(OR(FRAGEN!$D$88=TRUE,FRAGEN!D95=TRUE),FRAGEN_H!A95,\"nix\")","v":"nix"}]
[{"$f":"IF(OR(FRAGEN!$D$88=TRUE,FRAGEN!D96=TRUE),FRAGEN_H!A96,\"nix\")","v":"nix"}]
[{"$f":"IF(OR(FRAGEN!$D$88=TRUE,FRAGEN!D97=TRUE),FRAGEN_H!A97,\"nix\")","v":"nix"}]
[{"$f":"IF(OR(FRAGEN!$D$88=TRUE,FRAGEN!D98=TRUE),FRAGEN_H!A98,\"nix\")","v":"nix"}]
[{"$f":"IF(OR(FRAGEN!$D$88=TRUE,FRAGEN!D99=TRUE),FRAGEN_H!A99,\"nix\")","v":"nix"}]
[{"$f":"IF(OR(FRAGEN!$D$88=TRUE,FRAGEN!D100=TRUE),FRAGEN_H!A100,\"nix\")","v":"nix"}]
[{"$f":"IF(OR(FRAGEN!$D$88=TRUE,FRAGEN!D101=TRUE),FRAGEN_H!A101,\"nix\")","v":"nix"}]
[{"$f":"IF(OR(FRAGEN!$D$88=TRUE,FRAGEN!D102=TRUE),FRAGEN_H!A102,\"nix\")","v":"nix"}]
[{"$f":"IF(OR(FRAGEN!$D$88=TRUE,FRAGEN!D103=TRUE),FRAGEN_H!A103,\"nix\")","v":"nix"}]
[{"$f":"IF(OR(FRAGEN!$D$88=TRUE,FRAGEN!D104=TRUE),FRAGEN_H!A104,\"nix\")","v":"nix"}]
[{"$f":"IF(OR(FRAGEN!$D$88=TRUE,FRAGEN!D105=TRUE),FRAGEN_H!A105,\"nix\")","v":"nix"}]
[{"$f":"IF(OR(FRAGEN!$D$88=TRUE,FRAGEN!D106=TRUE),FRAGEN_H!A106,\"nix\")","v":"nix"}]
[{"$f":"IF(OR(FRAGEN!$D$88=TRUE,FRAGEN!D107=TRUE),FRAGEN_H!A107,\"nix\")","v":"nix"}]
[{"$f":"IF(OR(FRAGEN!$D$88=TRUE,FRAGEN!D108=TRUE),FRAGEN_H!A108,\"nix\")","v":"nix"}]
["Ende"]

{"sheet":"AUSGEWÄHLTE_F_L","index":14,"n_rows":109,"n_cols":1,"rows_kept":109,"cut":false,"hidden":false,"merged":[]}
[]
[{"$f":"IF(OR(FRAGEN!$D$2=TRUE,FRAGEN!D3=TRUE),FRAGEN_L!A3,\"nichtgewaehlt\")","v":"nichtgewaehlt"}]
[{"$f":"IF(OR(FRAGEN!$D$2=TRUE,FRAGEN!D4=TRUE),FRAGEN_L!A4,\"nichtgewaehlt\")","v":"nichtgewaehlt"}]
[{"$f":"IF(OR(FRAGEN!$D$2=TRUE,FRAGEN!D5=TRUE),FRAGEN_L!A5,\"nichtgewaehlt\")","v":"nichtgewaehlt"}]
[{"$f":"IF(OR(FRAGEN!$D$2=TRUE,FRAGEN!D6=TRUE),FRAGEN_L!A6,\"nichtgewaehlt\")","v":"nichtgewaehlt"}]
[{"$f":"IF(OR(FRAGEN!$D$2=TRUE,FRAGEN!D7=TRUE),FRAGEN_L!A7,\"nichtgewaehlt\")","v":"nichtgewaehlt"}]
[]
[{"$f":"IF(OR(FRAGEN!$D$8=TRUE,FRAGEN!D9=TRUE),FRAGEN_L!A9,\"nichtgewaehlt\")","v":"nichtgewaehlt"}]
[{"$f":"IF(OR(FRAGEN!$D$8=TRUE,FRAGEN!D10=TRUE),FRAGEN_L!A10,\"nichtgewaehlt\")","v":"nichtgewaehlt"}]
[{"$f":"IF(OR(FRAGEN!$D$8=TRUE,FRAGEN!D11=TRUE),FRAGEN_L!A11,\"nichtgewaehlt\")","v":"nichtgewaehlt"}]
[{"$f":"IF(OR(FRAGEN!$D$8=TRUE,FRAGEN!D12=TRUE),FRAGEN_L!A12,\"nichtgewaehlt\")","v":"nichtgewaehlt"}]
[]
[]
[{"$f":"IF(OR(FRAGEN!$D$14=TRUE,FRAGEN!D15=TRUE),FRAGEN_L!A15,\"nichtgewaehlt\")","v":"nichtgewaehlt"}]
[{"$f":"IF(OR(FRAGEN!$D$14=TRUE,FRAGEN!D16=TRUE),FRAGEN_L!A16,\"nichtgewaehlt\")","v":"nichtgewaehlt"}]
[{"$f":"IF(OR(FRAGEN!$D$14=TRUE,FRAGEN!D17=TRUE),FRAGEN_L!A17,\"nichtgewaehlt\")","v":"nichtgewaehlt"}]
[{"$f":"IF(OR(FRAGEN!$D$14=TRUE,FRAGEN!D18=TRUE),FRAGEN_L!A18,\"nichtgewaehlt\")","v":"nichtgewaehlt"}]
[{"$f":"IF(OR(FRAGEN!$D$14=TRUE,FRAGEN!D19=TRUE),FRAGEN_L!A19,\"nichtgewaehlt\")","v":"nichtgewaehlt"}]
[{"$f":"IF(OR(FRAGEN!$D$14=TRUE,FRAGEN!D20=TRUE),FRAGEN_L!A20,\"nichtgewaehlt\")","v":"nichtgewaehlt"}]
[]
[{"$f":"IF(OR(FRAGEN!$D$21=TRUE,FRAGEN!D22=TRUE),FRAGEN_L!A22,\"nichtgewaehlt\")","v":"nichtgewaehlt"}]
[{"$f":"IF(OR(FRAGEN!$D$21=TRUE,FRAGEN!D23=TRUE),FRAGEN_L!A23,\"nichtgewaehlt\")","v":"nichtgewaehlt"}]
[{"$f":"IF(OR(FRAGEN!$D$21=TRUE,FRAGEN!D24=TRUE),FRAGEN_L!A24,\"nichtgewaehlt\")","v":"nichtgewaehlt"}]
[{"$f":"IF(OR(FRAGEN!$D$21=TRUE,FRAGEN!D25=TRUE),FRAGEN_L!A25,\"nichtgewaehlt\")","v":"nichtgewaehlt"}]
[{"$f":"IF(OR(FRAGEN!$D$21=TRUE,FRAGEN!D26=TRUE),FRAGEN_L!A26,\"nichtgewaehlt\")","v":"nichtgewaehlt"}]
[]
[]
[]
[]
[{"$f":"IF(OR(FRAGEN!$D$28=TRUE,FRAGEN!D31=TRUE),FRAGEN_L!A31,\"nichtgewaehlt\")","v":"nichtgewaehlt"}]
[{"$f":"IF(OR(FRAGEN!$D$28=TRUE,FRAGEN!D32=TRUE),FRAGEN_L!A32,\"nichtgewaehlt\")","v":"nichtgewaehlt"}]
[{"$f":"IF(OR(FRAGEN!$D$28=TRUE,FRAGEN!D33=TRUE),FRAGEN_L!A33,\"nichtgewaehlt\")","v":"nichtgewaehlt"}]
[]
[{"$f":"IF(OR(FRAGEN!$D$34=TRUE,FRAGEN!D35=TRUE),FRAGEN_L!A35,\"nichtgewaehlt\")","v":"nichtgewaehlt"}]
[{"$f":"IF(OR(FRAGEN!$D$34=TRUE,FRAGEN!D36=TRUE),FRAGEN_L!A36,\"nichtgewaehlt\")","v":"nichtgewaehlt"}]
[{"$f":"IF(OR(FRAGEN!$D$34=TRUE,FRAGEN!D37=TRUE),FRAGEN_L!A37,\"nichtgewaehlt\")","v":"nichtgewaehlt"}]
[{"$f":"IF(OR(FRAGEN!$D$34=TRUE,FRAGEN!D38=TRUE),FRAGEN_L!A38,\"nichtgewaehlt\")","v":"nichtgewaehlt"}]
[{"$f":"IF(OR(FRAGEN!$D$34=TRUE,FRAGEN!D39=TRUE),FRAGEN_L!A39,\"nichtgewaehlt\")","v":"nichtgewaehlt"}]
[{"$f":"IF(OR(FRAGEN!$D$34=TRUE,FRAGEN!D40=TRUE),FRAGEN_L!A40,\"nichtgewaehlt\")","v":"nichtgewaehlt"}]
[{"$f":"IF(OR(FRAGEN!$D$34=TRUE,FRAGEN!D41=TRUE),FRAGEN_L!A41,\"nichtgewaehlt\")","v":"nichtgewaehlt"}]
[{"$f":"IF(OR(FRAGEN!$D$34=TRUE,FRAGEN!D42=TRUE),FRAGEN_L!A42,\"nichtgewaehlt\")","v":"nichtgewaehlt"}]
[{"$f":"IF(OR(FRAGEN!$D$34=TRUE,FRAGEN!D43=TRUE),FRAGEN_L!A43,\"nichtgewaehlt\")","v":"nichtgewaehlt"}]
[{"$f":"IF(OR(FRAGEN!$D$34=TRUE,FRAGEN!D44=TRUE),FRAGEN_L!A44,\"nichtgewaehlt\")","v":"nichtgewaehlt"}]
[{"$f":"IF(OR(FRAGEN!$D$34=TRUE,FRAGEN!D45=TRUE),FRAGEN_L!A45,\"nichtgewaehlt\")","v":"nichtgewaehlt"}]
[{"$f":"IF(OR(FRAGEN!$D$34=TRUE,FRAGEN!D46=TRUE),FRAGEN_L!A46,\"nichtgewaehlt\")","v":"nichtgewaehlt"}]
[]
[]
[{"$f":"IF(OR(FRAGEN!$D$48=TRUE,FRAGEN!D49=TRUE),FRAGEN_L!A49,\"nichtgewaehlt\")","v":"nichtgewaehlt"}]
[{"$f":"IF(OR(FRAGEN!$D$48=TRUE,FRAGEN!D50=TRUE),FRAGEN_L!A50,\"nichtgewaehlt\")","v":"nichtgewaehlt"}]
[{"$f":"IF(OR(FRAGEN!$D$48=TRUE,FRAGEN!D51=TRUE),FRAGEN_L!A51,\"nichtgewaehlt\")","v":"nichtgewaehlt"}]
[]
[{"$f":"IF(OR(FRAGEN!$D$52=TRUE,FRAGEN!D53=TRUE),FRAGEN_L!A53,\"nichtgewaehlt\")","v":"nichtgewaehlt"}]
[{"$f":"IF(OR(FRAGEN!$D$52=TRUE,FRAGEN!D54=TRUE),FRAGEN_L!A54,\"nichtgewaehlt\")","v":"nichtgewaehlt"}]
[{"$f":"IF(OR(FRAGEN!$D$52=TRUE,FRAGEN!D55=TRUE),FRAGEN_L!A55,\"nichtgewaehlt\")","v":"nichtgewaehlt"}]
[]
[{"$f":"IF(OR(FRAGEN!$D$56=TRUE,FRAGEN!D57=TRUE),FRAGEN_L!A57,\"nichtgewaehlt\")","v":"nichtgewaehlt"}]
[{"$f":"IF(OR(FRAGEN!$D$56=TRUE,FRAGEN!D58=TRUE),FRAGEN_L!A58,\"nichtgewaehlt\")","v":"nichtgewaehlt"}]
[{"$f":"IF(OR(FRAGEN!$D$56=TRUE,FRAGEN!D59=TRUE),FRAGEN_L!A59,\"nichtgewaehlt\")","v":"nichtgewaehlt"}]
[{"$f":"IF(OR(FRAGEN!$D$56=TRUE,FRAGEN!D60=TRUE),FRAGEN_L!A60,\"nichtgewaehlt\")","v":"nichtgewaehlt"}]
[]
[]
[]
[]
[{"$f":"IF(OR(FRAGEN!$D$64=TRUE,FRAGEN!D65=TRUE),FRAGEN_L!A65,\"nichtgewaehlt\")","v":"nichtgewaehlt"}]
[{"$f":"IF(OR(FRAGEN!$D$64=TRUE,FRAGEN!D66=TRUE),FRAGEN_L!A66,\"nichtgewaehlt\")","v":"nichtgewaehlt"}]
[{"$f":"IF(OR(FRAGEN!$D$64=TRUE,FRAGEN!D67=TRUE),FRAGEN_L!A67,\"nichtgewaehlt\")","v":"nichtgewaehlt"}]
[]
[]
[{"$f":"IF(OR(FRAGEN!$D$69=TRUE,FRAGEN!D70),FRAGEN_L!A70,\"nichtgewaehlt\")","v":"nichtgewaehlt"}]
[{"$f":"IF(OR(FRAGEN!$D$69=TRUE,FRAGEN!D71),FRAGEN_L!A71,\"nichtgewaehlt\")","v":"nichtgewaehlt"}]
[{"$f":"IF(OR(FRAGEN!$D$69=TRUE,FRAGEN!D72),FRAGEN_L!A72,\"nichtgewaehlt\")","v":"nichtgewaehlt"}]
[{"$f":"IF(OR(FRAGEN!$D$69=TRUE,FRAGEN!D73),FRAGEN_L!A73,\"nichtgewaehlt\")","v":"nichtgewaehlt"}]
[]
[{"$f":"IF(OR(FRAGEN!$D$74=TRUE,FRAGEN!D75=TRUE),FRAGEN_L!A75,\"nichtgewaehlt\")","v":"nichtgewaehlt"}]
[{"$f":"IF(OR(FRAGEN!$D$74=TRUE,FRAGEN!D76=TRUE),FRAGEN_L!A76,\"nichtgewaehlt\")","v":"nichtgewaehlt"}]
[{"$f":"IF(OR(FRAGEN!$D$74=TRUE,FRAGEN!D77=TRUE),FRAGEN_L!A77,\"nichtgewaehlt\")","v":"nichtgewaehlt"}]
[{"$f":"IF(OR(FRAGEN!$D$74=TRUE,FRAGEN!D78=TRUE),FRAGEN_L!A78,\"nichtgewaehlt\")","v":"nichtgewaehlt"}]
[{"$f":"IF(OR(FRAGEN!$D$74=TRUE,FRAGEN!D79=TRUE),FRAGEN_L!A79,\"nichtgewaehlt\")","v":"nichtgewaehlt"}]
[]
[]
[{"$f":"IF(OR(FRAGEN!$D$81=TRUE,FRAGEN!D82=TRUE),FRAGEN_L!A82,\"nichtgewaehlt\")","v":"nichtgewaehlt"}]
[{"$f":"IF(OR(FRAGEN!$D$81=TRUE,FRAGEN!D83=TRUE),FRAGEN_L!A83,\"nichtgewaehlt\")","v":"nichtgewaehlt"}]
[{"$f":"IF(OR(FRAGEN!$D$81=TRUE,FRAGEN!D84=TRUE),FRAGEN_L!A84,\"nichtgewaehlt\")","v":"nichtgewaehlt"}]
[{"$f":"IF(OR(FRAGEN!$D$81=TRUE,FRAGEN!D85=TRUE),FRAGEN_L!A85,\"nichtgewaehlt\")","v":"nichtgewaehlt"}]
[]
[]
[]
[]
[{"$f":"IF(OR(FRAGEN!$D$88=TRUE,FRAGEN!D90=TRUE),FRAGEN_L!A89,\"nichtgewaehlt\")","v":"nichtgewaehlt"}]
[{"$f":"IF(OR(FRAGEN!$D$88=TRUE,FRAGEN!D90=TRUE),FRAGEN_L!A90,\"nichtgewaehlt\")","v":"nichtgewaehlt"}]
[{"$f":"IF(OR(FRAGEN!$D$88=TRUE,FRAGEN!D91=TRUE),FRAGEN_L!A91,\"nichtgewaehlt\")","v":"nichtgewaehlt"}]
[{"$f":"IF(OR(FRAGEN!$D$88=TRUE,FRAGEN!D92=TRUE),FRAGEN_L!A92,\"nichtgewaehlt\")","v":"nichtgewaehlt"}]
[{"$f":"IF(OR(FRAGEN!$D$88=TRUE,FRAGEN!D93=TRUE),FRAGEN_L!A93,\"nichtgewaehlt\")","v":"nichtgewaehlt"}]
[{"$f":"IF(OR(FRAGEN!$D$88=TRUE,FRAGEN!D94=TRUE),FRAGEN_L!A94,\"nichtgewaehlt\")","v":"nichtgewaehlt"}]
[{"$f":"IF(OR(FRAGEN!$D$88=TRUE,FRAGEN!D95=TRUE),FRAGEN_L!A95,\"nichtgewaehlt\")","v":"nichtgewaehlt"}]
[{"$f":"IF(OR(FRAGEN!$D$88=TRUE,FRAGEN!D96=TRUE),FRAGEN_L!A96,\"nichtgewaehlt\")","v":"nichtgewaehlt"}]
[{"$f":"IF(OR(FRAGEN!$D$88=TRUE,FRAGEN!D97=TRUE),FRAGEN_L!A97,\"nichtgewaehlt\")","v":"nichtgewaehlt"}]
[{"$f":"IF(OR(FRAGEN!$D$88=TRUE,FRAGEN!D98=TRUE),FRAGEN_L!A98,\"nichtgewaehlt\")","v":"nichtgewaehlt"}]
[{"$f":"IF(OR(FRAGEN!$D$88=TRUE,FRAGEN!D99=TRUE),FRAGEN_L!A99,\"nichtgewaehlt\")","v":"nichtgewaehlt"}]
[{"$f":"IF(OR(FRAGEN!$D$88=TRUE,FRAGEN!D100=TRUE),FRAGEN_L!A100,\"nichtgewaehlt\")","v":"nichtgewaehlt"}]
[{"$f":"IF(OR(FRAGEN!$D$88=TRUE,FRAGEN!D101=TRUE),FRAGEN_L!A101,\"nichtgewaehlt\")","v":"nichtgewaehlt"}]
[{"$f":"IF(OR(FRAGEN!$D$88=TRUE,FRAGEN!D102=TRUE),FRAGEN_L!A102,\"nichtgewaehlt\")","v":"nichtgewaehlt"}]
[{"$f":"IF(OR(FRAGEN!$D$88=TRUE,FRAGEN!D103=TRUE),FRAGEN_L!A103,\"nichtgewaehlt\")","v":"nichtgewaehlt"}]
[{"$f":"IF(OR(FRAGEN!$D$88=TRUE,FRAGEN!D104=TRUE),FRAGEN_L!A104,\"nichtgewaehlt\")","v":"nichtgewaehlt"}]
[{"$f":"IF(OR(FRAGEN!$D$88=TRUE,FRAGEN!D105=TRUE),FRAGEN_L!A105,\"nichtgewaehlt\")","v":"nichtgewaehlt"}]
[{"$f":"IF(OR(FRAGEN!$D$88=TRUE,FRAGEN!D106=TRUE),FRAGEN_L!A106,\"nichtgewaehlt\")","v":"nichtgewaehlt"}]
[{"$f":"IF(OR(FRAGEN!$D$88=TRUE,FRAGEN!D107=TRUE),FRAGEN_L!A107,\"nichtgewaehlt\")","v":"nichtgewaehlt"}]
[{"$f":"IF(OR(FRAGEN!$D$88=TRUE,FRAGEN!D108=TRUE),FRAGEN_L!A108,\"nichtgewaehlt\")","v":"nichtgewaehlt"}]
["Ende"]

{"sheet":"ERGEBNISSE_S","index":15,"n_rows":109,"n_cols":5,"rows_kept":109,"cut":false,"hidden":false,"merged":[]}
[]
[{"$f":"IF(OR(FRAGEN!$D$2=TRUE, FRAGEN!$D$3=TRUE),FRAGEN!$B$3,\"leer\")","v":"leer"}]
[{"$f":"IF(OR(FRAGEN!$D$2=TRUE, FRAGEN!$D$4=TRUE),FRAGEN!$B$4,\"leer\")","v":"leer"}]
[{"$f":"IF(OR(FRAGEN!$D$2=TRUE, FRAGEN!$D$5=TRUE),FRAGEN!$B$5,\"leer\")","v":"leer"}]
[{"$f":"IF(OR(FRAGEN!$D$2=TRUE, FRAGEN!$D$6=TRUE),FRAGEN!$B$6,\"leer\")","v":"leer"}]
[{"$f":"IF(OR(FRAGEN!$D$2=TRUE, FRAGEN!$D$7=TRUE),FRAGEN!$B$7,\"leer\")","v":"leer"}]
[]
[{"$f":"IF(OR(FRAGEN!$D$8=TRUE,FRAGEN!$D$9=TRUE),FRAGEN!$B$9,\"leer\")","v":"leer"}]
[{"$f":"IF(OR(FRAGEN!$D$8=TRUE,FRAGEN!$D$10=TRUE),FRAGEN!$B$10,\"leer\")","v":"leer"}]
[{"$f":"IF(OR(FRAGEN!$D$8=TRUE,FRAGEN!$D$11=TRUE),FRAGEN!$B$11,\"leer\")","v":"leer"}]
[{"$f":"IF(OR(FRAGEN!$D$8=TRUE,FRAGEN!$D$12=TRUE),FRAGEN!$B$12,\"leer\")","v":"leer"}]
[]
[]
[{"$f":"IF(OR(FRAGEN!$D$14=TRUE,FRAGEN!$D$15=TRUE),FRAGEN!$B$15,\"leer\")","v":"leer"}]
[{"$f":"IF(OR(FRAGEN!$D$14=TRUE,FRAGEN!$D$16=TRUE),FRAGEN!$B$16,\"leer\")","v":"leer"}]
[{"$f":"IF(OR(FRAGEN!$D$14=TRUE,FRAGEN!$D$17=TRUE),FRAGEN!$B$17,\"leer\")","v":"leer"}]
[{"$f":"IF(OR(FRAGEN!$D$14=TRUE,FRAGEN!$D$18=TRUE),FRAGEN!$B$18,\"leer\")","v":"leer"}]
[{"$f":"IF(OR(FRAGEN!$D$14=TRUE,FRAGEN!$D$19=TRUE),FRAGEN!$B$19,\"leer\")","v":"leer"}]
[{"$f":"IF(OR(FRAGEN!$D$14=TRUE,FRAGEN!$D$20=TRUE),FRAGEN!$B$20,\"leer\")","v":"leer"}]
[]
[{"$f":"IF(OR(FRAGEN!$D$21=TRUE,FRAGEN!$D$22=TRUE),FRAGEN!$B$22,\"leer\")","v":"leer"}]
[{"$f":"IF(OR(FRAGEN!$D$21=TRUE,FRAGEN!$D$23=TRUE),FRAGEN!$B$23,\"leer\")","v":"leer"}]
[{"$f":"IF(OR(FRAGEN!$D$21=TRUE,FRAGEN!$D$24=TRUE),FRAGEN!$B$24,\"leer\")","v":"leer"}]
[{"$f":"IF(OR(FRAGEN!$D$21=TRUE,FRAGEN!$D$25=TRUE),FRAGEN!$B$25,\"leer\")","v":"leer"}]
[{"$f":"IF(OR(FRAGEN!$D$21=TRUE,FRAGEN!$D$26=TRUE),FRAGEN!$B$26,\"leer\")","v":"leer"}]
[]
[]
[]
[]
[{"$f":"IF(OR(FRAGEN!$D$28=TRUE,FRAGEN!$D$31=TRUE),FRAGEN!$B$31,\"leer\")","v":"leer"}]
[{"$f":"IF(OR(FRAGEN!$D$28=TRUE,FRAGEN!$D$32=TRUE),FRAGEN!$B$32,\"leer\")","v":"leer"}]
[{"$f":"IF(OR(FRAGEN!$D$28=TRUE,FRAGEN!$D$33=TRUE),FRAGEN!$B$33,\"leer\")","v":"leer"}]
[{"$f":"IF(OR(FRAGEN!$D$28=TRUE,FRAGEN!$D$34=TRUE),FRAGEN!$B$34,\"leer\")","v":"leer"}]
[{"$f":"IF(OR(FRAGEN!$D$28=TRUE,FRAGEN!$D$35=TRUE),FRAGEN!$B$35,\"leer\")","v":"leer"}]
[{"$f":"IF(OR(FRAGEN!$D$34=TRUE,FRAGEN!$D$36=TRUE),FRAGEN!$B$36,\"leer\")","v":"leer"}]
[{"$f":"IF(OR(FRAGEN!$D$34=TRUE,FRAGEN!$D$37=TRUE),FRAGEN!$B$37,\"leer\")","v":"leer"}]
[{"$f":"IF(OR(FRAGEN!$D$34=TRUE,FRAGEN!$D$38=TRUE),FRAGEN!$B$38,\"leer\")","v":"leer"}]
[{"$f":"IF(OR(FRAGEN!$D$34=TRUE,FRAGEN!$D$39=TRUE),FRAGEN!$B$39,\"leer\")","v":"leer"}]
[{"$f":"IF(OR(FRAGEN!$D$34=TRUE,FRAGEN!$D$40=TRUE),FRAGEN!$B$40,\"leer\")","v":"leer"}]
[{"$f":"IF(OR(FRAGEN!$D$34=TRUE,FRAGEN!$D$41=TRUE),FRAGEN!$B$41,\"leer\")","v":"leer"}]
[{"$f":"IF(OR(FRAGEN!$D$34=TRUE,FRAGEN!$D$42=TRUE),FRAGEN!$B$42,\"leer\")","v":"leer"}]
[{"$f":"IF(OR(FRAGEN!$D$34=TRUE,FRAGEN!$D$43=TRUE),FRAGEN!$B$43,\"leer\")","v":"leer"}]
[{"$f":"IF(OR(FRAGEN!$D$34=TRUE,FRAGEN!$D$44=TRUE),FRAGEN!$B$44,\"leer\")","v":"leer"}]
[{"$f":"IF(OR(FRAGEN!$D$34=TRUE,FRAGEN!$D$45=TRUE),FRAGEN!$B$45,\"leer\")","v":"leer"}]
[{"$f":"IF(OR(FRAGEN!$D$34=TRUE,FRAGEN!$D$46=TRUE),FRAGEN!$B$46,\"leer\")","v":"leer"}]
[]
[]
[{"$f":"IF(OR(FRAGEN!$D$48=TRUE,FRAGEN!$D$49=TRUE),FRAGEN!$B$49,\"leer\")","v":"leer"}]
[{"$f":"IF(OR(FRAGEN!$D$48=TRUE,FRAGEN!$D$50=TRUE),FRAGEN!$B$50,\"leer\")","v":"leer"}]
[{"$f":"IF(OR(FRAGEN!$D$48=TRUE,FRAGEN!$D$51=TRUE),FRAGEN!$B$51,\"leer\")","v":"leer"}]
[]
[{"$f":"IF(OR(FRAGEN!$D$52=TRUE,FRAGEN!$D$53=TRUE),FRAGEN!$B$53,\"leer\")","v":"leer"}]
[{"$f":"IF(OR(FRAGEN!$D$52=TRUE,FRAGEN!$D$54=TRUE),FRAGEN!$B$54,\"leer\")","v":"leer"}]
[{"$f":"IF(OR(FRAGEN!$D$52=TRUE,FRAGEN!$D$55=TRUE),FRAGEN!$B$55,\"leer\")","v":"leer"}]
[]
[{"$f":"IF(OR(FRAGEN!$D$56=TRUE,FRAGEN!$D$57=TRUE),FRAGEN!$B$57,\"leer\")","v":"leer"}]
[{"$f":"IF(OR(FRAGEN!$D$56=TRUE,FRAGEN!$D$58=TRUE),FRAGEN!$B$58,\"leer\")","v":"leer"}]
[{"$f":"IF(OR(FRAGEN!$D$56=TRUE,FRAGEN!$D$59=TRUE),FRAGEN!$B$59,\"leer\")","v":"leer"}]
[{"$f":"IF(OR(FRAGEN!$D$56=TRUE,FRAGEN!$D$60=TRUE),FRAGEN!$B$60,\"leer\")","v":"leer"}]
[]
[]
[]
[]
[{"$f":"IF(OR(FRAGEN!$D$64=TRUE,FRAGEN!$D$65=TRUE),FRAGEN!$B$65,\"leer\")","v":"leer"}]
[{"$f":"IF(OR(FRAGEN!$D$64=TRUE,FRAGEN!$D$66=TRUE),FRAGEN!$B$66,\"leer\")","v":"leer"}]
[{"$f":"IF(OR(FRAGEN!$D$64=TRUE,FRAGEN!$D$67=TRUE),FRAGEN!$B$67,\"leer\")","v":"leer"}]
[]
[]
[{"$f":"IF(OR(FRAGEN!$D$69=TRUE,FRAGEN!$D$70=TRUE),FRAGEN!$B$70,\"leer\")","v":"leer"}]
[{"$f":"IF(OR(FRAGEN!$D$69=TRUE,FRAGEN!$D$71=TRUE),FRAGEN!$B$71,\"leer\")","v":"leer"}]
[{"$f":"IF(OR(FRAGEN!$D$69=TRUE,FRAGEN!$D$72=TRUE),FRAGEN!$B$72,\"leer\")","v":"leer"}]
[{"$f":"IF(OR(FRAGEN!$D$69=TRUE,FRAGEN!$D$73=TRUE),FRAGEN!$B$73,\"leer\")","v":"leer"}]
[]
[{"$f":"IF(OR(FRAGEN!$D$74=TRUE,FRAGEN!$D$75=TRUE),FRAGEN!$B$75,\"leer\")","v":"leer"}]
[{"$f":"IF(OR(FRAGEN!$D$74=TRUE,FRAGEN!$D$76=TRUE),FRAGEN!$B$76,\"leer\")","v":"leer"}]
[{"$f":"IF(OR(FRAGEN!$D$74=TRUE,FRAGEN!$D$77=TRUE),FRAGEN!$B$77,\"leer\")","v":"leer"}]
[{"$f":"IF(OR(FRAGEN!$D$74=TRUE,FRAGEN!$D$78=TRUE),FRAGEN!$B$78,\"leer\")","v":"leer"}]
[{"$f":"IF(OR(FRAGEN!$D$74=TRUE,FRAGEN!$D$79=TRUE),FRAGEN!$B$79,\"leer\")","v":"leer"}]
[]
[]
[{"$f":"IF(OR(FRAGEN!$D$81=TRUE,FRAGEN!$D$82=TRUE),FRAGEN!$B$82,\"leer\")","v":"leer"}]
[{"$f":"IF(OR(FRAGEN!$D$81=TRUE,FRAGEN!$D$83=TRUE),FRAGEN!$B$83,\"leer\")","v":"leer"}]
[{"$f":"IF(OR(FRAGEN!$D$81=TRUE,FRAGEN!$D$84=TRUE),FRAGEN!$B$84,\"leer\")","v":"leer"}]
[{"$f":"IF(OR(FRAGEN!$D$81=TRUE,FRAGEN!$D$85=TRUE),FRAGEN!$B$85,\"leer\")","v":"leer"}]
[]
[]
[]
[]
[{"$f":"IF(OR(FRAGEN!$D$88=TRUE,FRAGEN!$D$89=TRUE),FRAGEN!$B$89,\"leer\")","v":"leer"}]
[{"$f":"IF(OR(FRAGEN!$D$88=TRUE,FRAGEN!$D$90=TRUE),FRAGEN!$B$90,\"leer\")","v":"leer"}]
[{"$f":"IF(OR(FRAGEN!$D$88=TRUE,FRAGEN!$D$91=TRUE),FRAGEN!$B$91,\"leer\")","v":"leer"}]
[{"$f":"IF(OR(FRAGEN!$D$88=TRUE,FRAGEN!$D$92=TRUE),FRAGEN!$B$92,\"leer\")","v":"leer"}]
[{"$f":"IF(OR(FRAGEN!$D$88=TRUE,FRAGEN!$D$93=TRUE),FRAGEN!$B$93,\"leer\")","v":"leer"}]
[{"$f":"IF(OR(FRAGEN!$D$88=TRUE,FRAGEN!$D$94=TRUE),FRAGEN!$B$94,\"leer\")","v":"leer"}]
[{"$f":"IF(OR(FRAGEN!$D$88=TRUE,FRAGEN!$D$95=TRUE),FRAGEN!$B$95,\"leer\")","v":"leer"}]
[{"$f":"IF(OR(FRAGEN!$D$88=TRUE,FRAGEN!$D$96=TRUE),FRAGEN!$B$96,\"leer\")","v":"leer"}]
[{"$f":"IF(OR(FRAGEN!$D$88=TRUE,FRAGEN!$D$97=TRUE),FRAGEN!$B$97,\"leer\")","v":"leer"}]
[{"$f":"IF(OR(FRAGEN!$D$88=TRUE,FRAGEN!$D$98=TRUE),FRAGEN!$B$98,\"leer\")","v":"leer"}]
[{"$f":"IF(OR(FRAGEN!$D$88=TRUE,FRAGEN!$D$99=TRUE),FRAGEN!$B$99,\"leer\")","v":"leer"}]
[{"$f":"IF(OR(FRAGEN!$D$88=TRUE,FRAGEN!$D$100=TRUE),FRAGEN!$B$100,\"leer\")","v":"leer"}]
[{"$f":"IF(OR(FRAGEN!$D$88=TRUE,FRAGEN!$D$101=TRUE),FRAGEN!$B$101,\"leer\")","v":"leer"}]
[{"$f":"IF(OR(FRAGEN!$D$88=TRUE,FRAGEN!$D$102=TRUE),FRAGEN!$B$102,\"leer\")","v":"leer"}]
[{"$f":"IF(OR(FRAGEN!$D$88=TRUE,FRAGEN!$D$103=TRUE),FRAGEN!$B$103,\"leer\")","v":"leer"}]
[{"$f":"IF(OR(FRAGEN!$D$88=TRUE,FRAGEN!$D$104=TRUE),FRAGEN!$B$104,\"leer\")","v":"leer"}]
[{"$f":"IF(OR(FRAGEN!$D$88=TRUE,FRAGEN!$D$105=TRUE),FRAGEN!$B$105,\"leer\")","v":"leer"}]
[{"$f":"IF(OR(FRAGEN!$D$88=TRUE,FRAGEN!$D$106=TRUE),FRAGEN!$B$106,\"leer\")","v":"leer"}]
[{"$f":"IF(OR(FRAGEN!$D$88=TRUE,FRAGEN!$D$107=TRUE),FRAGEN!$B$107,\"leer\")","v":"leer"}]
[{"$f":"IF(OR(FRAGEN!$D$88=TRUE,FRAGEN!$D$108=TRUE),FRAGEN!$B$108,\"leer\")","v":"leer"}]
[null,5,5,1,5]

{"sheet":"ERGEBNISSE_H","index":16,"n_rows":110,"n_cols":10,"rows_kept":110,"cut":false,"hidden":false,"merged":[]}
[]
[{"$f":"IF(OR(FRAGEN!$D$2=TRUE,FRAGEN!D3=TRUE),FRAGEN_H!A3,\"nix\")","v":"nix"}]
[{"$f":"IF(OR(FRAGEN!$D$2=TRUE,FRAGEN!D4=TRUE),FRAGEN_H!A4,\"nix\")","v":"nix"}]
[{"$f":"IF(OR(FRAGEN!$D$2=TRUE,FRAGEN!D5=TRUE),FRAGEN_H!A5,\"nix\")","v":"nix"}]
[{"$f":"IF(OR(FRAGEN!$D$2=TRUE,FRAGEN!D6=TRUE),FRAGEN_H!A6,\"nix\")","v":"nix"}]
[{"$f":"IF(OR(FRAGEN!$D$2=TRUE,FRAGEN!D7=TRUE),FRAGEN_H!A7,\"nix\")","v":"nix"}]
[]
[{"$f":"IF(OR(FRAGEN!$D$8=TRUE,FRAGEN!D9=TRUE),FRAGEN_H!A9,\"nix\")","v":"nix"}]
[{"$f":"IF(OR(FRAGEN!$D$8=TRUE,FRAGEN!D10=TRUE),FRAGEN_H!A10,\"nix\")","v":"nix"}]
[{"$f":"IF(OR(FRAGEN!$D$8=TRUE,FRAGEN!D11=TRUE),FRAGEN_H!A11,\"nix\")","v":"nix"}]
[{"$f":"IF(OR(FRAGEN!$D$8=TRUE,FRAGEN!D12=TRUE),FRAGEN_H!A12,\"nix\")","v":"nix"}]
[]
[]
[{"$f":"IF(OR(FRAGEN!$D$14=TRUE,FRAGEN!D15=TRUE),FRAGEN_H!A15,\"nix\")","v":"nix"}]
[{"$f":"IF(OR(FRAGEN!$D$14=TRUE,FRAGEN!D16=TRUE),FRAGEN_H!A16,\"nix\")","v":"nix"}]
[{"$f":"IF(OR(FRAGEN!$D$14=TRUE,FRAGEN!D17=TRUE),FRAGEN_H!A17,\"nix\")","v":"nix"}]
[{"$f":"IF(OR(FRAGEN!$D$14=TRUE,FRAGEN!D18=TRUE),FRAGEN_H!A18,\"nix\")","v":"nix"}]
[{"$f":"IF(OR(FRAGEN!$D$14=TRUE,FRAGEN!D19=TRUE),FRAGEN_H!A19,\"nix\")","v":"nix"}]
[{"$f":"IF(OR(FRAGEN!$D$14=TRUE,FRAGEN!D20=TRUE),FRAGEN_H!A20,\"nix\")","v":"nix"}]
[]
[{"$f":"IF(OR(FRAGEN!$D$21=TRUE,FRAGEN!D22=TRUE),FRAGEN_H!A22,\"nix\")","v":"nix"}]
[{"$f":"IF(OR(FRAGEN!$D$21=TRUE,FRAGEN!D23=TRUE),FRAGEN_H!A23,\"nix\")","v":"nix"}]
[{"$f":"IF(OR(FRAGEN!$D$21=TRUE,FRAGEN!D24=TRUE),FRAGEN_H!A24,\"nix\")","v":"nix"}]
[{"$f":"IF(OR(FRAGEN!$D$21=TRUE,FRAGEN!D25=TRUE),FRAGEN_H!A25,\"nix\")","v":"nix"}]
[{"$f":"IF(OR(FRAGEN!$D$21=TRUE,FRAGEN!D26=TRUE),FRAGEN_H!A26,\"nix\")","v":"nix"}]
[]
[]
[]
[]
[{"$f":"IF(OR(FRAGEN!$D$28=TRUE,FRAGEN!D31=TRUE),FRAGEN_H!A31,\"nix\")","v":"nix"}]
[{"$f":"IF(OR(FRAGEN!$D$28=TRUE,FRAGEN!D32=TRUE),FRAGEN_H!A32,\"nix\")","v":"nix"}]
[{"$f":"IF(OR(FRAGEN!$D$28=TRUE,FRAGEN!D33=TRUE),FRAGEN_H!A33,\"nix\")","v":"nix"}]
[]
[{"$f":"IF(OR(FRAGEN!$D$34=TRUE,FRAGEN!D35=TRUE),FRAGEN_H!A35,\"nix\")","v":"nix"}]
[{"$f":"IF(OR(FRAGEN!$D$34=TRUE,FRAGEN!D36=TRUE),FRAGEN_H!A36,\"nix\")","v":"nix"}]
[{"$f":"IF(OR(FRAGEN!$D$34=TRUE,FRAGEN!D37=TRUE),FRAGEN_H!A37,\"nix\")","v":"nix"}]
[{"$f":"IF(OR(FRAGEN!$D$34=TRUE,FRAGEN!D38=TRUE),FRAGEN_H!A38,\"nix\")","v":"nix"}]
[{"$f":"IF(OR(FRAGEN!$D$34=TRUE,FRAGEN!D39=TRUE),FRAGEN_H!A39,\"nix\")","v":"nix"}]
[{"$f":"IF(OR(FRAGEN!$D$34=TRUE,FRAGEN!D40=TRUE),FRAGEN_H!A40,\"nix\")","v":"nix"}]
[{"$f":"IF(OR(FRAGEN!$D$34=TRUE,FRAGEN!D41=TRUE),FRAGEN_H!A41,\"nix\")","v":"nix"}]
[{"$f":"IF(OR(FRAGEN!$D$34=TRUE,FRAGEN!D42=TRUE),FRAGEN_H!A42,\"nix\")","v":"nix"}]
[{"$f":"IF(OR(FRAGEN!$D$34=TRUE,FRAGEN!D43=TRUE),FRAGEN_H!A43,\"nix\")","v":"nix"}]
[{"$f":"IF(OR(FRAGEN!$D$34=TRUE,FRAGEN!D44=TRUE),FRAGEN_H!A44,\"nix\")","v":"nix"}]
[{"$f":"IF(OR(FRAGEN!$D$34=TRUE,FRAGEN!D45=TRUE),FRAGEN_H!A45,\"nix\")","v":"nix"}]
[{"$f":"IF(OR(FRAGEN!$D$34=TRUE,FRAGEN!D46=TRUE),FRAGEN_H!A46,\"nix\")","v":"nix"}]
[]
[]
[{"$f":"IF(OR(FRAGEN!$D$48=TRUE,FRAGEN!D49=TRUE),FRAGEN_H!A49,\"nix\")","v":"nix"}]
[{"$f":"IF(OR(FRAGEN!$D$48=TRUE,FRAGEN!D50=TRUE),FRAGEN_H!A50,\"nix\")","v":"nix"}]
[{"$f":"IF(OR(FRAGEN!$D$48=TRUE,FRAGEN!D51=TRUE),FRAGEN_H!A51,\"nix\")","v":"nix"}]
[]
[{"$f":"IF(OR(FRAGEN!$D$52=TRUE,FRAGEN!D53=TRUE),FRAGEN_H!A53,\"nix\")","v":"nix"}]
[{"$f":"IF(OR(FRAGEN!$D$52=TRUE,FRAGEN!D54=TRUE),FRAGEN_H!A54,\"nix\")","v":"nix"}]
[{"$f":"IF(OR(FRAGEN!$D$52=TRUE,FRAGEN!D55=TRUE),FRAGEN_H!A55,\"nix\")","v":"nix"}]
[]
[{"$f":"IF(OR(FRAGEN!$D$56=TRUE,FRAGEN!D57=TRUE),FRAGEN_H!A57,\"nix\")","v":"nix"}]
[{"$f":"IF(OR(FRAGEN!$D$56=TRUE,FRAGEN!D58=TRUE),FRAGEN_H!A58,\"nix\")","v":"nix"}]
[{"$f":"IF(OR(FRAGEN!$D$56=TRUE,FRAGEN!D59=TRUE),FRAGEN_H!A59,\"nix\")","v":"nix"}]
[{"$f":"IF(OR(FRAGEN!$D$56=TRUE,FRAGEN!D60=TRUE),FRAGEN_H!A60,\"nix\")","v":"nix"}]
[]
[]
[]
[]
[{"$f":"IF(OR(FRAGEN!$D$64=TRUE,FRAGEN!D65=TRUE),FRAGEN_H!A65,\"nix\")","v":"nix"}]
[{"$f":"IF(OR(FRAGEN!$D$64=TRUE,FRAGEN!D66=TRUE),FRAGEN_H!A66,\"nix\")","v":"nix"}]
[{"$f":"IF(OR(FRAGEN!$D$64=TRUE,FRAGEN!D67=TRUE),FRAGEN_H!A67,\"nix\")","v":"nix"}]
[]
[]
[{"$f":"IF(OR(FRAGEN!$D$69=TRUE,FRAGEN!D70=TRUE),FRAGEN_H!A70,\"nix\")","v":"nix"}]
[{"$f":"IF(OR(FRAGEN!$D$69=TRUE,FRAGEN!D71=TRUE),FRAGEN_H!A71,\"nix\")","v":"nix"}]
[{"$f":"IF(OR(FRAGEN!$D$69=TRUE,FRAGEN!D72=TRUE),FRAGEN_H!A72,\"nix\")","v":"nix"}]
[{"$f":"IF(OR(FRAGEN!$D$69=TRUE,FRAGEN!D73=TRUE),FRAGEN_H!A73,\"nix\")","v":"nix"}]
[]
[{"$f":"IF(OR(FRAGEN!$D$74=TRUE,FRAGEN!D75=TRUE),FRAGEN_H!A75,\"nix\")","v":"nix"}]
[{"$f":"IF(OR(FRAGEN!$D$74=TRUE,FRAGEN!D76=TRUE),FRAGEN_H!A76,\"nix\")","v":"nix"}]
[{"$f":"IF(OR(FRAGEN!$D$74=TRUE,FRAGEN!D77=TRUE),FRAGEN_H!A77,\"nix\")","v":"nix"}]
[{"$f":"IF(OR(FRAGEN!$D$74=TRUE,FRAGEN!D78=TRUE),FRAGEN_H!A78,\"nix\")","v":"nix"}]
[{"$f":"IF(OR(FRAGEN!$D$74=TRUE,FRAGEN!D79=TRUE),FRAGEN_H!A79,\"nix\")","v":"nix"}]
[]
[]
[{"$f":"IF(OR(FRAGEN!$D$81=TRUE,FRAGEN!D82=TRUE),FRAGEN_H!A82,\"nix\")","v":"nix"}]
[{"$f":"IF(OR(FRAGEN!$D$81=TRUE,FRAGEN!D83=TRUE),FRAGEN_H!A83,\"nix\")","v":"nix"}]
[{"$f":"IF(OR(FRAGEN!$D$81=TRUE,FRAGEN!D84=TRUE),FRAGEN_H!A84,\"nix\")","v":"nix"}]
[{"$f":"IF(OR(FRAGEN!$D$81=TRUE,FRAGEN!D85=TRUE),FRAGEN_H!A85,\"nix\")","v":"nix"}]
[]
[]
[]
[]
[{"$f":"IF(OR(FRAGEN!$D$88=TRUE,FRAGEN!D90=TRUE),FRAGEN_H!A89,\"nix\")","v":"nix"}]
[{"$f":"IF(OR(FRAGEN!$D$88=TRUE,FRAGEN!D90=TRUE),FRAGEN_H!A90,\"nix\")","v":"nix"}]
[{"$f":"IF(OR(FRAGEN!$D$88=TRUE,FRAGEN!D91=TRUE),FRAGEN_H!A91,\"nix\")","v":"nix"}]
[{"$f":"IF(OR(FRAGEN!$D$88=TRUE,FRAGEN!D92=TRUE),FRAGEN_H!A92,\"nix\")","v":"nix"}]
[{"$f":"IF(OR(FRAGEN!$D$88=TRUE,FRAGEN!D93=TRUE),FRAGEN_H!A93,\"nix\")","v":"nix"}]
[{"$f":"IF(OR(FRAGEN!$D$88=TRUE,FRAGEN!D94=TRUE),FRAGEN_H!A94,\"nix\")","v":"nix"}]
[{"$f":"IF(OR(FRAGEN!$D$88=TRUE,FRAGEN!D95=TRUE),FRAGEN_H!A95,\"nix\")","v":"nix"}]
[{"$f":"IF(OR(FRAGEN!$D$88=TRUE,FRAGEN!D96=TRUE),FRAGEN_H!A96,\"nix\")","v":"nix"}]
[{"$f":"IF(OR(FRAGEN!$D$88=TRUE,FRAGEN!D97=TRUE),FRAGEN_H!A97,\"nix\")","v":"nix"}]
[{"$f":"IF(OR(FRAGEN!$D$88=TRUE,FRAGEN!D98=TRUE),FRAGEN_H!A98,\"nix\")","v":"nix"}]
[{"$f":"IF(OR(FRAGEN!$D$88=TRUE,FRAGEN!D99=TRUE),FRAGEN_H!A99,\"nix\")","v":"nix"}]
[{"$f":"IF(OR(FRAGEN!$D$88=TRUE,FRAGEN!D100=TRUE),FRAGEN_H!A100,\"nix\")","v":"nix"}]
[{"$f":"IF(OR(FRAGEN!$D$88=TRUE,FRAGEN!D101=TRUE),FRAGEN_H!A101,\"nix\")","v":"nix"}]
[{"$f":"IF(OR(FRAGEN!$D$88=TRUE,FRAGEN!D102=TRUE),FRAGEN_H!A102,\"nix\")","v":"nix"}]
[{"$f":"IF(OR(FRAGEN!$D$88=TRUE,FRAGEN!D103=TRUE),FRAGEN_H!A103,\"nix\")","v":"nix"}]
[{"$f":"IF(OR(FRAGEN!$D$88=TRUE,FRAGEN!D104=TRUE),FRAGEN_H!A104,\"nix\")","v":"nix"}]
[{"$f":"IF(OR(FRAGEN!$D$88=TRUE,FRAGEN!D105=TRUE),FRAGEN_H!A105,\"nix\")","v":"nix"}]
[{"$f":"IF(OR(FRAGEN!$D$88=TRUE,FRAGEN!D106=TRUE),FRAGEN_H!A106,\"nix\")","v":"nix"}]
[{"$f":"IF(OR(FRAGEN!$D$88=TRUE,FRAGEN!D107=TRUE),FRAGEN_H!A107,\"nix\")","v":"nix"}]
[{"$f":"IF(OR(FRAGEN!$D$88=TRUE,FRAGEN!D108=TRUE),FRAGEN_H!A108,\"nix\")","v":"nix"}]
[null,1,4,1,1,1,1,1,4,5]
[null,1]

{"sheet":"ERGEBNISSE_L","index":17,"n_rows":109,"n_cols":2,"rows_kept":109,"cut":false,"hidden":false,"merged":[]}
[]
[{"$f":"IF(OR(FRAGEN!$D$2=TRUE,FRAGEN!D3=TRUE),FRAGEN_L!A3,\"nichtgewaehlt\")","v":"nichtgewaehlt"}]
[{"$f":"IF(OR(FRAGEN!$D$2=TRUE,FRAGEN!D4=TRUE),FRAGEN_L!A4,\"nichtgewaehlt\")","v":"nichtgewaehlt"}]
[{"$f":"IF(OR(FRAGEN!$D$2=TRUE,FRAGEN!D5=TRUE),FRAGEN_L!A5,\"nichtgewaehlt\")","v":"nichtgewaehlt"}]
[{"$f":"IF(OR(FRAGEN!$D$2=TRUE,FRAGEN!D6=TRUE),FRAGEN_L!A6,\"nichtgewaehlt\")","v":"nichtgewaehlt"}]
[{"$f":"IF(OR(FRAGEN!$D$2=TRUE,FRAGEN!D7=TRUE),FRAGEN_L!A7,\"nichtgewaehlt\")","v":"nichtgewaehlt"}]
[]
[{"$f":"IF(OR(FRAGEN!$D$8=TRUE,FRAGEN!D9=TRUE),FRAGEN_L!A9,\"nichtgewaehlt\")","v":"nichtgewaehlt"}]
[{"$f":"IF(OR(FRAGEN!$D$8=TRUE,FRAGEN!D10=TRUE),FRAGEN_L!A10,\"nichtgewaehlt\")","v":"nichtgewaehlt"}]
[{"$f":"IF(OR(FRAGEN!$D$8=TRUE,FRAGEN!D11=TRUE),FRAGEN_L!A11,\"nichtgewaehlt\")","v":"nichtgewaehlt"}]
[{"$f":"IF(OR(FRAGEN!$D$8=TRUE,FRAGEN!D12=TRUE),FRAGEN_L!A12,\"nichtgewaehlt\")","v":"nichtgewaehlt"}]
[]
[]
[{"$f":"IF(OR(FRAGEN!$D$14=TRUE,FRAGEN!D15=TRUE),FRAGEN_L!A15,\"nichtgewaehlt\")","v":"nichtgewaehlt"}]
[{"$f":"IF(OR(FRAGEN!$D$14=TRUE,FRAGEN!D16=TRUE),FRAGEN_L!A16,\"nichtgewaehlt\")","v":"nichtgewaehlt"}]
[{"$f":"IF(OR(FRAGEN!$D$14=TRUE,FRAGEN!D17=TRUE),FRAGEN_L!A17,\"nichtgewaehlt\")","v":"nichtgewaehlt"}]
[{"$f":"IF(OR(FRAGEN!$D$14=TRUE,FRAGEN!D18=TRUE),FRAGEN_L!A18,\"nichtgewaehlt\")","v":"nichtgewaehlt"}]
[{"$f":"IF(OR(FRAGEN!$D$14=TRUE,FRAGEN!D19=TRUE),FRAGEN_L!A19,\"nichtgewaehlt\")","v":"nichtgewaehlt"}]
[{"$f":"IF(OR(FRAGEN!$D$14=TRUE,FRAGEN!D20=TRUE),FRAGEN_L!A20,\"nichtgewaehlt\")","v":"nichtgewaehlt"}]
[]
[{"$f":"IF(OR(FRAGEN!$D$21=TRUE,FRAGEN!D22=TRUE),FRAGEN_L!A22,\"nichtgewaehlt\")","v":"nichtgewaehlt"}]
[{"$f":"IF(OR(FRAGEN!$D$21=TRUE,FRAGEN!D23=TRUE),FRAGEN_L!A23,\"nichtgewaehlt\")","v":"nichtgewaehlt"}]
[{"$f":"IF(OR(FRAGEN!$D$21=TRUE,FRAGEN!D24=TRUE),FRAGEN_L!A24,\"nichtgewaehlt\")","v":"nichtgewaehlt"}]
[{"$f":"IF(OR(FRAGEN!$D$21=TRUE,FRAGEN!D25=TRUE),FRAGEN_L!A25,\"nichtgewaehlt\")","v":"nichtgewaehlt"}]
[{"$f":"IF(OR(FRAGEN!$D$21=TRUE,FRAGEN!D26=TRUE),FRAGEN_L!A26,\"nichtgewaehlt\")","v":"nichtgewaehlt"}]
[]
[]
[]
[]
[{"$f":"IF(OR(FRAGEN!$D$28=TRUE,FRAGEN!D31=TRUE),FRAGEN_L!A31,\"nichtgewaehlt\")","v":"nichtgewaehlt"}]
[{"$f":"IF(OR(FRAGEN!$D$28=TRUE,FRAGEN!D32=TRUE),FRAGEN_L!A32,\"nichtgewaehlt\")","v":"nichtgewaehlt"}]
[{"$f":"IF(OR(FRAGEN!$D$28=TRUE,FRAGEN!D33=TRUE),FRAGEN_L!A33,\"nichtgewaehlt\")","v":"nichtgewaehlt"}]
[]
[{"$f":"IF(OR(FRAGEN!$D$34=TRUE,FRAGEN!D35=TRUE),FRAGEN_L!A35,\"nichtgewaehlt\")","v":"nichtgewaehlt"}]
[{"$f":"IF(OR(FRAGEN!$D$34=TRUE,FRAGEN!D36=TRUE),FRAGEN_L!A36,\"nichtgewaehlt\")","v":"nichtgewaehlt"}]
[{"$f":"IF(OR(FRAGEN!$D$34=TRUE,FRAGEN!D37=TRUE),FRAGEN_L!A37,\"nichtgewaehlt\")","v":"nichtgewaehlt"}]
[{"$f":"IF(OR(FRAGEN!$D$34=TRUE,FRAGEN!D38=TRUE),FRAGEN_L!A38,\"nichtgewaehlt\")","v":"nichtgewaehlt"}]
[{"$f":"IF(OR(FRAGEN!$D$34=TRUE,FRAGEN!D39=TRUE),FRAGEN_L!A39,\"nichtgewaehlt\")","v":"nichtgewaehlt"}]
[{"$f":"IF(OR(FRAGEN!$D$34=TRUE,FRAGEN!D40=TRUE),FRAGEN_L!A40,\"nichtgewaehlt\")","v":"nichtgewaehlt"}]
[{"$f":"IF(OR(FRAGEN!$D$34=TRUE,FRAGEN!D41=TRUE),FRAGEN_L!A41,\"nichtgewaehlt\")","v":"nichtgewaehlt"}]
[{"$f":"IF(OR(FRAGEN!$D$34=TRUE,FRAGEN!D42=TRUE),FRAGEN_L!A42,\"nichtgewaehlt\")","v":"nichtgewaehlt"}]
[{"$f":"IF(OR(FRAGEN!$D$34=TRUE,FRAGEN!D43=TRUE),FRAGEN_L!A43,\"nichtgewaehlt\")","v":"nichtgewaehlt"}]
[{"$f":"IF(OR(FRAGEN!$D$34=TRUE,FRAGEN!D44=TRUE),FRAGEN_L!A44,\"nichtgewaehlt\")","v":"nichtgewaehlt"}]
[{"$f":"IF(OR(FRAGEN!$D$34=TRUE,FRAGEN!D45=TRUE),FRAGEN_L!A45,\"nichtgewaehlt\")","v":"nichtgewaehlt"}]
[{"$f":"IF(OR(FRAGEN!$D$34=TRUE,FRAGEN!D46=TRUE),FRAGEN_L!A46,\"nichtgewaehlt\")","v":"nichtgewaehlt"}]
[]
[]
[{"$f":"IF(OR(FRAGEN!$D$48=TRUE,FRAGEN!D49=TRUE),FRAGEN_L!A49,\"nichtgewaehlt\")","v":"nichtgewaehlt"}]
[{"$f":"IF(OR(FRAGEN!$D$48=TRUE,FRAGEN!D50=TRUE),FRAGEN_L!A50,\"nichtgewaehlt\")","v":"nichtgewaehlt"}]
[{"$f":"IF(OR(FRAGEN!$D$48=TRUE,FRAGEN!D51=TRUE),FRAGEN_L!A51,\"nichtgewaehlt\")","v":"nichtgewaehlt"}]
[]
[{"$f":"IF(OR(FRAGEN!$D$52=TRUE,FRAGEN!D53=TRUE),FRAGEN_L!A53,\"nichtgewaehlt\")","v":"nichtgewaehlt"}]
[{"$f":"IF(OR(FRAGEN!$D$52=TRUE,FRAGEN!D54=TRUE),FRAGEN_L!A54,\"nichtgewaehlt\")","v":"nichtgewaehlt"}]
[{"$f":"IF(OR(FRAGEN!$D$52=TRUE,FRAGEN!D55=TRUE),FRAGEN_L!A55,\"nichtgewaehlt\")","v":"nichtgewaehlt"}]
[]
[{"$f":"IF(OR(FRAGEN!$D$56=TRUE,FRAGEN!D57=TRUE),FRAGEN_L!A57,\"nichtgewaehlt\")","v":"nichtgewaehlt"}]
[{"$f":"IF(OR(FRAGEN!$D$56=TRUE,FRAGEN!D58=TRUE),FRAGEN_L!A58,\"nichtgewaehlt\")","v":"nichtgewaehlt"}]
[{"$f":"IF(OR(FRAGEN!$D$56=TRUE,FRAGEN!D59=TRUE),FRAGEN_L!A59,\"nichtgewaehlt\")","v":"nichtgewaehlt"}]
[{"$f":"IF(OR(FRAGEN!$D$56=TRUE,FRAGEN!D60=TRUE),FRAGEN_L!A60,\"nichtgewaehlt\")","v":"nichtgewaehlt"}]
[]
[]
[]
[]
[{"$f":"IF(OR(FRAGEN!$D$64=TRUE,FRAGEN!D65=TRUE),FRAGEN_L!A65,\"nichtgewaehlt\")","v":"nichtgewaehlt"}]
[{"$f":"IF(OR(FRAGEN!$D$64=TRUE,FRAGEN!D66=TRUE),FRAGEN_L!A66,\"nichtgewaehlt\")","v":"nichtgewaehlt"}]
[{"$f":"IF(OR(FRAGEN!$D$64=TRUE,FRAGEN!D67=TRUE),FRAGEN_L!A67,\"nichtgewaehlt\")","v":"nichtgewaehlt"}]
[]
[]
[{"$f":"IF(OR(FRAGEN!$D$69=TRUE,FRAGEN!D70),FRAGEN_L!A70,\"nichtgewaehlt\")","v":"nichtgewaehlt"}]
[{"$f":"IF(OR(FRAGEN!$D$69=TRUE,FRAGEN!D71),FRAGEN_L!A71,\"nichtgewaehlt\")","v":"nichtgewaehlt"}]
[{"$f":"IF(OR(FRAGEN!$D$69=TRUE,FRAGEN!D72),FRAGEN_L!A72,\"nichtgewaehlt\")","v":"nichtgewaehlt"}]
[{"$f":"IF(OR(FRAGEN!$D$69=TRUE,FRAGEN!D73),FRAGEN_L!A73,\"nichtgewaehlt\")","v":"nichtgewaehlt"}]
[]
[{"$f":"IF(OR(FRAGEN!$D$74=TRUE,FRAGEN!D75=TRUE),FRAGEN_L!A75,\"nichtgewaehlt\")","v":"nichtgewaehlt"}]
[{"$f":"IF(OR(FRAGEN!$D$74=TRUE,FRAGEN!D76=TRUE),FRAGEN_L!A76,\"nichtgewaehlt\")","v":"nichtgewaehlt"}]
[{"$f":"IF(OR(FRAGEN!$D$74=TRUE,FRAGEN!D77=TRUE),FRAGEN_L!A77,\"nichtgewaehlt\")","v":"nichtgewaehlt"}]
[{"$f":"IF(OR(FRAGEN!$D$74=TRUE,FRAGEN!D78=TRUE),FRAGEN_L!A78,\"nichtgewaehlt\")","v":"nichtgewaehlt"}]
[{"$f":"IF(OR(FRAGEN!$D$74=TRUE,FRAGEN!D79=TRUE),FRAGEN_L!A79,\"nichtgewaehlt\")","v":"nichtgewaehlt"}]
[]
[]
[{"$f":"IF(OR(FRAGEN!$D$81=TRUE,FRAGEN!D82=TRUE),FRAGEN_L!A82,\"nichtgewaehlt\")","v":"nichtgewaehlt"}]
[{"$f":"IF(OR(FRAGEN!$D$81=TRUE,FRAGEN!D83=TRUE),FRAGEN_L!A83,\"nichtgewaehlt\")","v":"nichtgewaehlt"}]
[{"$f":"IF(OR(FRAGEN!$D$81=TRUE,FRAGEN!D84=TRUE),FRAGEN_L!A84,\"nichtgewaehlt\")","v":"nichtgewaehlt"}]
[{"$f":"IF(OR(FRAGEN!$D$81=TRUE,FRAGEN!D85=TRUE),FRAGEN_L!A85,\"nichtgewaehlt\")","v":"nichtgewaehlt"}]
[]
[]
[]
[]
[{"$f":"IF(OR(FRAGEN!$D$88=TRUE,FRAGEN!D90=TRUE),FRAGEN_L!A89,\"nichtgewaehlt\")","v":"nichtgewaehlt"}]
[{"$f":"IF(OR(FRAGEN!$D$88=TRUE,FRAGEN!D90=TRUE),FRAGEN_L!A90,\"nichtgewaehlt\")","v":"nichtgewaehlt"}]
[{"$f":"IF(OR(FRAGEN!$D$88=TRUE,FRAGEN!D91=TRUE),FRAGEN_L!A91,\"nichtgewaehlt\")","v":"nichtgewaehlt"}]
[{"$f":"IF(OR(FRAGEN!$D$88=TRUE,FRAGEN!D92=TRUE),FRAGEN_L!A92,\"nichtgewaehlt\")","v":"nichtgewaehlt"}]
[{"$f":"IF(OR(FRAGEN!$D$88=TRUE,FRAGEN!D93=TRUE),FRAGEN_L!A93,\"nichtgewaehlt\")","v":"nichtgewaehlt"}]
[{"$f":"IF(OR(FRAGEN!$D$88=TRUE,FRAGEN!D94=TRUE),FRAGEN_L!A94,\"nichtgewaehlt\")","v":"nichtgewaehlt"}]
[{"$f":"IF(OR(FRAGEN!$D$88=TRUE,FRAGEN!D95=TRUE),FRAGEN_L!A95,\"nichtgewaehlt\")","v":"nichtgewaehlt"}]
[{"$f":"IF(OR(FRAGEN!$D$88=TRUE,FRAGEN!D96=TRUE),FRAGEN_L!A96,\"nichtgewaehlt\")","v":"nichtgewaehlt"}]
[{"$f":"IF(OR(FRAGEN!$D$88=TRUE,FRAGEN!D97=TRUE),FRAGEN_L!A97,\"nichtgewaehlt\")","v":"nichtgewaehlt"}]
[{"$f":"IF(OR(FRAGEN!$D$88=TRUE,FRAGEN!D98=TRUE),FRAGEN_L!A98,\"nichtgewaehlt\")","v":"nichtgewaehlt"}]
[{"$f":"IF(OR(FRAGEN!$D$88=TRUE,FRAGEN!D99=TRUE),FRAGEN_L!A99,\"nichtgewaehlt\")","v":"nichtgewaehlt"}]
[{"$f":"IF(OR(FRAGEN!$D$88=TRUE,FRAGEN!D100=TRUE),FRAGEN_L!A100,\"nichtgewaehlt\")","v":"nichtgewaehlt"}]
[{"$f":"IF(OR(FRAGEN!$D$88=TRUE,FRAGEN!D101=TRUE),FRAGEN_L!A101,\"nichtgewaehlt\")","v":"nichtgewaehlt"}]
[{"$f":"IF(OR(FRAGEN!$D$88=TRUE,FRAGEN!D102=TRUE),FRAGEN_L!A102,\"nichtgewaehlt\")","v":"nichtgewaehlt"}]
[{"$f":"IF(OR(FRAGEN!$D$88=TRUE,FRAGEN!D103=TRUE),FRAGEN_L!A103,\"nichtgewaehlt\")","v":"nichtgewaehlt"}]
[{"$f":"IF(OR(FRAGEN!$D$88=TRUE,FRAGEN!D104=TRUE),FRAGEN_L!A104,\"nichtgewaehlt\")","v":"nichtgewaehlt"}]
[{"$f":"IF(OR(FRAGEN!$D$88=TRUE,FRAGEN!D105=TRUE),FRAGEN_L!A105,\"nichtgewaehlt\")","v":"nichtgewaehlt"}]
[{"$f":"IF(OR(FRAGEN!$D$88=TRUE,FRAGEN!D106=TRUE),FRAGEN_L!A106,\"nichtgewaehlt\")","v":"nichtgewaehlt"}]
[{"$f":"IF(OR(FRAGEN!$D$88=TRUE,FRAGEN!D107=TRUE),FRAGEN_L!A107,\"nichtgewaehlt\")","v":"nichtgewaehlt"}]
[{"$f":"IF(OR(FRAGEN!$D$88=TRUE,FRAGEN!D108=TRUE),FRAGEN_L!A108,\"nichtgewaehlt\")","v":"nichtgewaehlt"}]
[null,3]

{"sheet":"AUSWERTUNG_S","index":18,"n_rows":108,"n_cols":4,"rows_kept":108,"cut":false,"hidden":false,"merged":[]}
[null,null,null,{"$f":"AVERAGE(IFERROR(B2:B6,\"\"))","v":{"$error":"#DIV/0!"}}]
[{"$f":"IF(OR(FRAGEN!$D$2=TRUE, FRAGEN!$D$3=TRUE),FRAGEN!$B$3,\"leer\")","v":"leer"},{"$f":"AVERAGE(ERGEBNISSE_S!B2:AK2)","v":{"$error":"#DIV/0!"}}]
[{"$f":"IF(OR(FRAGEN!$D$2=TRUE, FRAGEN!$D$4=TRUE),FRAGEN!$B$4,\"leer\")","v":"leer"},{"$f":"AVERAGE(ERGEBNISSE_S!B3:AK3)","v":{"$error":"#DIV/0!"}}]
[{"$f":"IF(OR(FRAGEN!$D$2=TRUE, FRAGEN!$D$5=TRUE),FRAGEN!$B$5,\"leer\")","v":"leer"},{"$f":"AVERAGE(ERGEBNISSE_S!B4:AK4)","v":{"$error":"#DIV/0!"}}]
[{"$f":"IF(OR(FRAGEN!$D$2=TRUE, FRAGEN!$D$6=TRUE),FRAGEN!$B$6,\"leer\")","v":"leer"},{"$f":"AVERAGE(ERGEBNISSE_S!B5:AK5)","v":{"$error":"#DIV/0!"}}]
[{"$f":"IF(OR(FRAGEN!$D$2=TRUE, FRAGEN!$D$7=TRUE),FRAGEN!$B$7,\"leer\")","v":"leer"},{"$f":"AVERAGE(ERGEBNISSE_S!B6:AK6)","v":{"$error":"#DIV/0!"}}]
[null,null,null,{"$f":"AVERAGE(IFERROR(B8:B11,\"\"))","v":{"$error":"#DIV/0!"}}]
[{"$f":"IF(OR(FRAGEN!$D$8=TRUE,FRAGEN!$D$9=TRUE),FRAGEN!$B$9,\"leer\")","v":"leer"},{"$f":"AVERAGE(ERGEBNISSE_S!B8:AK8)","v":{"$error":"#DIV/0!"}}]
[{"$f":"IF(OR(FRAGEN!$D$8=TRUE,FRAGEN!$D$10=TRUE),FRAGEN!$B$10,\"leer\")","v":"leer"},{"$f":"AVERAGE(ERGEBNISSE_S!B9:AK9)","v":{"$error":"#DIV/0!"}}]
[{"$f":"IF(OR(FRAGEN!$D$8=TRUE,FRAGEN!$D$11=TRUE),FRAGEN!$B$11,\"leer\")","v":"leer"},{"$f":"AVERAGE(ERGEBNISSE_S!B10:AK10)","v":{"$error":"#DIV/0!"}}]
[{"$f":"IF(OR(FRAGEN!$D$8=TRUE,FRAGEN!$D$12=TRUE),FRAGEN!$B$12,\"leer\")","v":"leer"},{"$f":"AVERAGE(ERGEBNISSE_S!B11:AK11)","v":{"$error":"#DIV/0!"}}]
[]
[null,null,null,{"$f":"AVERAGE(IFERROR(B14:B19,\"\"))","v":{"$error":"#DIV/0!"}}]
[{"$f":"IF(OR(FRAGEN!$D$14=TRUE,FRAGEN!$D$15=TRUE),FRAGEN!$B$15,\"leer\")","v":"leer"},{"$f":"AVERAGE(ERGEBNISSE_S!B14:AK14)","v":{"$error":"#DIV/0!"}}]
[{"$f":"IF(OR(FRAGEN!$D$14=TRUE,FRAGEN!$D$16=TRUE),FRAGEN!$B$16,\"leer\")","v":"leer"},{"$f":"AVERAGE(ERGEBNISSE_S!B15:AK15)","v":{"$error":"#DIV/0!"}}]
[{"$f":"IF(OR(FRAGEN!$D$14=TRUE,FRAGEN!$D$17=TRUE),FRAGEN!$B$17,\"leer\")","v":"leer"},{"$f":"AVERAGE(ERGEBNISSE_S!B16:AK16)","v":{"$error":"#DIV/0!"}}]
[{"$f":"IF(OR(FRAGEN!$D$14=TRUE,FRAGEN!$D$18=TRUE),FRAGEN!$B$18,\"leer\")","v":"leer"},{"$f":"AVERAGE(ERGEBNISSE_S!B17:AK17)","v":{"$error":"#DIV/0!"}}]
[{"$f":"IF(OR(FRAGEN!$D$14=TRUE,FRAGEN!$D$19=TRUE),FRAGEN!$B$19,\"leer\")","v":"leer"},{"$f":"AVERAGE(ERGEBNISSE_S!B18:AK18)","v":{"$error":"#DIV/0!"}}]
[{"$f":"IF(OR(FRAGEN!$D$14=TRUE,FRAGEN!$D$20=TRUE),FRAGEN!$B$20,\"leer\")","v":"leer"},{"$f":"AVERAGE(ERGEBNISSE_S!B19:AK19)","v":{"$error":"#DIV/0!"}}]
[null,null,null,{"$f":"AVERAGE(IFERROR(B21:B25,\"\"))","v":{"$error":"#DIV/0!"}}]
[{"$f":"IF(OR(FRAGEN!$D$21=TRUE,FRAGEN!$D$22=TRUE),FRAGEN!$B$22,\"leer\")","v":"leer"},{"$f":"AVERAGE(ERGEBNISSE_S!B21:AK21)","v":{"$error":"#DIV/0!"}}]
[{"$f":"IF(OR(FRAGEN!$D$21=TRUE,FRAGEN!$D$23=TRUE),FRAGEN!$B$23,\"leer\")","v":"leer"},{"$f":"AVERAGE(ERGEBNISSE_S!B22:AK22)","v":{"$error":"#DIV/0!"}}]
[{"$f":"IF(OR(FRAGEN!$D$21=TRUE,FRAGEN!$D$24=TRUE),FRAGEN!$B$24,\"leer\")","v":"leer"},{"$f":"AVERAGE(ERGEBNISSE_S!B23:AK23)","v":{"$error":"#DIV/0!"}}]
[{"$f":"IF(OR(FRAGEN!$D$21=TRUE,FRAGEN!$D$25=TRUE),FRAGEN!$B$25,\"leer\")","v":"leer"},{"$f":"AVERAGE(ERGEBNISSE_S!B24:AK24)","v":{"$error":"#DIV/0!"}}]
[{"$f":"IF(OR(FRAGEN!$D$21=TRUE,FRAGEN!$D$26=TRUE),FRAGEN!$B$26,\"leer\")","v":"leer"},{"$f":"AVERAGE(ERGEBNISSE_S!B25:AK25)","v":{"$error":"#DIV/0!"}}]
[]
[null,null,null,{"$f":"AVERAGE(IFERROR(B30:B32,\"\"))","v":{"$error":"#DIV/0!"}}]
[]
[]
[{"$f":"IF(OR(FRAGEN!$D$28=TRUE,FRAGEN!$D$31=TRUE),FRAGEN!$B$31,\"leer\")","v":"leer"},{"$f":"AVERAGE(ERGEBNISSE_S!B30:AK30)","v":{"$error":"#DIV/0!"}}]
[{"$f":"IF(OR(FRAGEN!$D$28=TRUE,FRAGEN!$D$32=TRUE),FRAGEN!$B$32,\"leer\")","v":"leer"},{"$f":"AVERAGE(ERGEBNISSE_S!B31:AK31)","v":{"$error":"#DIV/0!"}}]
[{"$f":"IF(OR(FRAGEN!$D$28=TRUE,FRAGEN!$D$33=TRUE),FRAGEN!$B$33,\"leer\")","v":"leer"},{"$f":"AVERAGE(ERGEBNISSE_S!B32:AK32)","v":{"$error":"#DIV/0!"}}]
[{"$f":"IF(OR(FRAGEN!$D$28=TRUE,FRAGEN!$D$34=TRUE),FRAGEN!$B$34,\"leer\")","v":"leer"},null,null,{"$f":"AVERAGE(IFERROR(B34:B45,\"\"))","v":{"$error":"#DIV/0!"}}]
[{"$f":"IF(OR(FRAGEN!$D$28=TRUE,FRAGEN!$D$35=TRUE),FRAGEN!$B$35,\"leer\")","v":"leer"},{"$f":"AVERAGE(ERGEBNISSE_S!B34:AK34)","v":{"$error":"#DIV/0!"}}]
[{"$f":"IF(OR(FRAGEN!$D$34=TRUE,FRAGEN!$D$36=TRUE),FRAGEN!$B$36,\"leer\")","v":"leer"},{"$f":"AVERAGE(ERGEBNISSE_S!B35:AK35)","v":{"$error":"#DIV/0!"}}]
[{"$f":"IF(OR(FRAGEN!$D$34=TRUE,FRAGEN!$D$37=TRUE),FRAGEN!$B$37,\"leer\")","v":"leer"},{"$f":"AVERAGE(ERGEBNISSE_S!B36:AK36)","v":{"$error":"#DIV/0!"}}]
[{"$f":"IF(OR(FRAGEN!$D$34=TRUE,FRAGEN!$D$38=TRUE),FRAGEN!$B$38,\"leer\")","v":"leer"},{"$f":"AVERAGE(ERGEBNISSE_S!B37:AK37)","v":{"$error":"#DIV/0!"}}]
[{"$f":"IF(OR(FRAGEN!$D$34=TRUE,FRAGEN!$D$39=TRUE),FRAGEN!$B$39,\"leer\")","v":"leer"},{"$f":"AVERAGE(ERGEBNISSE_S!B38:AK38)","v":{"$error":"#DIV/0!"}}]
[{"$f":"IF(OR(FRAGEN!$D$34=TRUE,FRAGEN!$D$40=TRUE),FRAGEN!$B$40,\"leer\")","v":"leer"},{"$f":"AVERAGE(ERGEBNISSE_S!B39:AK39)","v":{"$error":"#DIV/0!"}}]
[{"$f":"IF(OR(FRAGEN!$D$34=TRUE,FRAGEN!$D$41=TRUE),FRAGEN!$B$41,\"leer\")","v":"leer"},{"$f":"AVERAGE(ERGEBNISSE_S!B40:AK40)","v":{"$error":"#DIV/0!"}}]
[{"$f":"IF(OR(FRAGEN!$D$34=TRUE,FRAGEN!$D$42=TRUE),FRAGEN!$B$42,\"leer\")","v":"leer"},{"$f":"AVERAGE(ERGEBNISSE_S!B41:AK41)","v":{"$error":"#DIV/0!"}}]
[{"$f":"IF(OR(FRAGEN!$D$34=TRUE,FRAGEN!$D$43=TRUE),FRAGEN!$B$43,\"leer\")","v":"leer"},{"$f":"AVERAGE(ERGEBNISSE_S!B42:AK42)","v":{"$error":"#DIV/0!"}}]
[{"$f":"IF(OR(FRAGEN!$D$34=TRUE,FRAGEN!$D$44=TRUE),FRAGEN!$B$44,\"leer\")","v":"leer"},{"$f":"AVERAGE(ERGEBNISSE_S!B43:AK43)","v":{"$error":"#DIV/0!"}}]
[{"$f":"IF(OR(FRAGEN!$D$34=TRUE,FRAGEN!$D$45=TRUE),FRAGEN!$B$45,\"leer\")","v":"leer"},{"$f":"AVERAGE(ERGEBNISSE_S!B44:AK44)","v":{"$error":"#DIV/0!"}}]
[{"$f":"IF(OR(FRAGEN!$D$34=TRUE,FRAGEN!$D$46=TRUE),FRAGEN!$B$46,\"leer\")","v":"leer"},{"$f":"AVERAGE(ERGEBNISSE_S!B45:AK45)","v":{"$error":"#DIV/0!"}}]
[]
[null,null,null,{"$f":"AVERAGE(IFERROR(B48:B50,\"\"))","v":{"$error":"#DIV/0!"}}]
[{"$f":"IF(OR(FRAGEN!$D$48=TRUE,FRAGEN!$D$49=TRUE),FRAGEN!$B$49,\"leer\")","v":"leer"},{"$f":"AVERAGE(ERGEBNISSE_S!B48:AK48)","v":{"$error":"#DIV/0!"}}]
[{"$f":"IF(OR(FRAGEN!$D$48=TRUE,FRAGEN!$D$50=TRUE),FRAGEN!$B$50,\"leer\")","v":"leer"},{"$f":"AVERAGE(ERGEBNISSE_S!B49:AK49)","v":{"$error":"#DIV/0!"}}]
[{"$f":"IF(OR(FRAGEN!$D$48=TRUE,FRAGEN!$D$51=TRUE),FRAGEN!$B$51,\"leer\")","v":"leer"},{"$f":"AVERAGE(ERGEBNISSE_S!B50:AK50)","v":{"$error":"#DIV/0!"}}]
[null,null,null,{"$f":"AVERAGE(IFERROR(B52:B54,\"\"))","v":{"$error":"#DIV/0!"}}]
[{"$f":"IF(OR(FRAGEN!$D$52=TRUE,FRAGEN!$D$53=TRUE),FRAGEN!$B$53,\"leer\")","v":"leer"},{"$f":"AVERAGE(ERGEBNISSE_S!B52:AK52)","v":{"$error":"#DIV/0!"}}]
[{"$f":"IF(OR(FRAGEN!$D$52=TRUE,FRAGEN!$D$54=TRUE),FRAGEN!$B$54,\"leer\")","v":"leer"},{"$f":"AVERAGE(ERGEBNISSE_S!B53:AK53)","v":{"$error":"#DIV/0!"}}]
[{"$f":"IF(OR(FRAGEN!$D$52=TRUE,FRAGEN!$D$55=TRUE),FRAGEN!$B$55,\"leer\")","v":"leer"},{"$f":"AVERAGE(ERGEBNISSE_S!B54:AK54)","v":{"$error":"#DIV/0!"}}]
[null,null,null,{"$f":"AVERAGE(IFERROR(B56:B59,\"\"))","v":{"$error":"#DIV/0!"}}]
[{"$f":"IF(OR(FRAGEN!$D$56=TRUE,FRAGEN!$D$57=TRUE),FRAGEN!$B$57,\"leer\")","v":"leer"},{"$f":"AVERAGE(ERGEBNISSE_S!B56:AK56)","v":{"$error":"#DIV/0!"}}]
[{"$f":"IF(OR(FRAGEN!$D$56=TRUE,FRAGEN!$D$58=TRUE),FRAGEN!$B$58,\"leer\")","v":"leer"},{"$f":"AVERAGE(ERGEBNISSE_S!B57:AK57)","v":{"$error":"#DIV/0!"}}]
[{"$f":"IF(OR(FRAGEN!$D$56=TRUE,FRAGEN!$D$59=TRUE),FRAGEN!$B$59,\"leer\")","v":"leer"},{"$f":"AVERAGE(ERGEBNISSE_S!B58:AK58)","v":{"$error":"#DIV/0!"}}]
[{"$f":"IF(OR(FRAGEN!$D$56=TRUE,FRAGEN!$D$60=TRUE),FRAGEN!$B$60,\"leer\")","v":"leer"},{"$f":"AVERAGE(ERGEBNISSE_S!B59:AK59)","v":{"$error":"#DIV/0!"}}]
[]
[]
[]
[null,null,null,{"$f":"AVERAGE(IFERROR(B64:B66,\"\"))","v":{"$error":"#DIV/0!"}}]
[{"$f":"IF(OR(FRAGEN!$D$64=TRUE,FRAGEN!$D$65=TRUE),FRAGEN!$B$65,\"leer\")","v":"leer"},{"$f":"AVERAGE(ERGEBNISSE_S!B64:AK64)","v":{"$error":"#DIV/0!"}}]
[{"$f":"IF(OR(FRAGEN!$D$64=TRUE,FRAGEN!$D$66=TRUE),FRAGEN!$B$66,\"leer\")","v":"leer"},{"$f":"AVERAGE(ERGEBNISSE_S!B65:AK65)","v":{"$error":"#DIV/0!"}}]
[{"$f":"IF(OR(FRAGEN!$D$64=TRUE,FRAGEN!$D$67=TRUE),FRAGEN!$B$67,\"leer\")","v":"leer"},{"$f":"AVERAGE(ERGEBNISSE_S!B66:AK66)","v":{"$error":"#DIV/0!"}}]
[]
[null,null,null,{"$f":"AVERAGE(IFERROR(B69:B72,\"\"))","v":{"$error":"#DIV/0!"}}]
[{"$f":"IF(OR(FRAGEN!$D$69=TRUE,FRAGEN!$D$70=TRUE),FRAGEN!$B$70,\"leer\")","v":"leer"},{"$f":"AVERAGE(ERGEBNISSE_S!B69:AK69)","v":{"$error":"#DIV/0!"}}]
[{"$f":"IF(OR(FRAGEN!$D$69=TRUE,FRAGEN!$D$71=TRUE),FRAGEN!$B$71,\"leer\")","v":"leer"},{"$f":"AVERAGE(ERGEBNISSE_S!B70:AK70)","v":{"$error":"#DIV/0!"}}]
[{"$f":"IF(OR(FRAGEN!$D$69=TRUE,FRAGEN!$D$72=TRUE),FRAGEN!$B$72,\"leer\")","v":"leer"},{"$f":"AVERAGE(ERGEBNISSE_S!B71:AK71)","v":{"$error":"#DIV/0!"}}]
[{"$f":"IF(OR(FRAGEN!$D$69=TRUE,FRAGEN!$D$73=TRUE),FRAGEN!$B$73,\"leer\")","v":"leer"},{"$f":"AVERAGE(ERGEBNISSE_S!B72:AK72)","v":{"$error":"#DIV/0!"}}]
[null,null,null,{"$f":"AVERAGE(IFERROR(B74:B78,\"\"))","v":{"$error":"#DIV/0!"}}]
[{"$f":"IF(OR(FRAGEN!$D$74=TRUE,FRAGEN!$D$75=TRUE),FRAGEN!$B$75,\"leer\")","v":"leer"},{"$f":"AVERAGE(ERGEBNISSE_S!B74:AK74)","v":{"$error":"#DIV/0!"}}]
[{"$f":"IF(OR(FRAGEN!$D$74=TRUE,FRAGEN!$D$76=TRUE),FRAGEN!$B$76,\"leer\")","v":"leer"},{"$f":"AVERAGE(ERGEBNISSE_S!B75:AK75)","v":{"$error":"#DIV/0!"}}]
[{"$f":"IF(OR(FRAGEN!$D$74=TRUE,FRAGEN!$D$77=TRUE),FRAGEN!$B$77,\"leer\")","v":"leer"},{"$f":"AVERAGE(ERGEBNISSE_S!B76:AK76)","v":{"$error":"#DIV/0!"}}]
[{"$f":"IF(OR(FRAGEN!$D$74=TRUE,FRAGEN!$D$78=TRUE),FRAGEN!$B$78,\"leer\")","v":"leer"},{"$f":"AVERAGE(ERGEBNISSE_S!B77:AK77)","v":{"$error":"#DIV/0!"}}]
[{"$f":"IF(OR(FRAGEN!$D$74=TRUE,FRAGEN!$D$79=TRUE),FRAGEN!$B$79,\"leer\")","v":"leer"},{"$f":"AVERAGE(ERGEBNISSE_S!B78:AK78)","v":{"$error":"#DIV/0!"}}]
[]
[null,null,null,{"$f":"AVERAGE(IFERROR(B81:B84,\"\"))","v":{"$error":"#DIV/0!"}}]
[{"$f":"IF(OR(FRAGEN!$D$81=TRUE,FRAGEN!$D$82=TRUE),FRAGEN!$B$82,\"leer\")","v":"leer"},{"$f":"AVERAGE(ERGEBNISSE_S!B81:AK81)","v":{"$error":"#DIV/0!"}}]
[{"$f":"IF(OR(FRAGEN!$D$81=TRUE,FRAGEN!$D$83=TRUE),FRAGEN!$B$83,\"leer\")","v":"leer"},{"$f":"AVERAGE(ERGEBNISSE_S!B82:AK82)","v":{"$error":"#DIV/0!"}}]
[{"$f":"IF(OR(FRAGEN!$D$81=TRUE,FRAGEN!$D$84=TRUE),FRAGEN!$B$84,\"leer\")","v":"leer"},{"$f":"AVERAGE(ERGEBNISSE_S!B83:AK83)","v":{"$error":"#DIV/0!"}}]
[{"$f":"IF(OR(FRAGEN!$D$81=TRUE,FRAGEN!$D$85=TRUE),FRAGEN!$B$85,\"leer\")","v":"leer"},{"$f":"AVERAGE(ERGEBNISSE_S!B84:AK84)","v":{"$error":"#DIV/0!"}}]
[]
[]
[]
[null,null,null,{"$f":"AVERAGE(IFERROR(B89:B108,\"\"))","v":{"$error":"#DIV/0!"}}]
[{"$f":"IF(OR(FRAGEN!$D$88=TRUE,FRAGEN!$D$89=TRUE),FRAGEN!$B$89,\"leer\")","v":"leer"},{"$f":"AVERAGE(ERGEBNISSE_S!B89:AK89)","v":{"$error":"#DIV/0!"}}]
[{"$f":"IF(OR(FRAGEN!$D$88=TRUE,FRAGEN!$D$90=TRUE),FRAGEN!$B$90,\"leer\")","v":"leer"},{"$f":"AVERAGE(ERGEBNISSE_S!B90:AK90)","v":{"$error":"#DIV/0!"}}]
[{"$f":"IF(OR(FRAGEN!$D$88=TRUE,FRAGEN!$D$91=TRUE),FRAGEN!$B$91,\"leer\")","v":"leer"},{"$f":"AVERAGE(ERGEBNISSE_S!B91:AK91)","v":{"$error":"#DIV/0!"}}]
[{"$f":"IF(OR(FRAGEN!$D$88=TRUE,FRAGEN!$D$92=TRUE),FRAGEN!$B$92,\"leer\")","v":"leer"},{"$f":"AVERAGE(ERGEBNISSE_S!B92:AK92)","v":{"$error":"#DIV/0!"}}]
[{"$f":"IF(OR(FRAGEN!$D$88=TRUE,FRAGEN!$D$93=TRUE),FRAGEN!$B$93,\"leer\")","v":"leer"},{"$f":"AVERAGE(ERGEBNISSE_S!B93:AK93)","v":{"$error":"#DIV/0!"}}]
[{"$f":"IF(OR(FRAGEN!$D$88=TRUE,FRAGEN!$D$94=TRUE),FRAGEN!$B$94,\"leer\")","v":"leer"},{"$f":"AVERAGE(ERGEBNISSE_S!B94:AK94)","v":{"$error":"#DIV/0!"}}]
[{"$f":"IF(OR(FRAGEN!$D$88=TRUE,FRAGEN!$D$95=TRUE),FRAGEN!$B$95,\"leer\")","v":"leer"},{"$f":"AVERAGE(ERGEBNISSE_S!B95:AK95)","v":{"$error":"#DIV/0!"}}]
[{"$f":"IF(OR(FRAGEN!$D$88=TRUE,FRAGEN!$D$96=TRUE),FRAGEN!$B$96,\"leer\")","v":"leer"},{"$f":"AVERAGE(ERGEBNISSE_S!B96:AK96)","v":{"$error":"#DIV/0!"}}]
[{"$f":"IF(OR(FRAGEN!$D$88=TRUE,FRAGEN!$D$97=TRUE),FRAGEN!$B$97,\"leer\")","v":"leer"},{"$f":"AVERAGE(ERGEBNISSE_S!B97:AK97)","v":{"$error":"#DIV/0!"}}]
[{"$f":"IF(OR(FRAGEN!$D$88=TRUE,FRAGEN!$D$98=TRUE),FRAGEN!$B$98,\"leer\")","v":"leer"},{"$f":"AVERAGE(ERGEBNISSE_S!B98:AK98)","v":{"$error":"#DIV/0!"}}]
[{"$f":"IF(OR(FRAGEN!$D$88=TRUE,FRAGEN!$D$99=TRUE),FRAGEN!$B$99,\"leer\")","v":"leer"},{"$f":"AVERAGE(ERGEBNISSE_S!B99:AK99)","v":{"$error":"#DIV/0!"}}]
[{"$f":"IF(OR(FRAGEN!$D$88=TRUE,FRAGEN!$D$100=TRUE),FRAGEN!$B$100,\"leer\")","v":"leer"},{"$f":"AVERAGE(ERGEBNISSE_S!B100:AK100)","v":{"$error":"#DIV/0!"}}]
[{"$f":"IF(OR(FRAGEN!$D$88=TRUE,FRAGEN!$D$101=TRUE),FRAGEN!$B$101,\"leer\")","v":"leer"},{"$f":"AVERAGE(ERGEBNISSE_S!B101:AK101)","v":{"$error":"#DIV/0!"}}]
[{"$f":"IF(OR(FRAGEN!$D$88=TRUE,FRAGEN!$D$102=TRUE),FRAGEN!$B$102,\"leer\")","v":"leer"},{"$f":"AVERAGE(ERGEBNISSE_S!B102:AK102)","v":{"$error":"#DIV/0!"}}]
[{"$f":"IF(OR(FRAGEN!$D$88=TRUE,FRAGEN!$D$103=TRUE),FRAGEN!$B$103,\"leer\")","v":"leer"},{"$f":"AVERAGE(ERGEBNISSE_S!B103:AK103)","v":{"$error":"#DIV/0!"}}]
[{"$f":"IF(OR(FRAGEN!$D$88=TRUE,FRAGEN!$D$104=TRUE),FRAGEN!$B$104,\"leer\")","v":"leer"},{"$f":"AVERAGE(ERGEBNISSE_S!B104:AK104)","v":{"$error":"#DIV/0!"}}]
[{"$f":"IF(OR(FRAGEN!$D$88=TRUE,FRAGEN!$D$105=TRUE),FRAGEN!$B$105,\"leer\")","v":"leer"},{"$f":"AVERAGE(ERGEBNISSE_S!B105:AK105)","v":{"$error":"#DIV/0!"}}]
[{"$f":"IF(OR(FRAGEN!$D$88=TRUE,FRAGEN!$D$106=TRUE),FRAGEN!$B$106,\"leer\")","v":"leer"},{"$f":"AVERAGE(ERGEBNISSE_S!B106:AK106)","v":{"$error":"#DIV/0!"}}]
[{"$f":"IF(OR(FRAGEN!$D$88=TRUE,FRAGEN!$D$107=TRUE),FRAGEN!$B$107,\"leer\")","v":"leer"},{"$f":"AVERAGE(ERGEBNISSE_S!B107:AK107)","v":{"$error":"#DIV/0!"}}]
[{"$f":"IF(OR(FRAGEN!$D$88=TRUE,FRAGEN!$D$108=TRUE),FRAGEN!$B$108,\"leer\")","v":"leer"},{"$f":"AVERAGE(ERGEBNISSE_S!B108:AK108)","v":{"$error":"#DIV/0!"}}]

{"sheet":"AUSWERTUNG_H","index":19,"n_rows":108,"n_cols":4,"rows_kept":108,"cut":false,"hidden":false,"merged":[]}
[null,null,null,{"$f":"AVERAGE(IFERROR(B2:B6,\"\"))","v":{"$error":"#DIV/0!"}}]
[{"$f":"IF(OR(FRAGEN!$D$2=TRUE,FRAGEN!D3=TRUE),FRAGEN_H!A3,\"nix\")","v":"nix"},{"$f":"AVERAGE(ERGEBNISSE_H!B2:AK2)","v":{"$error":"#DIV/0!"}}]
[{"$f":"IF(OR(FRAGEN!$D$2=TRUE,FRAGEN!D4=TRUE),FRAGEN_H!A4,\"nix\")","v":"nix"},{"$f":"AVERAGE(ERGEBNISSE_H!B3:AK3)","v":{"$error":"#DIV/0!"}}]
[{"$f":"IF(OR(FRAGEN!$D$2=TRUE,FRAGEN!D5=TRUE),FRAGEN_H!A5,\"nix\")","v":"nix"},{"$f":"AVERAGE(ERGEBNISSE_H!B4:AK4)","v":{"$error":"#DIV/0!"}}]
[{"$f":"IF(OR(FRAGEN!$D$2=TRUE,FRAGEN!D6=TRUE),FRAGEN_H!A6,\"nix\")","v":"nix"},{"$f":"AVERAGE(ERGEBNISSE_H!B5:AK5)","v":{"$error":"#DIV/0!"}}]
[{"$f":"IF(OR(FRAGEN!$D$2=TRUE,FRAGEN!D7=TRUE),FRAGEN_H!A7,\"nix\")","v":"nix"},{"$f":"AVERAGE(ERGEBNISSE_H!B6:AK6)","v":{"$error":"#DIV/0!"}}]
[null,null,null,{"$f":"AVERAGE(IFERROR(B8:B11,\"\"))","v":{"$error":"#DIV/0!"}}]
[{"$f":"IF(OR(FRAGEN!$D$8=TRUE,FRAGEN!D9=TRUE),FRAGEN_H!A9,\"nix\")","v":"nix"},{"$f":"AVERAGE(ERGEBNISSE_H!B8:AK8)","v":{"$error":"#DIV/0!"}}]
[{"$f":"IF(OR(FRAGEN!$D$8=TRUE,FRAGEN!D10=TRUE),FRAGEN_H!A10,\"nix\")","v":"nix"},{"$f":"AVERAGE(ERGEBNISSE_H!B9:AK9)","v":{"$error":"#DIV/0!"}}]
[{"$f":"IF(OR(FRAGEN!$D$8=TRUE,FRAGEN!D11=TRUE),FRAGEN_H!A11,\"nix\")","v":"nix"},{"$f":"AVERAGE(ERGEBNISSE_H!B10:AK10)","v":{"$error":"#DIV/0!"}}]
[{"$f":"IF(OR(FRAGEN!$D$8=TRUE,FRAGEN!D12=TRUE),FRAGEN_H!A12,\"nix\")","v":"nix"},{"$f":"AVERAGE(ERGEBNISSE_H!B11:AK11)","v":{"$error":"#DIV/0!"}}]
[]
[null,null,null,{"$f":"AVERAGE(IFERROR(B14:B19,\"\"))","v":{"$error":"#DIV/0!"}}]
[{"$f":"IF(OR(FRAGEN!$D$14=TRUE,FRAGEN!D15=TRUE),FRAGEN_H!A15,\"nix\")","v":"nix"},{"$f":"AVERAGE(ERGEBNISSE_H!B14:AK14)","v":{"$error":"#DIV/0!"}}]
[{"$f":"IF(OR(FRAGEN!$D$14=TRUE,FRAGEN!D16=TRUE),FRAGEN_H!A16,\"nix\")","v":"nix"},{"$f":"AVERAGE(ERGEBNISSE_H!B15:AK15)","v":{"$error":"#DIV/0!"}}]
[{"$f":"IF(OR(FRAGEN!$D$14=TRUE,FRAGEN!D17=TRUE),FRAGEN_H!A17,\"nix\")","v":"nix"},{"$f":"AVERAGE(ERGEBNISSE_H!B16:AK16)","v":{"$error":"#DIV/0!"}}]
[{"$f":"IF(OR(FRAGEN!$D$14=TRUE,FRAGEN!D18=TRUE),FRAGEN_H!A18,\"nix\")","v":"nix"},{"$f":"AVERAGE(ERGEBNISSE_H!B17:AK17)","v":{"$error":"#DIV/0!"}}]
[{"$f":"IF(OR(FRAGEN!$D$14=TRUE,FRAGEN!D19=TRUE),FRAGEN_H!A19,\"nix\")","v":"nix"},{"$f":"AVERAGE(ERGEBNISSE_H!B18:AK18)","v":{"$error":"#DIV/0!"}}]
[{"$f":"IF(OR(FRAGEN!$D$14=TRUE,FRAGEN!D20=TRUE),FRAGEN_H!A20,\"nix\")","v":"nix"},{"$f":"AVERAGE(ERGEBNISSE_H!B19:AK19)","v":{"$error":"#DIV/0!"}}]
[null,null,null,{"$f":"AVERAGE(IFERROR(B21:B25,\"\"))","v":{"$error":"#DIV/0!"}}]
[{"$f":"IF(OR(FRAGEN!$D$21=TRUE,FRAGEN!D22=TRUE),FRAGEN_H!A22,\"nix\")","v":"nix"},{"$f":"AVERAGE(ERGEBNISSE_H!B21:AK21)","v":{"$error":"#DIV/0!"}}]
[{"$f":"IF(OR(FRAGEN!$D$21=TRUE,FRAGEN!D23=TRUE),FRAGEN_H!A23,\"nix\")","v":"nix"},{"$f":"AVERAGE(ERGEBNISSE_H!B22:AK22)","v":{"$error":"#DIV/0!"}}]
[{"$f":"IF(OR(FRAGEN!$D$21=TRUE,FRAGEN!D24=TRUE),FRAGEN_H!A24,\"nix\")","v":"nix"},{"$f":"AVERAGE(ERGEBNISSE_H!B23:AK23)","v":{"$error":"#DIV/0!"}}]
[{"$f":"IF(OR(FRAGEN!$D$21=TRUE,FRAGEN!D25=TRUE),FRAGEN_H!A25,\"nix\")","v":"nix"},{"$f":"AVERAGE(ERGEBNISSE_H!B24:AK24)","v":{"$error":"#DIV/0!"}}]
[{"$f":"IF(OR(FRAGEN!$D$21=TRUE,FRAGEN!D26=TRUE),FRAGEN_H!A26,\"nix\")","v":"nix"},{"$f":"AVERAGE(ERGEBNISSE_H!B25:AK25)","v":{"$error":"#DIV/0!"}}]
[]
[null,null,null,{"$f":"AVERAGE(IFERROR(B30:B32,\"\"))","v":{"$error":"#DIV/0!"}}]
[]
[]
[{"$f":"IF(OR(FRAGEN!$D$28=TRUE,FRAGEN!D31=TRUE),FRAGEN_H!A31,\"nix\")","v":"nix"},{"$f":"AVERAGE(ERGEBNISSE_H!B30:AK30)","v":{"$error":"#DIV/0!"}}]
[{"$f":"IF(OR(FRAGEN!$D$28=TRUE,FRAGEN!D32=TRUE),FRAGEN_H!A32,\"nix\")","v":"nix"},{"$f":"AVERAGE(ERGEBNISSE_H!B31:AK31)","v":{"$error":"#DIV/0!"}}]
[{"$f":"IF(OR(FRAGEN!$D$28=TRUE,FRAGEN!D33=TRUE),FRAGEN_H!A33,\"nix\")","v":"nix"},{"$f":"AVERAGE(ERGEBNISSE_H!B32:AK32)","v":{"$error":"#DIV/0!"}}]
[null,null,null,{"$f":"AVERAGE(IFERROR(B34:B45,\"\"))","v":{"$error":"#DIV/0!"}}]
[{"$f":"IF(OR(FRAGEN!$D$34=TRUE,FRAGEN!D35=TRUE),FRAGEN_H!A35,\"nix\")","v":"nix"},{"$f":"AVERAGE(ERGEBNISSE_H!B34:AK34)","v":{"$error":"#DIV/0!"}}]
[{"$f":"IF(OR(FRAGEN!$D$34=TRUE,FRAGEN!D36=TRUE),FRAGEN_H!A36,\"nix\")","v":"nix"},{"$f":"AVERAGE(ERGEBNISSE_H!B35:AK35)","v":{"$error":"#DIV/0!"}}]
[{"$f":"IF(OR(FRAGEN!$D$34=TRUE,FRAGEN!D37=TRUE),FRAGEN_H!A37,\"nix\")","v":"nix"},{"$f":"AVERAGE(ERGEBNISSE_H!B36:AK36)","v":{"$error":"#DIV/0!"}}]
[{"$f":"IF(OR(FRAGEN!$D$34=TRUE,FRAGEN!D38=TRUE),FRAGEN_H!A38,\"nix\")","v":"nix"},{"$f":"AVERAGE(ERGEBNISSE_H!B37:AK37)","v":{"$error":"#DIV/0!"}}]
[{"$f":"IF(OR(FRAGEN!$D$34=TRUE,FRAGEN!D39=TRUE),FRAGEN_H!A39,\"nix\")","v":"nix"},{"$f":"AVERAGE(ERGEBNISSE_H!B38:AK38)","v":{"$error":"#DIV/0!"}}]
[{"$f":"IF(OR(FRAGEN!$D$34=TRUE,FRAGEN!D40=TRUE),FRAGEN_H!A40,\"nix\")","v":"nix"},{"$f":"AVERAGE(ERGEBNISSE_H!B39:AK39)","v":{"$error":"#DIV/0!"}}]
[{"$f":"IF(OR(FRAGEN!$D$34=TRUE,FRAGEN!D41=TRUE),FRAGEN_H!A41,\"nix\")","v":"nix"},{"$f":"AVERAGE(ERGEBNISSE_H!B40:AK40)","v":{"$error":"#DIV/0!"}}]
[{"$f":"IF(OR(FRAGEN!$D$34=TRUE,FRAGEN!D42=TRUE),FRAGEN_H!A42,\"nix\")","v":"nix"},{"$f":"AVERAGE(ERGEBNISSE_H!B41:AK41)","v":{"$error":"#DIV/0!"}}]
[{"$f":"IF(OR(FRAGEN!$D$34=TRUE,FRAGEN!D43=TRUE),FRAGEN_H!A43,\"nix\")","v":"nix"},{"$f":"AVERAGE(ERGEBNISSE_H!B42:AK42)","v":{"$error":"#DIV/0!"}}]
[{"$f":"IF(OR(FRAGEN!$D$34=TRUE,FRAGEN!D44=TRUE),FRAGEN_H!A44,\"nix\")","v":"nix"},{"$f":"AVERAGE(ERGEBNISSE_H!B43:AK43)","v":{"$error":"#DIV/0!"}}]
[{"$f":"IF(OR(FRAGEN!$D$34=TRUE,FRAGEN!D45=TRUE),FRAGEN_H!A45,\"nix\")","v":"nix"},{"$f":"AVERAGE(ERGEBNISSE_H!B44:AK44)","v":{"$error":"#DIV/0!"}}]
[{"$f":"IF(OR(FRAGEN!$D$34=TRUE,FRAGEN!D46=TRUE),FRAGEN_H!A46,\"nix\")","v":"nix"},{"$f":"AVERAGE(ERGEBNISSE_H!B45:AK45)","v":{"$error":"#DIV/0!"}}]
[]
[null,null,null,{"$f":"AVERAGE(IFERROR(B48:B50,\"\"))","v":{"$error":"#DIV/0!"}}]
[{"$f":"IF(OR(FRAGEN!$D$48=TRUE,FRAGEN!D49=TRUE),FRAGEN_H!A49,\"nix\")","v":"nix"},{"$f":"AVERAGE(ERGEBNISSE_H!B48:AK48)","v":{"$error":"#DIV/0!"}}]
[{"$f":"IF(OR(FRAGEN!$D$48=TRUE,FRAGEN!D50=TRUE),FRAGEN_H!A50,\"nix\")","v":"nix"},{"$f":"AVERAGE(ERGEBNISSE_H!B49:AK49)","v":{"$error":"#DIV/0!"}}]
[{"$f":"IF(OR(FRAGEN!$D$48=TRUE,FRAGEN!D51=TRUE),FRAGEN_H!A51,\"nix\")","v":"nix"},{"$f":"AVERAGE(ERGEBNISSE_H!B50:AK50)","v":{"$error":"#DIV/0!"}}]
[null,null,null,{"$f":"AVERAGE(IFERROR(B52:B54,\"\"))","v":{"$error":"#DIV/0!"}}]
[{"$f":"IF(OR(FRAGEN!$D$52=TRUE,FRAGEN!D53=TRUE),FRAGEN_H!A53,\"nix\")","v":"nix"},{"$f":"AVERAGE(ERGEBNISSE_H!B52:AK52)","v":{"$error":"#DIV/0!"}}]
[{"$f":"IF(OR(FRAGEN!$D$52=TRUE,FRAGEN!D54=TRUE),FRAGEN_H!A54,\"nix\")","v":"nix"},{"$f":"AVERAGE(ERGEBNISSE_H!B53:AK53)","v":{"$error":"#DIV/0!"}}]
[{"$f":"IF(OR(FRAGEN!$D$52=TRUE,FRAGEN!D55=TRUE),FRAGEN_H!A55,\"nix\")","v":"nix"},{"$f":"AVERAGE(ERGEBNISSE_H!B54:AK54)","v":{"$error":"#DIV/0!"}}]
[null,null,null,{"$f":"AVERAGE(IFERROR(B56:B59,\"\"))","v":{"$error":"#DIV/0!"}}]
[{"$f":"IF(OR(FRAGEN!$D$56=TRUE,FRAGEN!D57=TRUE),FRAGEN_H!A57,\"nix\")","v":"nix"},{"$f":"AVERAGE(ERGEBNISSE_H!B56:AK56)","v":{"$error":"#DIV/0!"}}]
[{"$f":"IF(OR(FRAGEN!$D$56=TRUE,FRAGEN!D58=TRUE),FRAGEN_H!A58,\"nix\")","v":"nix"},{"$f":"AVERAGE(ERGEBNISSE_H!B57:AK57)","v":{"$error":"#DIV/0!"}}]
[{"$f":"IF(OR(FRAGEN!$D$56=TRUE,FRAGEN!D59=TRUE),FRAGEN_H!A59,\"nix\")","v":"nix"},{"$f":"AVERAGE(ERGEBNISSE_H!B58:AK58)","v":{"$error":"#DIV/0!"}}]
[{"$f":"IF(OR(FRAGEN!$D$56=TRUE,FRAGEN!D60=TRUE),FRAGEN_H!A60,\"nix\")","v":"nix"},{"$f":"AVERAGE(ERGEBNISSE_H!B59:AK59)","v":{"$error":"#DIV/0!"}}]
[]
[]
[]
[null,null,null,{"$f":"AVERAGE(IFERROR(B64:B66,\"\"))","v":{"$error":"#DIV/0!"}}]
[{"$f":"IF(OR(FRAGEN!$D$64=TRUE,FRAGEN!D65=TRUE),FRAGEN_H!A65,\"nix\")","v":"nix"},{"$f":"AVERAGE(ERGEBNISSE_H!B64:AK64)","v":{"$error":"#DIV/0!"}}]
[{"$f":"IF(OR(FRAGEN!$D$64=TRUE,FRAGEN!D66=TRUE),FRAGEN_H!A66,\"nix\")","v":"nix"},{"$f":"AVERAGE(ERGEBNISSE_H!B65:AK65)","v":{"$error":"#DIV/0!"}}]
[{"$f":"IF(OR(FRAGEN!$D$64=TRUE,FRAGEN!D67=TRUE),FRAGEN_H!A67,\"nix\")","v":"nix"},{"$f":"AVERAGE(ERGEBNISSE_H!B66:AK66)","v":{"$error":"#DIV/0!"}}]
[]
[null,null,null,{"$f":"AVERAGE(IFERROR(B69:B72,\"\"))","v":{"$error":"#DIV/0!"}}]
[{"$f":"IF(OR(FRAGEN!$D$69=TRUE,FRAGEN!D70=TRUE),FRAGEN_H!A70,\"nix\")","v":"nix"},{"$f":"AVERAGE(ERGEBNISSE_H!B69:AK69)","v":{"$error":"#DIV/0!"}}]
[{"$f":"IF(OR(FRAGEN!$D$69=TRUE,FRAGEN!D71=TRUE),FRAGEN_H!A71,\"nix\")","v":"nix"},{"$f":"AVERAGE(ERGEBNISSE_H!B70:AK70)","v":{"$error":"#DIV/0!"}}]
[{"$f":"IF(OR(FRAGEN!$D$69=TRUE,FRAGEN!D72=TRUE),FRAGEN_H!A72,\"nix\")","v":"nix"},{"$f":"AVERAGE(ERGEBNISSE_H!B71:AK71)","v":{"$error":"#DIV/0!"}}]
[{"$f":"IF(OR(FRAGEN!$D$69=TRUE,FRAGEN!D73=TRUE),FRAGEN_H!A73,\"nix\")","v":"nix"},{"$f":"AVERAGE(ERGEBNISSE_H!B72:AK72)","v":{"$error":"#DIV/0!"}}]
[null,null,null,{"$f":"AVERAGE(IFERROR(B74:B78,\"\"))","v":{"$error":"#DIV/0!"}}]
[{"$f":"IF(OR(FRAGEN!$D$74=TRUE,FRAGEN!D75=TRUE),FRAGEN_H!A75,\"nix\")","v":"nix"},{"$f":"AVERAGE(ERGEBNISSE_H!B74:AK74)","v":{"$error":"#DIV/0!"}}]
[{"$f":"IF(OR(FRAGEN!$D$74=TRUE,FRAGEN!D76=TRUE),FRAGEN_H!A76,\"nix\")","v":"nix"},{"$f":"AVERAGE(ERGEBNISSE_H!B75:AK75)","v":{"$error":"#DIV/0!"}}]
[{"$f":"IF(OR(FRAGEN!$D$74=TRUE,FRAGEN!D77=TRUE),FRAGEN_H!A77,\"nix\")","v":"nix"},{"$f":"AVERAGE(ERGEBNISSE_H!B76:AK76)","v":{"$error":"#DIV/0!"}}]
[{"$f":"IF(OR(FRAGEN!$D$74=TRUE,FRAGEN!D78=TRUE),FRAGEN_H!A78,\"nix\")","v":"nix"},{"$f":"AVERAGE(ERGEBNISSE_H!B77:AK77)","v":{"$error":"#DIV/0!"}}]
[{"$f":"IF(OR(FRAGEN!$D$74=TRUE,FRAGEN!D79=TRUE),FRAGEN_H!A79,\"nix\")","v":"nix"},{"$f":"AVERAGE(ERGEBNISSE_H!B78:AK78)","v":{"$error":"#DIV/0!"}}]
[]
[null,null,null,{"$f":"AVERAGE(IFERROR(B81:B84,\"\"))","v":{"$error":"#DIV/0!"}}]
[{"$f":"IF(OR(FRAGEN!$D$81=TRUE,FRAGEN!D82=TRUE),FRAGEN_H!A82,\"nix\")","v":"nix"},{"$f":"AVERAGE(ERGEBNISSE_H!B81:AK81)","v":{"$error":"#DIV/0!"}}]
[{"$f":"IF(OR(FRAGEN!$D$81=TRUE,FRAGEN!D83=TRUE),FRAGEN_H!A83,\"nix\")","v":"nix"},{"$f":"AVERAGE(ERGEBNISSE_H!B82:AK82)","v":{"$error":"#DIV/0!"}}]
[{"$f":"IF(OR(FRAGEN!$D$81=TRUE,FRAGEN!D84=TRUE),FRAGEN_H!A84,\"nix\")","v":"nix"},{"$f":"AVERAGE(ERGEBNISSE_H!B83:AK83)","v":{"$error":"#DIV/0!"}}]
[{"$f":"IF(OR(FRAGEN!$D$81=TRUE,FRAGEN!D85=TRUE),FRAGEN_H!A85,\"nix\")","v":"nix"},{"$f":"AVERAGE(ERGEBNISSE_H!B84:AK84)","v":{"$error":"#DIV/0!"}}]
[]
[]
[]
[null,null,null,{"$f":"AVERAGE(IFERROR(B89:B108,\"\"))","v":{"$error":"#DIV/0!"}}]
[{"$f":"IF(OR(FRAGEN!$D$88=TRUE,FRAGEN!D90=TRUE),FRAGEN_H!A89,\"nix\")","v":"nix"},{"$f":"AVERAGE(ERGEBNISSE_H!B89:AK89)","v":{"$error":"#DIV/0!"}}]
[{"$f":"IF(OR(FRAGEN!$D$88=TRUE,FRAGEN!D90=TRUE),FRAGEN_H!A90,\"nix\")","v":"nix"},{"$f":"AVERAGE(ERGEBNISSE_H!B90:AK90)","v":{"$error":"#DIV/0!"}}]
[{"$f":"IF(OR(FRAGEN!$D$88=TRUE,FRAGEN!D91=TRUE),FRAGEN_H!A91,\"nix\")","v":"nix"},{"$f":"AVERAGE(ERGEBNISSE_H!B91:AK91)","v":{"$error":"#DIV/0!"}}]
[{"$f":"IF(OR(FRAGEN!$D$88=TRUE,FRAGEN!D92=TRUE),FRAGEN_H!A92,\"nix\")","v":"nix"},{"$f":"AVERAGE(ERGEBNISSE_H!B92:AK92)","v":{"$error":"#DIV/0!"}}]
[{"$f":"IF(OR(FRAGEN!$D$88=TRUE,FRAGEN!D93=TRUE),FRAGEN_H!A93,\"nix\")","v":"nix"},{"$f":"AVERAGE(ERGEBNISSE_H!B93:AK93)","v":{"$error":"#DIV/0!"}}]
[{"$f":"IF(OR(FRAGEN!$D$88=TRUE,FRAGEN!D94=TRUE),FRAGEN_H!A94,\"nix\")","v":"nix"},{"$f":"AVERAGE(ERGEBNISSE_H!B94:AK94)","v":{"$error":"#DIV/0!"}}]
[{"$f":"IF(OR(FRAGEN!$D$88=TRUE,FRAGEN!D95=TRUE),FRAGEN_H!A95,\"nix\")","v":"nix"},{"$f":"AVERAGE(ERGEBNISSE_H!B95:AK95)","v":{"$error":"#DIV/0!"}}]
[{"$f":"IF(OR(FRAGEN!$D$88=TRUE,FRAGEN!D96=TRUE),FRAGEN_H!A96,\"nix\")","v":"nix"},{"$f":"AVERAGE(ERGEBNISSE_H!B96:AK96)","v":{"$error":"#DIV/0!"}}]
[{"$f":"IF(OR(FRAGEN!$D$88=TRUE,FRAGEN!D97=TRUE),FRAGEN_H!A97,\"nix\")","v":"nix"},{"$f":"AVERAGE(ERGEBNISSE_H!B97:AK97)","v":{"$error":"#DIV/0!"}}]
[{"$f":"IF(OR(FRAGEN!$D$88=TRUE,FRAGEN!D98=TRUE),FRAGEN_H!A98,\"nix\")","v":"nix"},{"$f":"AVERAGE(ERGEBNISSE_H!B98:AK98)","v":{"$error":"#DIV/0!"}}]
[{"$f":"IF(OR(FRAGEN!$D$88=TRUE,FRAGEN!D99=TRUE),FRAGEN_H!A99,\"nix\")","v":"nix"},{"$f":"AVERAGE(ERGEBNISSE_H!B99:AK99)","v":{"$error":"#DIV/0!"}}]
[{"$f":"IF(OR(FRAGEN!$D$88=TRUE,FRAGEN!D100=TRUE),FRAGEN_H!A100,\"nix\")","v":"nix"},{"$f":"AVERAGE(ERGEBNISSE_H!B100:AK100)","v":{"$error":"#DIV/0!"}}]
[{"$f":"IF(OR(FRAGEN!$D$88=TRUE,FRAGEN!D101=TRUE),FRAGEN_H!A101,\"nix\")","v":"nix"},{"$f":"AVERAGE(ERGEBNISSE_H!B101:AK101)","v":{"$error":"#DIV/0!"}}]
[{"$f":"IF(OR(FRAGEN!$D$88=TRUE,FRAGEN!D102=TRUE),FRAGEN_H!A102,\"nix\")","v":"nix"},{"$f":"AVERAGE(ERGEBNISSE_H!B102:AK102)","v":{"$error":"#DIV/0!"}}]
[{"$f":"IF(OR(FRAGEN!$D$88=TRUE,FRAGEN!D103=TRUE),FRAGEN_H!A103,\"nix\")","v":"nix"},{"$f":"AVERAGE(ERGEBNISSE_H!B103:AK103)","v":{"$error":"#DIV/0!"}}]
[{"$f":"IF(OR(FRAGEN!$D$88=TRUE,FRAGEN!D104=TRUE),FRAGEN_H!A104,\"nix\")","v":"nix"},{"$f":"AVERAGE(ERGEBNISSE_H!B104:AK104)","v":{"$error":"#DIV/0!"}}]
[{"$f":"IF(OR(FRAGEN!$D$88=TRUE,FRAGEN!D105=TRUE),FRAGEN_H!A105,\"nix\")","v":"nix"},{"$f":"AVERAGE(ERGEBNISSE_H!B105:AK105)","v":{"$error":"#DIV/0!"}}]
[{"$f":"IF(OR(FRAGEN!$D$88=TRUE,FRAGEN!D106=TRUE),FRAGEN_H!A106,\"nix\")","v":"nix"},{"$f":"AVERAGE(ERGEBNISSE_H!B106:AK106)","v":{"$error":"#DIV/0!"}}]
[{"$f":"IF(OR(FRAGEN!$D$88=TRUE,FRAGEN!D107=TRUE),FRAGEN_H!A107,\"nix\")","v":"nix"},{"$f":"AVERAGE(ERGEBNISSE_H!B107:AK107)","v":{"$error":"#DIV/0!"}}]
[{"$f":"IF(OR(FRAGEN!$D$88=TRUE,FRAGEN!D108=TRUE),FRAGEN_H!A108,\"nix\")","v":"nix"},{"$f":"AVERAGE(ERGEBNISSE_H!B108:AK108)","v":{"$error":"#DIV/0!"}}]

{"sheet":"AUSWERTUNG_L","index":20,"n_rows":108,"n_cols":4,"rows_kept":108,"cut":false,"hidden":false,"merged":[]}
[null,null,null,{"$f":"AVERAGE(IFERROR(B2:B6,\"\"))","v":{"$error":"#DIV/0!"}}]
[{"$f":"IF(OR(FRAGEN!$D$2=TRUE,FRAGEN!D3=TRUE),FRAGEN_L!A3,\"nichtgewaehlt\")","v":"nichtgewaehlt"},{"$f":"AVERAGE(ERGEBNISSE_L!B2:AK2)","v":{"$error":"#DIV/0!"}}]
[{"$f":"IF(OR(FRAGEN!$D$2=TRUE,FRAGEN!D4=TRUE),FRAGEN_L!A4,\"nichtgewaehlt\")","v":"nichtgewaehlt"},{"$f":"AVERAGE(ERGEBNISSE_L!B3:AK3)","v":{"$error":"#DIV/0!"}}]
[{"$f":"IF(OR(FRAGEN!$D$2=TRUE,FRAGEN!D5=TRUE),FRAGEN_L!A5,\"nichtgewaehlt\")","v":"nichtgewaehlt"},{"$f":"AVERAGE(ERGEBNISSE_L!B4:AK4)","v":{"$error":"#DIV/0!"}}]
[{"$f":"IF(OR(FRAGEN!$D$2=TRUE,FRAGEN!D6=TRUE),FRAGEN_L!A6,\"nichtgewaehlt\")","v":"nichtgewaehlt"},{"$f":"AVERAGE(ERGEBNISSE_L!B5:AK5)","v":{"$error":"#DIV/0!"}}]
[{"$f":"IF(OR(FRAGEN!$D$2=TRUE,FRAGEN!D7=TRUE),FRAGEN_L!A7,\"nichtgewaehlt\")","v":"nichtgewaehlt"},{"$f":"AVERAGE(ERGEBNISSE_L!B6:AK6)","v":{"$error":"#DIV/0!"}}]
[null,null,null,{"$f":"AVERAGE(IFERROR(B8:B11,\"\"))","v":{"$error":"#DIV/0!"}}]
[{"$f":"IF(OR(FRAGEN!$D$8=TRUE,FRAGEN!D9=TRUE),FRAGEN_L!A9,\"nichtgewaehlt\")","v":"nichtgewaehlt"},{"$f":"AVERAGE(ERGEBNISSE_L!B8:AK8)","v":{"$error":"#DIV/0!"}}]
[{"$f":"IF(OR(FRAGEN!$D$8=TRUE,FRAGEN!D10=TRUE),FRAGEN_L!A10,\"nichtgewaehlt\")","v":"nichtgewaehlt"},{"$f":"AVERAGE(ERGEBNISSE_L!B9:AK9)","v":{"$error":"#DIV/0!"}}]
[{"$f":"IF(OR(FRAGEN!$D$8=TRUE,FRAGEN!D11=TRUE),FRAGEN_L!A11,\"nichtgewaehlt\")","v":"nichtgewaehlt"},{"$f":"AVERAGE(ERGEBNISSE_L!B10:AK10)","v":{"$error":"#DIV/0!"}}]
[{"$f":"IF(OR(FRAGEN!$D$8=TRUE,FRAGEN!D12=TRUE),FRAGEN_L!A12,\"nichtgewaehlt\")","v":"nichtgewaehlt"},{"$f":"AVERAGE(ERGEBNISSE_L!B11:AK11)","v":{"$error":"#DIV/0!"}}]
[]
[null,null,null,{"$f":"AVERAGE(IFERROR(B14:B19,\"\"))","v":{"$error":"#DIV/0!"}}]
[{"$f":"IF(OR(FRAGEN!$D$14=TRUE,FRAGEN!D15=TRUE),FRAGEN_L!A15,\"nichtgewaehlt\")","v":"nichtgewaehlt"},{"$f":"AVERAGE(ERGEBNISSE_L!B14:AK14)","v":{"$error":"#DIV/0!"}}]
[{"$f":"IF(OR(FRAGEN!$D$14=TRUE,FRAGEN!D16=TRUE),FRAGEN_L!A16,\"nichtgewaehlt\")","v":"nichtgewaehlt"},{"$f":"AVERAGE(ERGEBNISSE_L!B15:AK15)","v":{"$error":"#DIV/0!"}}]
[{"$f":"IF(OR(FRAGEN!$D$14=TRUE,FRAGEN!D17=TRUE),FRAGEN_L!A17,\"nichtgewaehlt\")","v":"nichtgewaehlt"},{"$f":"AVERAGE(ERGEBNISSE_L!B16:AK16)","v":{"$error":"#DIV/0!"}}]
[{"$f":"IF(OR(FRAGEN!$D$14=TRUE,FRAGEN!D18=TRUE),FRAGEN_L!A18,\"nichtgewaehlt\")","v":"nichtgewaehlt"},{"$f":"AVERAGE(ERGEBNISSE_L!B17:AK17)","v":{"$error":"#DIV/0!"}}]
[{"$f":"IF(OR(FRAGEN!$D$14=TRUE,FRAGEN!D19=TRUE),FRAGEN_L!A19,\"nichtgewaehlt\")","v":"nichtgewaehlt"},{"$f":"AVERAGE(ERGEBNISSE_L!B18:AK18)","v":{"$error":"#DIV/0!"}}]
[{"$f":"IF(OR(FRAGEN!$D$14=TRUE,FRAGEN!D20=TRUE),FRAGEN_L!A20,\"nichtgewaehlt\")","v":"nichtgewaehlt"},{"$f":"AVERAGE(ERGEBNISSE_L!B19:AK19)","v":{"$error":"#DIV/0!"}}]
[null,null,null,{"$f":"AVERAGE(IFERROR(B21:B25,\"\"))","v":{"$error":"#DIV/0!"}}]
[{"$f":"IF(OR(FRAGEN!$D$21=TRUE,FRAGEN!D22=TRUE),FRAGEN_L!A22,\"nichtgewaehlt\")","v":"nichtgewaehlt"},{"$f":"AVERAGE(ERGEBNISSE_L!B21:AK21)","v":{"$error":"#DIV/0!"}}]
[{"$f":"IF(OR(FRAGEN!$D$21=TRUE,FRAGEN!D23=TRUE),FRAGEN_L!A23,\"nichtgewaehlt\")","v":"nichtgewaehlt"},{"$f":"AVERAGE(ERGEBNISSE_L!B22:AK22)","v":{"$error":"#DIV/0!"}}]
[{"$f":"IF(OR(FRAGEN!$D$21=TRUE,FRAGEN!D24=TRUE),FRAGEN_L!A24,\"nichtgewaehlt\")","v":"nichtgewaehlt"},{"$f":"AVERAGE(ERGEBNISSE_L!B23:AK23)","v":{"$error":"#DIV/0!"}}]
[{"$f":"IF(OR(FRAGEN!$D$21=TRUE,FRAGEN!D25=TRUE),FRAGEN_L!A25,\"nichtgewaehlt\")","v":"nichtgewaehlt"},{"$f":"AVERAGE(ERGEBNISSE_L!B24:AK24)","v":{"$error":"#DIV/0!"}}]
[{"$f":"IF(OR(FRAGEN!$D$21=TRUE,FRAGEN!D26=TRUE),FRAGEN_L!A26,\"nichtgewaehlt\")","v":"nichtgewaehlt"},{"$f":"AVERAGE(ERGEBNISSE_L!B25:AK25)","v":{"$error":"#DIV/0!"}}]
[]
[null,null,null,{"$f":"AVERAGE(IFERROR(B30:B32,\"\"))","v":{"$error":"#DIV/0!"}}]
[]
[]
[{"$f":"IF(OR(FRAGEN!$D$28=TRUE,FRAGEN!D31=TRUE),FRAGEN_L!A31,\"nichtgewaehlt\")","v":"nichtgewaehlt"},{"$f":"AVERAGE(ERGEBNISSE_L!B30:AK30)","v":{"$error":"#DIV/0!"}}]
[{"$f":"IF(OR(FRAGEN!$D$28=TRUE,FRAGEN!D32=TRUE),FRAGEN_L!A32,\"nichtgewaehlt\")","v":"nichtgewaehlt"},{"$f":"AVERAGE(ERGEBNISSE_L!B31:AK31)","v":{"$error":"#DIV/0!"}}]
[{"$f":"IF(OR(FRAGEN!$D$28=TRUE,FRAGEN!D33=TRUE),FRAGEN_L!A33,\"nichtgewaehlt\")","v":"nichtgewaehlt"},{"$f":"AVERAGE(ERGEBNISSE_L!B32:AK32)","v":{"$error":"#DIV/0!"}}]
[null,null,null,{"$f":"AVERAGE(IFERROR(B34:B45,\"\"))","v":{"$error":"#DIV/0!"}}]
[{"$f":"IF(OR(FRAGEN!$D$34=TRUE,FRAGEN!D35=TRUE),FRAGEN_L!A35,\"nichtgewaehlt\")","v":"nichtgewaehlt"},{"$f":"AVERAGE(ERGEBNISSE_L!B34:AK34)","v":{"$error":"#DIV/0!"}}]
[{"$f":"IF(OR(FRAGEN!$D$34=TRUE,FRAGEN!D36=TRUE),FRAGEN_L!A36,\"nichtgewaehlt\")","v":"nichtgewaehlt"},{"$f":"AVERAGE(ERGEBNISSE_L!B35:AK35)","v":{"$error":"#DIV/0!"}}]
[{"$f":"IF(OR(FRAGEN!$D$34=TRUE,FRAGEN!D37=TRUE),FRAGEN_L!A37,\"nichtgewaehlt\")","v":"nichtgewaehlt"},{"$f":"AVERAGE(ERGEBNISSE_L!B36:AK36)","v":{"$error":"#DIV/0!"}}]
[{"$f":"IF(OR(FRAGEN!$D$34=TRUE,FRAGEN!D38=TRUE),FRAGEN_L!A38,\"nichtgewaehlt\")","v":"nichtgewaehlt"},{"$f":"AVERAGE(ERGEBNISSE_L!B37:AK37)","v":{"$error":"#DIV/0!"}}]
[{"$f":"IF(OR(FRAGEN!$D$34=TRUE,FRAGEN!D39=TRUE),FRAGEN_L!A39,\"nichtgewaehlt\")","v":"nichtgewaehlt"},{"$f":"AVERAGE(ERGEBNISSE_L!B38:AK38)","v":{"$error":"#DIV/0!"}}]
[{"$f":"IF(OR(FRAGEN!$D$34=TRUE,FRAGEN!D40=TRUE),FRAGEN_L!A40,\"nichtgewaehlt\")","v":"nichtgewaehlt"},{"$f":"AVERAGE(ERGEBNISSE_L!B39:AK39)","v":{"$error":"#DIV/0!"}}]
[{"$f":"IF(OR(FRAGEN!$D$34=TRUE,FRAGEN!D41=TRUE),FRAGEN_L!A41,\"nichtgewaehlt\")","v":"nichtgewaehlt"},{"$f":"AVERAGE(ERGEBNISSE_L!B40:AK40)","v":{"$error":"#DIV/0!"}}]
[{"$f":"IF(OR(FRAGEN!$D$34=TRUE,FRAGEN!D42=TRUE),FRAGEN_L!A42,\"nichtgewaehlt\")","v":"nichtgewaehlt"},{"$f":"AVERAGE(ERGEBNISSE_L!B41:AK41)","v":{"$error":"#DIV/0!"}}]
[{"$f":"IF(OR(FRAGEN!$D$34=TRUE,FRAGEN!D43=TRUE),FRAGEN_L!A43,\"nichtgewaehlt\")","v":"nichtgewaehlt"},{"$f":"AVERAGE(ERGEBNISSE_L!B42:AK42)","v":{"$error":"#DIV/0!"}}]
[{"$f":"IF(OR(FRAGEN!$D$34=TRUE,FRAGEN!D44=TRUE),FRAGEN_L!A44,\"nichtgewaehlt\")","v":"nichtgewaehlt"},{"$f":"AVERAGE(ERGEBNISSE_L!B43:AK43)","v":{"$error":"#DIV/0!"}}]
[{"$f":"IF(OR(FRAGEN!$D$34=TRUE,FRAGEN!D45=TRUE),FRAGEN_L!A45,\"nichtgewaehlt\")","v":"nichtgewaehlt"},{"$f":"AVERAGE(ERGEBNISSE_L!B44:AK44)","v":{"$error":"#DIV/0!"}}]
[{"$f":"IF(OR(FRAGEN!$D$34=TRUE,FRAGEN!D46=TRUE),FRAGEN_L!A46,\"nichtgewaehlt\")","v":"nichtgewaehlt"},{"$f":"AVERAGE(ERGEBNISSE_L!B45:AK45)","v":{"$error":"#DIV/0!"}}]
[]
[null,null,null,{"$f":"AVERAGE(IFERROR(B48:B50,\"\"))","v":{"$error":"#DIV/0!"}}]
[{"$f":"IF(OR(FRAGEN!$D$48=TRUE,FRAGEN!D49=TRUE),FRAGEN_L!A49,\"nichtgewaehlt\")","v":"nichtgewaehlt"},{"$f":"AVERAGE(ERGEBNISSE_L!B48:AK48)","v":{"$error":"#DIV/0!"}}]
[{"$f":"IF(OR(FRAGEN!$D$48=TRUE,FRAGEN!D50=TRUE),FRAGEN_L!A50,\"nichtgewaehlt\")","v":"nichtgewaehlt"},{"$f":"AVERAGE(ERGEBNISSE_L!B49:AK49)","v":{"$error":"#DIV/0!"}}]
[{"$f":"IF(OR(FRAGEN!$D$48=TRUE,FRAGEN!D51=TRUE),FRAGEN_L!A51,\"nichtgewaehlt\")","v":"nichtgewaehlt"},{"$f":"AVERAGE(ERGEBNISSE_L!B50:AK50)","v":{"$error":"#DIV/0!"}}]
[null,null,null,{"$f":"AVERAGE(IFERROR(B52:B54,\"\"))","v":{"$error":"#DIV/0!"}}]
[{"$f":"IF(OR(FRAGEN!$D$52=TRUE,FRAGEN!D53=TRUE),FRAGEN_L!A53,\"nichtgewaehlt\")","v":"nichtgewaehlt"},{"$f":"AVERAGE(ERGEBNISSE_L!B52:AK52)","v":{"$error":"#DIV/0!"}}]
[{"$f":"IF(OR(FRAGEN!$D$52=TRUE,FRAGEN!D54=TRUE),FRAGEN_L!A54,\"nichtgewaehlt\")","v":"nichtgewaehlt"},{"$f":"AVERAGE(ERGEBNISSE_L!B53:AK53)","v":{"$error":"#DIV/0!"}}]
[{"$f":"IF(OR(FRAGEN!$D$52=TRUE,FRAGEN!D55=TRUE),FRAGEN_L!A55,\"nichtgewaehlt\")","v":"nichtgewaehlt"},{"$f":"AVERAGE(ERGEBNISSE_L!B54:AK54)","v":{"$error":"#DIV/0!"}}]
[null,null,null,{"$f":"AVERAGE(IFERROR(B56:B59,\"\"))","v":{"$error":"#DIV/0!"}}]
[{"$f":"IF(OR(FRAGEN!$D$56=TRUE,FRAGEN!D57=TRUE),FRAGEN_L!A57,\"nichtgewaehlt\")","v":"nichtgewaehlt"},{"$f":"AVERAGE(ERGEBNISSE_L!B56:AK56)","v":{"$error":"#DIV/0!"}}]
[{"$f":"IF(OR(FRAGEN!$D$56=TRUE,FRAGEN!D58=TRUE),FRAGEN_L!A58,\"nichtgewaehlt\")","v":"nichtgewaehlt"},{"$f":"AVERAGE(ERGEBNISSE_L!B57:AK57)","v":{"$error":"#DIV/0!"}}]
[{"$f":"IF(OR(FRAGEN!$D$56=TRUE,FRAGEN!D59=TRUE),FRAGEN_L!A59,\"nichtgewaehlt\")","v":"nichtgewaehlt"},{"$f":"AVERAGE(ERGEBNISSE_L!B58:AK58)","v":{"$error":"#DIV/0!"}}]
[{"$f":"IF(OR(FRAGEN!$D$56=TRUE,FRAGEN!D60=TRUE),FRAGEN_L!A60,\"nichtgewaehlt\")","v":"nichtgewaehlt"},{"$f":"AVERAGE(ERGEBNISSE_L!B59:AK59)","v":{"$error":"#DIV/0!"}}]
[]
[]
[]
[null,null,null,{"$f":"AVERAGE(IFERROR(B64:B66,\"\"))","v":{"$error":"#DIV/0!"}}]
[{"$f":"IF(OR(FRAGEN!$D$64=TRUE,FRAGEN!D65=TRUE),FRAGEN_L!A65,\"nichtgewaehlt\")","v":"nichtgewaehlt"},{"$f":"AVERAGE(ERGEBNISSE_L!B64:AK64)","v":{"$error":"#DIV/0!"}}]
[{"$f":"IF(OR(FRAGEN!$D$64=TRUE,FRAGEN!D66=TRUE),FRAGEN_L!A66,\"nichtgewaehlt\")","v":"nichtgewaehlt"},{"$f":"AVERAGE(ERGEBNISSE_L!B65:AK65)","v":{"$error":"#DIV/0!"}}]
[{"$f":"IF(OR(FRAGEN!$D$64=TRUE,FRAGEN!D67=TRUE),FRAGEN_L!A67,\"nichtgewaehlt\")","v":"nichtgewaehlt"},{"$f":"AVERAGE(ERGEBNISSE_L!B66:AK66)","v":{"$error":"#DIV/0!"}}]
[]
[null,null,null,{"$f":"AVERAGE(IFERROR(B69:B72,\"\"))","v":{"$error":"#DIV/0!"}}]
[{"$f":"IF(OR(FRAGEN!$D$69=TRUE,FRAGEN!D70),FRAGEN_L!A70,\"nichtgewaehlt\")","v":"nichtgewaehlt"},{"$f":"AVERAGE(ERGEBNISSE_L!B69:AK69)","v":{"$error":"#DIV/0!"}}]
[{"$f":"IF(OR(FRAGEN!$D$69=TRUE,FRAGEN!D71),FRAGEN_L!A71,\"nichtgewaehlt\")","v":"nichtgewaehlt"},{"$f":"AVERAGE(ERGEBNISSE_L!B70:AK70)","v":{"$error":"#DIV/0!"}}]
[{"$f":"IF(OR(FRAGEN!$D$69=TRUE,FRAGEN!D72),FRAGEN_L!A72,\"nichtgewaehlt\")","v":"nichtgewaehlt"},{"$f":"AVERAGE(ERGEBNISSE_L!B71:AK71)","v":{"$error":"#DIV/0!"}}]
[{"$f":"IF(OR(FRAGEN!$D$69=TRUE,FRAGEN!D73),FRAGEN_L!A73,\"nichtgewaehlt\")","v":"nichtgewaehlt"},{"$f":"AVERAGE(ERGEBNISSE_L!B72:AK72)","v":{"$error":"#DIV/0!"}}]
[null,null,null,{"$f":"AVERAGE(IFERROR(B74:B78,\"\"))","v":{"$error":"#DIV/0!"}}]
[{"$f":"IF(OR(FRAGEN!$D$74=TRUE,FRAGEN!D75=TRUE),FRAGEN_L!A75,\"nichtgewaehlt\")","v":"nichtgewaehlt"},{"$f":"AVERAGE(ERGEBNISSE_L!B74:AK74)","v":{"$error":"#DIV/0!"}}]
[{"$f":"IF(OR(FRAGEN!$D$74=TRUE,FRAGEN!D76=TRUE),FRAGEN_L!A76,\"nichtgewaehlt\")","v":"nichtgewaehlt"},{"$f":"AVERAGE(ERGEBNISSE_L!B75:AK75)","v":{"$error":"#DIV/0!"}}]
[{"$f":"IF(OR(FRAGEN!$D$74=TRUE,FRAGEN!D77=TRUE),FRAGEN_L!A77,\"nichtgewaehlt\")","v":"nichtgewaehlt"},{"$f":"AVERAGE(ERGEBNISSE_L!B76:AK76)","v":{"$error":"#DIV/0!"}}]
[{"$f":"IF(OR(FRAGEN!$D$74=TRUE,FRAGEN!D78=TRUE),FRAGEN_L!A78,\"nichtgewaehlt\")","v":"nichtgewaehlt"},{"$f":"AVERAGE(ERGEBNISSE_L!B77:AK77)","v":{"$error":"#DIV/0!"}}]
[{"$f":"IF(OR(FRAGEN!$D$74=TRUE,FRAGEN!D79=TRUE),FRAGEN_L!A79,\"nichtgewaehlt\")","v":"nichtgewaehlt"},{"$f":"AVERAGE(ERGEBNISSE_L!B78:AK78)","v":{"$error":"#DIV/0!"}}]
[]
[null,null,null,{"$f":"AVERAGE(IFERROR(B81:B84,\"\"))","v":{"$error":"#DIV/0!"}}]
[{"$f":"IF(OR(FRAGEN!$D$81=TRUE,FRAGEN!D82=TRUE),FRAGEN_L!A82,\"nichtgewaehlt\")","v":"nichtgewaehlt"},{"$f":"AVERAGE(ERGEBNISSE_L!B81:AK81)","v":{"$error":"#DIV/0!"}}]
[{"$f":"IF(OR(FRAGEN!$D$81=TRUE,FRAGEN!D83=TRUE),FRAGEN_L!A83,\"nichtgewaehlt\")","v":"nichtgewaehlt"},{"$f":"AVERAGE(ERGEBNISSE_L!B82:AK82)","v":{"$error":"#DIV/0!"}}]
[{"$f":"IF(OR(FRAGEN!$D$81=TRUE,FRAGEN!D84=TRUE),FRAGEN_L!A84,\"nichtgewaehlt\")","v":"nichtgewaehlt"},{"$f":"AVERAGE(ERGEBNISSE_L!B83:AK83)","v":{"$error":"#DIV/0!"}}]
[{"$f":"IF(OR(FRAGEN!$D$81=TRUE,FRAGEN!D85=TRUE),FRAGEN_L!A85,\"nichtgewaehlt\")","v":"nichtgewaehlt"},{"$f":"AVERAGE(ERGEBNISSE_L!B84:AK84)","v":{"$error":"#DIV/0!"}}]
[]
[]
[]
[null,null,null,{"$f":"AVERAGE(IFERROR(B89:B108,\"\"))","v":{"$error":"#DIV/0!"}}]
[{"$f":"IF(OR(FRAGEN!$D$88=TRUE,FRAGEN!D90=TRUE),FRAGEN_L!A89,\"nichtgewaehlt\")","v":"nichtgewaehlt"},{"$f":"AVERAGE(ERGEBNISSE_L!B89:AK89)","v":{"$error":"#DIV/0!"}}]
[{"$f":"IF(OR(FRAGEN!$D$88=TRUE,FRAGEN!D90=TRUE),FRAGEN_L!A90,\"nichtgewaehlt\")","v":"nichtgewaehlt"},{"$f":"AVERAGE(ERGEBNISSE_L!B90:AK90)","v":{"$error":"#DIV/0!"}}]
[{"$f":"IF(OR(FRAGEN!$D$88=TRUE,FRAGEN!D91=TRUE),FRAGEN_L!A91,\"nichtgewaehlt\")","v":"nichtgewaehlt"},{"$f":"AVERAGE(ERGEBNISSE_L!B91:AK91)","v":{"$error":"#DIV/0!"}}]
[{"$f":"IF(OR(FRAGEN!$D$88=TRUE,FRAGEN!D92=TRUE),FRAGEN_L!A92,\"nichtgewaehlt\")","v":"nichtgewaehlt"},{"$f":"AVERAGE(ERGEBNISSE_L!B92:AK92)","v":{"$error":"#DIV/0!"}}]
[{"$f":"IF(OR(FRAGEN!$D$88=TRUE,FRAGEN!D93=TRUE),FRAGEN_L!A93,\"nichtgewaehlt\")","v":"nichtgewaehlt"},{"$f":"AVERAGE(ERGEBNISSE_L!B93:AK93)","v":{"$error":"#DIV/0!"}}]
[{"$f":"IF(OR(FRAGEN!$D$88=TRUE,FRAGEN!D94=TRUE),FRAGEN_L!A94,\"nichtgewaehlt\")","v":"nichtgewaehlt"},{"$f":"AVERAGE(ERGEBNISSE_L!B94:AK94)","v":{"$error":"#DIV/0!"}}]
[{"$f":"IF(OR(FRAGEN!$D$88=TRUE,FRAGEN!D95=TRUE),FRAGEN_L!A95,\"nichtgewaehlt\")","v":"nichtgewaehlt"},{"$f":"AVERAGE(ERGEBNISSE_L!B95:AK95)","v":{"$error":"#DIV/0!"}}]
[{"$f":"IF(OR(FRAGEN!$D$88=TRUE,FRAGEN!D96=TRUE),FRAGEN_L!A96,\"nichtgewaehlt\")","v":"nichtgewaehlt"},{"$f":"AVERAGE(ERGEBNISSE_L!B96:AK96)","v":{"$error":"#DIV/0!"}}]
[{"$f":"IF(OR(FRAGEN!$D$88=TRUE,FRAGEN!D97=TRUE),FRAGEN_L!A97,\"nichtgewaehlt\")","v":"nichtgewaehlt"},{"$f":"AVERAGE(ERGEBNISSE_L!B97:AK97)","v":{"$error":"#DIV/0!"}}]
[{"$f":"IF(OR(FRAGEN!$D$88=TRUE,FRAGEN!D98=TRUE),FRAGEN_L!A98,\"nichtgewaehlt\")","v":"nichtgewaehlt"},{"$f":"AVERAGE(ERGEBNISSE_L!B98:AK98)","v":{"$error":"#DIV/0!"}}]
[{"$f":"IF(OR(FRAGEN!$D$88=TRUE,FRAGEN!D99=TRUE),FRAGEN_L!A99,\"nichtgewaehlt\")","v":"nichtgewaehlt"},{"$f":"AVERAGE(ERGEBNISSE_L!B99:AK99)","v":{"$error":"#DIV/0!"}}]
[{"$f":"IF(OR(FRAGEN!$D$88=TRUE,FRAGEN!D100=TRUE),FRAGEN_L!A100,\"nichtgewaehlt\")","v":"nichtgewaehlt"},{"$f":"AVERAGE(ERGEBNISSE_L!B100:AK100)","v":{"$error":"#DIV/0!"}}]
[{"$f":"IF(OR(FRAGEN!$D$88=TRUE,FRAGEN!D101=TRUE),FRAGEN_L!A101,\"nichtgewaehlt\")","v":"nichtgewaehlt"},{"$f":"AVERAGE(ERGEBNISSE_L!B101:AK101)","v":{"$error":"#DIV/0!"}}]
[{"$f":"IF(OR(FRAGEN!$D$88=TRUE,FRAGEN!D102=TRUE),FRAGEN_L!A102,\"nichtgewaehlt\")","v":"nichtgewaehlt"},{"$f":"AVERAGE(ERGEBNISSE_L!B102:AK102)","v":{"$error":"#DIV/0!"}}]
[{"$f":"IF(OR(FRAGEN!$D$88=TRUE,FRAGEN!D103=TRUE),FRAGEN_L!A103,\"nichtgewaehlt\")","v":"nichtgewaehlt"},{"$f":"AVERAGE(ERGEBNISSE_L!B103:AK103)","v":{"$error":"#DIV/0!"}}]
[{"$f":"IF(OR(FRAGEN!$D$88=TRUE,FRAGEN!D104=TRUE),FRAGEN_L!A104,\"nichtgewaehlt\")","v":"nichtgewaehlt"},{"$f":"AVERAGE(ERGEBNISSE_L!B104:AK104)","v":{"$error":"#DIV/0!"}}]
[{"$f":"IF(OR(FRAGEN!$D$88=TRUE,FRAGEN!D105=TRUE),FRAGEN_L!A105,\"nichtgewaehlt\")","v":"nichtgewaehlt"},{"$f":"AVERAGE(ERGEBNISSE_L!B105:AK105)","v":{"$error":"#DIV/0!"}}]
[{"$f":"IF(OR(FRAGEN!$D$88=TRUE,FRAGEN!D106=TRUE),FRAGEN_L!A106,\"nichtgewaehlt\")","v":"nichtgewaehlt"},{"$f":"AVERAGE(ERGEBNISSE_L!B106:AK106)","v":{"$error":"#DIV/0!"}}]
[{"$f":"IF(OR(FRAGEN!$D$88=TRUE,FRAGEN!D107=TRUE),FRAGEN_L!A107,\"nichtgewaehlt\")","v":"nichtgewaehlt"},{"$f":"AVERAGE(ERGEBNISSE_L!B107:AK107)","v":{"$error":"#DIV/0!"}}]
[{"$f":"IF(OR(FRAGEN!$D$88=TRUE,FRAGEN!D108=TRUE),FRAGEN_L!A108,\"nichtgewaehlt\")","v":"nichtgewaehlt"},{"$f":"AVERAGE(ERGEBNISSE_L!B108:AK108)","v":{"$error":"#DIV/0!"}}]

{"sheet":"BERECHNUNG_DIFF","index":21,"n_rows":110,"n_cols":18,"rows_kept":110,"cut":false,"hidden":false,"merged":[[0,16,0,17],[0,3,0,4],[0,5,0,6],[0,7,0,8],[0,10,0,11],[0,13,0,14]]}
[null,null,null,"Mittelwerte SuS",null,"Mittelwerte H",null,"Mittelwerte L",null,null,"Differenz  Schüler - Hospitant",null,null,"Differenz Schüler - Lehrer",null,null,"Differenz Hospitant - Lehrer"]
[]
["Frage",null,null,null,{"$f":"AUSWERTUNG_S!D1","v":{"$error":"#DIV/0!"}},null,{"$f":"AUSWERTUNG_H!D1","v":{"$error":"#DIV/0!"}},null,{"$f":"AUSWERTUNG_L!D1","v":{"$error":"#DIV/0!"}},null,null,{"$f":"ABS(E3-G3)","v":{"$error":"#DIV/0!"}},null,null,{"$f":"ABS(E3-I3)","v":{"$error":"#DIV/0!"}},null,null,{"$f":"ABS(G3-I3)","v":{"$error":"#DIV/0!"}}]
[1,{"$f":"IF(OR(FRAGEN!$D$2=TRUE, FRAGEN!$D$3=TRUE),FRAGEN!$B$3,\"leer\")","v":"leer"},null,{"$f":"AUSWERTUNG_S!B2","v":{"$error":"#DIV/0!"}},null,{"$f":"AUSWERTUNG_H!B2","v":{"$error":"#DIV/0!"}},null,{"$f":"AUSWERTUNG_L!B2","v":{"$error":"#DIV/0!"}},null,null,{"$f":"ABS(D4-F4)","v":{"$error":"#DIV/0!"}},null,null,{"$f":"ABS(D4-H4)","v":{"$error":"#DIV/0!"}},null,null,{"$f":"ABS(F4-H4)","v":{"$error":"#DIV/0!"}}]
[1,{"$f":"IF(OR(FRAGEN!$D$2=TRUE, FRAGEN!$D$4=TRUE),FRAGEN!$B$4,\"leer\")","v":"leer"},null,{"$f":"AUSWERTUNG_S!B3","v":{"$error":"#DIV/0!"}},null,{"$f":"AUSWERTUNG_H!B3","v":{"$error":"#DIV/0!"}},null,{"$f":"AUSWERTUNG_L!B3","v":{"$error":"#DIV/0!"}},null,null,{"$f":"ABS(D5-F5)","v":{"$error":"#DIV/0!"}},null,null,{"$f":"ABS(D5-H5)","v":{"$error":"#DIV/0!"}},null,null,{"$f":"ABS(F5-H5)","v":{"$error":"#DIV/0!"}}]
[2,{"$f":"IF(OR(FRAGEN!$D$2=TRUE, FRAGEN!$D$5=TRUE),FRAGEN!$B$5,\"leer\")","v":"leer"},null,{"$f":"AUSWERTUNG_S!B4","v":{"$error":"#DIV/0!"}},null,{"$f":"AUSWERTUNG_H!B4","v":{"$error":"#DIV/0!"}},null,{"$f":"AUSWERTUNG_L!B4","v":{"$error":"#DIV/0!"}},null,null,{"$error":"#DIV/0!"},null,null,{"$error":"#DIV/0!"},null,null,{"$error":"#DIV/0!"}]
[3,{"$f":"IF(OR(FRAGEN!$D$2=TRUE, FRAGEN!$D$6=TRUE),FRAGEN!$B$6,\"leer\")","v":"leer"},null,{"$f":"AUSWERTUNG_S!B5","v":{"$error":"#DIV/0!"}},null,{"$f":"AUSWERTUNG_H!B5","v":{"$error":"#DIV/0!"}},null,{"$f":"AUSWERTUNG_L!B5","v":{"$error":"#DIV/0!"}},null,null,{"$error":"#DIV/0!"},null,null,{"$error":"#DIV/0!"},null,null,{"$error":"#DIV/0!"}]
[4,{"$f":"IF(OR(FRAGEN!$D$2=TRUE, FRAGEN!$D$7=TRUE),FRAGEN!$B$7,\"leer\")","v":"leer"},null,{"$f":"AUSWERTUNG_S!B6","v":{"$error":"#DIV/0!"}},null,{"$f":"AUSWERTUNG_H!B6","v":{"$error":"#DIV/0!"}},null,{"$f":"AUSWERTUNG_L!B6","v":{"$error":"#DIV/0!"}},null,null,{"$error":"#DIV/0!"},null,null,{"$error":"#DIV/0!"},null,null,{"$error":"#DIV/0!"}]
[5,null,null,null,{"$f":"AUSWERTUNG_S!D7","v":{"$error":"#DIV/0!"}},null,{"$f":"AUSWERTUNG_H!D7","v":{"$error":"#DIV/0!"}},null,{"$f":"AUSWERTUNG_L!D7","v":{"$error":"#DIV/0!"}},null,null,{"$f":"ABS(E9-G9)","v":{"$error":"#DIV/0!"}},null,null,{"$f":"ABS(E9-I9)","v":{"$error":"#DIV/0!"}},null,null,{"$f":"ABS(G9-I9)","v":{"$error":"#DIV/0!"}}]
[2,{"$f":"IF(OR(FRAGEN!$D$8=TRUE,FRAGEN!$D$9=TRUE),FRAGEN!$B$9,\"leer\")","v":"leer"},null,{"$f":"AUSWERTUNG_S!B8","v":{"$error":"#DIV/0!"}},null,{"$f":"AUSWERTUNG_H!B8","v":{"$error":"#DIV/0!"}},null,{"$f":"AUSWERTUNG_L!B8","v":{"$error":"#DIV/0!"}},null,null,{"$error":"#DIV/0!"},null,null,{"$error":"#DIV/0!"},null,null,{"$error":"#DIV/0!"}]
[6,{"$f":"IF(OR(FRAGEN!$D$8=TRUE,FRAGEN!$D$10=TRUE),FRAGEN!$B$10,\"leer\")","v":"leer"},null,{"$f":"AUSWERTUNG_S!B9","v":{"$error":"#DIV/0!"}},null,{"$f":"AUSWERTUNG_H!B9","v":{"$error":"#DIV/0!"}},null,{"$f":"AUSWERTUNG_L!B9","v":{"$error":"#DIV/0!"}},null,null,{"$error":"#DIV/0!"},null,null,{"$error":"#DIV/0!"},null,null,{"$error":"#DIV/0!"}]
[7,{"$f":"IF(OR(FRAGEN!$D$8=TRUE,FRAGEN!$D$11=TRUE),FRAGEN!$B$11,\"leer\")","v":"leer"},null,{"$f":"AUSWERTUNG_S!B10","v":{"$error":"#DIV/0!"}},null,{"$f":"AUSWERTUNG_H!B10","v":{"$error":"#DIV/0!"}},null,{"$f":"AUSWERTUNG_L!B10","v":{"$error":"#DIV/0!"}},null,null,{"$error":"#DIV/0!"},null,null,{"$error":"#DIV/0!"},null,null,{"$error":"#DIV/0!"}]
[8,{"$f":"IF(OR(FRAGEN!$D$8=TRUE,FRAGEN!$D$12=TRUE),FRAGEN!$B$12,\"leer\")","v":"leer"},null,{"$f":"AUSWERTUNG_S!B11","v":{"$error":"#DIV/0!"}},null,{"$f":"AUSWERTUNG_H!B11","v":{"$error":"#DIV/0!"}},null,{"$f":"AUSWERTUNG_L!B11","v":{"$error":"#DIV/0!"}},null,null,{"$error":"#DIV/0!"},null,null,{"$error":"#DIV/0!"},null,null,{"$error":"#DIV/0!"}]
[9]
[null,null,null,null,{"$f":"AUSWERTUNG_S!D13","v":{"$error":"#DIV/0!"}},null,{"$f":"AUSWERTUNG_H!D13","v":{"$error":"#DIV/0!"}},null,{"$f":"AUSWERTUNG_L!D13","v":{"$error":"#DIV/0!"}},null,null,{"$error":"#DIV/0!"},null,null,{"$error":"#DIV/0!"},null,null,{"$error":"#DIV/0!"}]
[3,{"$f":"IF(OR(FRAGEN!$D$14=TRUE,FRAGEN!$D$15=TRUE),FRAGEN!$B$15,\"leer\")","v":"leer"},null,{"$f":"AUSWERTUNG_S!B14","v":{"$error":"#DIV/0!"}},null,{"$f":"AUSWERTUNG_H!B14","v":{"$error":"#DIV/0!"}},null,{"$f":"AUSWERTUNG_L!B14","v":{"$error":"#DIV/0!"}},null,null,{"$error":"#DIV/0!"},null,null,{"$error":"#DIV/0!"},null,null,{"$error":"#DIV/0!"}]
[10,{"$f":"IF(OR(FRAGEN!$D$14=TRUE,FRAGEN!$D$16=TRUE),FRAGEN!$B$16,\"leer\")","v":"leer"},null,{"$f":"AUSWERTUNG_S!B15","v":{"$error":"#DIV/0!"}},null,{"$f":"AUSWERTUNG_H!B15","v":{"$error":"#DIV/0!"}},null,{"$f":"AUSWERTUNG_L!B15","v":{"$error":"#DIV/0!"}},null,null,{"$error":"#DIV/0!"},null,null,{"$error":"#DIV/0!"},null,null,{"$error":"#DIV/0!"}]
[11,{"$f":"IF(OR(FRAGEN!$D$14=TRUE,FRAGEN!$D$17=TRUE),FRAGEN!$B$17,\"leer\")","v":"leer"},null,{"$f":"AUSWERTUNG_S!B16","v":{"$error":"#DIV/0!"}},null,{"$f":"AUSWERTUNG_H!B16","v":{"$error":"#DIV/0!"}},null,{"$f":"AUSWERTUNG_L!B16","v":{"$error":"#DIV/0!"}},null,null,{"$error":"#DIV/0!"},null,null,{"$error":"#DIV/0!"},null,null,{"$error":"#DIV/0!"}]
[12,{"$f":"IF(OR(FRAGEN!$D$14=TRUE,FRAGEN!$D$18=TRUE),FRAGEN!$B$18,\"leer\")","v":"leer"},null,{"$f":"AUSWERTUNG_S!B17","v":{"$error":"#DIV/0!"}},null,{"$f":"AUSWERTUNG_H!B17","v":{"$error":"#DIV/0!"}},null,{"$f":"AUSWERTUNG_L!B17","v":{"$error":"#DIV/0!"}},null,null,{"$error":"#DIV/0!"},null,null,{"$error":"#DIV/0!"},null,null,{"$error":"#DIV/0!"}]
[13,{"$f":"IF(OR(FRAGEN!$D$14=TRUE,FRAGEN!$D$19=TRUE),FRAGEN!$B$19,\"leer\")","v":"leer"},null,{"$f":"AUSWERTUNG_S!B18","v":{"$error":"#DIV/0!"}},null,{"$f":"AUSWERTUNG_H!B18","v":{"$error":"#DIV/0!"}},null,{"$f":"AUSWERTUNG_L!B18","v":{"$error":"#DIV/0!"}},null,null,{"$error":"#DIV/0!"},null,null,{"$error":"#DIV/0!"},null,null,{"$error":"#DIV/0!"}]
[14,{"$f":"IF(OR(FRAGEN!$D$14=TRUE,FRAGEN!$D$20=TRUE),FRAGEN!$B$20,\"leer\")","v":"leer"},null,{"$f":"AUSWERTUNG_S!B19","v":{"$error":"#DIV/0!"}},null,{"$f":"AUSWERTUNG_H!B19","v":{"$error":"#DIV/0!"}},null,{"$f":"AUSWERTUNG_L!B19","v":{"$error":"#DIV/0!"}},null,null,{"$error":"#DIV/0!"},null,null,{"$error":"#DIV/0!"},null,null,{"$error":"#DIV/0!"}]
[15,null,null,null,{"$f":"AUSWERTUNG_S!D20","v":{"$error":"#DIV/0!"}},null,{"$f":"AUSWERTUNG_H!D20","v":{"$error":"#DIV/0!"}},null,{"$f":"AUSWERTUNG_L!D20","v":{"$error":"#DIV/0!"}},null,null,{"$error":"#DIV/0!"},null,null,{"$error":"#DIV/0!"},null,null,{"$error":"#DIV/0!"}]
[4,{"$f":"IF(OR(FRAGEN!$D$21=TRUE,FRAGEN!$D$22=TRUE),FRAGEN!$B$22,\"leer\")","v":"leer"},null,{"$f":"AUSWERTUNG_S!B21","v":{"$error":"#DIV/0!"}},null,{"$f":"AUSWERTUNG_H!B21","v":{"$error":"#DIV/0!"}},null,{"$f":"AUSWERTUNG_L!B21","v":{"$error":"#DIV/0!"}},null,null,{"$error":"#DIV/0!"},null,null,{"$error":"#DIV/0!"},null,null,{"$error":"#DIV/0!"}]
[16,{"$f":"IF(OR(FRAGEN!$D$21=TRUE,FRAGEN!$D$23=TRUE),FRAGEN!$B$23,\"leer\")","v":"leer"},null,{"$f":"AUSWERTUNG_S!B22","v":{"$error":"#DIV/0!"}},null,{"$f":"AUSWERTUNG_H!B22","v":{"$error":"#DIV/0!"}},null,{"$f":"AUSWERTUNG_L!B22","v":{"$error":"#DIV/0!"}},null,null,{"$error":"#DIV/0!"},null,null,{"$error":"#DIV/0!"},null,null,{"$error":"#DIV/0!"}]
[17,{"$f":"IF(OR(FRAGEN!$D$21=TRUE,FRAGEN!$D$24=TRUE),FRAGEN!$B$24,\"leer\")","v":"leer"},null,{"$f":"AUSWERTUNG_S!B23","v":{"$error":"#DIV/0!"}},null,{"$f":"AUSWERTUNG_H!B23","v":{"$error":"#DIV/0!"}},null,{"$f":"AUSWERTUNG_L!B23","v":{"$error":"#DIV/0!"}},null,null,{"$error":"#DIV/0!"},null,null,{"$error":"#DIV/0!"},null,null,{"$error":"#DIV/0!"}]
[18,{"$f":"IF(OR(FRAGEN!$D$21=TRUE,FRAGEN!$D$25=TRUE),FRAGEN!$B$25,\"leer\")","v":"leer"},null,{"$f":"AUSWERTUNG_S!B24","v":{"$error":"#DIV/0!"}},null,{"$f":"AUSWERTUNG_H!B24","v":{"$error":"#DIV/0!"}},null,{"$f":"AUSWERTUNG_L!B24","v":{"$error":"#DIV/0!"}},null,null,{"$error":"#DIV/0!"},null,null,{"$error":"#DIV/0!"},null,null,{"$error":"#DIV/0!"}]
[19,{"$f":"IF(OR(FRAGEN!$D$21=TRUE,FRAGEN!$D$26=TRUE),FRAGEN!$B$26,\"leer\")","v":"leer"},null,{"$f":"AUSWERTUNG_S!B25","v":{"$error":"#DIV/0!"}},null,{"$f":"AUSWERTUNG_H!B25","v":{"$error":"#DIV/0!"}},null,{"$f":"AUSWERTUNG_L!B25","v":{"$error":"#DIV/0!"}},null,null,{"$error":"#DIV/0!"},null,null,{"$error":"#DIV/0!"},null,null,{"$error":"#DIV/0!"}]
[20]
[null,null,null,null,{"$f":"AUSWERTUNG_S!D27","v":{"$error":"#DIV/0!"}},null,{"$f":"AUSWERTUNG_H!D27","v":{"$error":"#DIV/0!"}},null,{"$f":"AUSWERTUNG_L!D27","v":{"$error":"#DIV/0!"}},null,null,{"$error":"#DIV/0!"},null,null,{"$error":"#DIV/0!"},null,null,{"$error":"#DIV/0!"}]
[5]
[]
[null,{"$f":"IF(OR(FRAGEN!$D$28=TRUE,FRAGEN!$D$31=TRUE),FRAGEN!$B$31,\"leer\")","v":"leer"},null,{"$f":"AUSWERTUNG_S!B30","v":{"$error":"#DIV/0!"}},null,{"$f":"AUSWERTUNG_H!B30","v":{"$error":"#DIV/0!"}},null,{"$f":"AUSWERTUNG_L!B30","v":{"$error":"#DIV/0!"}},null,null,{"$error":"#DIV/0!"},null,null,{"$error":"#DIV/0!"},null,null,{"$error":"#DIV/0!"}]
[21,{"$f":"IF(OR(FRAGEN!$D$28=TRUE,FRAGEN!$D$32=TRUE),FRAGEN!$B$32,\"leer\")","v":"leer"},null,{"$f":"AUSWERTUNG_S!B31","v":{"$error":"#DIV/0!"}},null,{"$f":"AUSWERTUNG_H!B31","v":{"$error":"#DIV/0!"}},null,{"$f":"AUSWERTUNG_L!B31","v":{"$error":"#DIV/0!"}},null,null,{"$error":"#DIV/0!"},null,null,{"$error":"#DIV/0!"},null,null,{"$error":"#DIV/0!"}]
[22,{"$f":"IF(OR(FRAGEN!$D$28=TRUE,FRAGEN!$D$33=TRUE),FRAGEN!$B$33,\"leer\")","v":"leer"},null,{"$f":"AUSWERTUNG_S!B32","v":{"$error":"#DIV/0!"}},null,{"$f":"AUSWERTUNG_H!B32","v":{"$error":"#DIV/0!"}},null,{"$f":"AUSWERTUNG_L!B32","v":{"$error":"#DIV/0!"}},null,null,{"$error":"#DIV/0!"},null,null,{"$error":"#DIV/0!"},null,null,{"$error":"#DIV/0!"}]
[23,{"$f":"IF(OR(FRAGEN!$D$28=TRUE,FRAGEN!$D$34=TRUE),FRAGEN!$B$34,\"leer\")","v":"leer"},null,null,{"$f":"AUSWERTUNG_S!D33","v":{"$error":"#DIV/0!"}},null,{"$f":"AUSWERTUNG_H!D33","v":{"$error":"#DIV/0!"}},null,{"$f":"AUSWERTUNG_L!D33","v":{"$error":"#DIV/0!"}},null,null,{"$error":"#DIV/0!"},null,null,{"$error":"#DIV/0!"},null,null,{"$error":"#DIV/0!"}]
[6,{"$f":"IF(OR(FRAGEN!$D$28=TRUE,FRAGEN!$D$35=TRUE),FRAGEN!$B$35,\"leer\")","v":"leer"},null,{"$f":"AUSWERTUNG_S!B34","v":{"$error":"#DIV/0!"}},null,{"$f":"AUSWERTUNG_H!B34","v":{"$error":"#DIV/0!"}},null,{"$f":"AUSWERTUNG_L!B34","v":{"$error":"#DIV/0!"}},null,null,{"$error":"#DIV/0!"},null,null,{"$error":"#DIV/0!"},null,null,{"$error":"#DIV/0!"}]
[24,{"$f":"IF(OR(FRAGEN!$D$34=TRUE,FRAGEN!$D$36=TRUE),FRAGEN!$B$36,\"leer\")","v":"leer"},null,{"$f":"AUSWERTUNG_S!B35","v":{"$error":"#DIV/0!"}},null,{"$f":"AUSWERTUNG_H!B35","v":{"$error":"#DIV/0!"}},null,{"$f":"AUSWERTUNG_L!B35","v":{"$error":"#DIV/0!"}},null,null,{"$error":"#DIV/0!"},null,null,{"$error":"#DIV/0!"},null,null,{"$error":"#DIV/0!"}]
[25,{"$f":"IF(OR(FRAGEN!$D$34=TRUE,FRAGEN!$D$37=TRUE),FRAGEN!$B$37,\"leer\")","v":"leer"},null,{"$f":"AUSWERTUNG_S!B36","v":{"$error":"#DIV/0!"}},null,{"$f":"AUSWERTUNG_H!B36","v":{"$error":"#DIV/0!"}},null,{"$f":"AUSWERTUNG_L!B36","v":{"$error":"#DIV/0!"}},null,null,{"$error":"#DIV/0!"},null,null,{"$error":"#DIV/0!"},null,null,{"$error":"#DIV/0!"}]
[26,{"$f":"IF(OR(FRAGEN!$D$34=TRUE,FRAGEN!$D$38=TRUE),FRAGEN!$B$38,\"leer\")","v":"leer"},null,{"$f":"AUSWERTUNG_S!B37","v":{"$error":"#DIV/0!"}},null,{"$f":"AUSWERTUNG_H!B37","v":{"$error":"#DIV/0!"}},null,{"$f":"AUSWERTUNG_L!B37","v":{"$error":"#DIV/0!"}},null,null,{"$error":"#DIV/0!"},null,null,{"$error":"#DIV/0!"},null,null,{"$error":"#DIV/0!"}]
[27,{"$f":"IF(OR(FRAGEN!$D$34=TRUE,FRAGEN!$D$39=TRUE),FRAGEN!$B$39,\"leer\")","v":"leer"},null,{"$f":"AUSWERTUNG_S!B38","v":{"$error":"#DIV/0!"}},null,{"$f":"AUSWERTUNG_H!B38","v":{"$error":"#DIV/0!"}},null,{"$f":"AUSWERTUNG_L!B38","v":{"$error":"#DIV/0!"}},null,null,{"$error":"#DIV/0!"},null,null,{"$error":"#DIV/0!"},null,null,{"$error":"#DIV/0!"}]
[28,{"$f":"IF(OR(FRAGEN!$D$34=TRUE,FRAGEN!$D$40=TRUE),FRAGEN!$B$40,\"leer\")","v":"leer"},null,{"$f":"AUSWERTUNG_S!B39","v":{"$error":"#DIV/0!"}},null,{"$f":"AUSWERTUNG_H!B39","v":{"$error":"#DIV/0!"}},null,{"$f":"AUSWERTUNG_L!B39","v":{"$error":"#DIV/0!"}},null,null,{"$error":"#DIV/0!"},null,null,{"$error":"#DIV/0!"},null,null,{"$error":"#DIV/0!"}]
[29,{"$f":"IF(OR(FRAGEN!$D$34=TRUE,FRAGEN!$D$41=TRUE),FRAGEN!$B$41,\"leer\")","v":"leer"},null,{"$f":"AUSWERTUNG_S!B40","v":{"$error":"#DIV/0!"}},null,{"$f":"AUSWERTUNG_H!B40","v":{"$error":"#DIV/0!"}},null,{"$f":"AUSWERTUNG_L!B40","v":{"$error":"#DIV/0!"}},null,null,{"$error":"#DIV/0!"},null,null,{"$error":"#DIV/0!"},null,null,{"$error":"#DIV/0!"}]
[30,{"$f":"IF(OR(FRAGEN!$D$34=TRUE,FRAGEN!$D$42=TRUE),FRAGEN!$B$42,\"leer\")","v":"leer"},null,{"$f":"AUSWERTUNG_S!B41","v":{"$error":"#DIV/0!"}},null,{"$f":"AUSWERTUNG_H!B41","v":{"$error":"#DIV/0!"}},null,{"$f":"AUSWERTUNG_L!B41","v":{"$error":"#DIV/0!"}},null,null,{"$error":"#DIV/0!"},null,null,{"$error":"#DIV/0!"},null,null,{"$error":"#DIV/0!"}]
[31,{"$f":"IF(OR(FRAGEN!$D$34=TRUE,FRAGEN!$D$43=TRUE),FRAGEN!$B$43,\"leer\")","v":"leer"},null,{"$f":"AUSWERTUNG_S!B42","v":{"$error":"#DIV/0!"}},null,{"$f":"AUSWERTUNG_H!B42","v":{"$error":"#DIV/0!"}},null,{"$f":"AUSWERTUNG_L!B42","v":{"$error":"#DIV/0!"}},null,null,{"$error":"#DIV/0!"},null,null,{"$error":"#DIV/0!"},null,null,{"$error":"#DIV/0!"}]
[32,{"$f":"IF(OR(FRAGEN!$D$34=TRUE,FRAGEN!$D$44=TRUE),FRAGEN!$B$44,\"leer\")","v":"leer"},null,{"$f":"AUSWERTUNG_S!B43","v":{"$error":"#DIV/0!"}},null,{"$f":"AUSWERTUNG_H!B43","v":{"$error":"#DIV/0!"}},null,{"$f":"AUSWERTUNG_L!B43","v":{"$error":"#DIV/0!"}},null,null,{"$error":"#DIV/0!"},null,null,{"$error":"#DIV/0!"},null,null,{"$error":"#DIV/0!"}]
[33,{"$f":"IF(OR(FRAGEN!$D$34=TRUE,FRAGEN!$D$45=TRUE),FRAGEN!$B$45,\"leer\")","v":"leer"},null,{"$f":"AUSWERTUNG_S!B44","v":{"$error":"#DIV/0!"}},null,{"$f":"AUSWERTUNG_H!B44","v":{"$error":"#DIV/0!"}},null,{"$f":"AUSWERTUNG_L!B44","v":{"$error":"#DIV/0!"}},null,null,{"$error":"#DIV/0!"},null,null,{"$error":"#DIV/0!"},null,null,{"$error":"#DIV/0!"}]
[34,{"$f":"IF(OR(FRAGEN!$D$34=TRUE,FRAGEN!$D$46=TRUE),FRAGEN!$B$46,\"leer\")","v":"leer"},null,{"$f":"AUSWERTUNG_S!B45","v":{"$error":"#DIV/0!"}},null,{"$f":"AUSWERTUNG_H!B45","v":{"$error":"#DIV/0!"}},null,{"$f":"AUSWERTUNG_L!B45","v":{"$error":"#DIV/0!"}},null,null,{"$error":"#DIV/0!"},null,null,{"$error":"#DIV/0!"},null,null,{"$error":"#DIV/0!"}]
[35]
[null,null,null,null,{"$f":"AUSWERTUNG_S!D47","v":{"$error":"#DIV/0!"}},null,{"$f":"AUSWERTUNG_H!D47","v":{"$error":"#DIV/0!"}},null,{"$f":"AUSWERTUNG_L!D47","v":{"$error":"#DIV/0!"}},null,null,{"$error":"#DIV/0!"},null,null,{"$error":"#DIV/0!"},null,null,{"$error":"#DIV/0!"}]
[7,{"$f":"IF(OR(FRAGEN!$D$48=TRUE,FRAGEN!$D$49=TRUE),FRAGEN!$B$49,\"leer\")","v":"leer"},null,{"$f":"AUSWERTUNG_S!B48","v":{"$error":"#DIV/0!"}},null,{"$f":"AUSWERTUNG_H!B48","v":{"$error":"#DIV/0!"}},null,{"$f":"AUSWERTUNG_L!B48","v":{"$error":"#DIV/0!"}},null,null,{"$error":"#DIV/0!"},null,null,{"$error":"#DIV/0!"},null,null,{"$error":"#DIV/0!"}]
[36,{"$f":"IF(OR(FRAGEN!$D$48=TRUE,FRAGEN!$D$50=TRUE),FRAGEN!$B$50,\"leer\")","v":"leer"},null,{"$f":"AUSWERTUNG_S!B49","v":{"$error":"#DIV/0!"}},null,{"$f":"AUSWERTUNG_H!B49","v":{"$error":"#DIV/0!"}},null,{"$f":"AUSWERTUNG_L!B49","v":{"$error":"#DIV/0!"}},null,null,{"$error":"#DIV/0!"},null,null,{"$error":"#DIV/0!"},null,null,{"$error":"#DIV/0!"}]
[37,{"$f":"IF(OR(FRAGEN!$D$48=TRUE,FRAGEN!$D$51=TRUE),FRAGEN!$B$51,\"leer\")","v":"leer"},null,{"$f":"AUSWERTUNG_S!B50","v":{"$error":"#DIV/0!"}},null,{"$f":"AUSWERTUNG_H!B50","v":{"$error":"#DIV/0!"}},null,{"$f":"AUSWERTUNG_L!B50","v":{"$error":"#DIV/0!"}},null,null,{"$error":"#DIV/0!"},null,null,{"$error":"#DIV/0!"},null,null,{"$error":"#DIV/0!"}]
[38,null,null,null,{"$f":"AUSWERTUNG_S!D51","v":{"$error":"#DIV/0!"}},null,{"$f":"AUSWERTUNG_H!D51","v":{"$error":"#DIV/0!"}},null,{"$f":"AUSWERTUNG_L!D51","v":{"$error":"#DIV/0!"}},null,null,{"$error":"#DIV/0!"},null,null,{"$error":"#DIV/0!"},null,null,{"$error":"#DIV/0!"}]
[8,{"$f":"IF(OR(FRAGEN!$D$52=TRUE,FRAGEN!$D$53=TRUE),FRAGEN!$B$53,\"leer\")","v":"leer"},null,{"$f":"AUSWERTUNG_S!B52","v":{"$error":"#DIV/0!"}},null,{"$f":"AUSWERTUNG_H!B52","v":{"$error":"#DIV/0!"}},null,{"$f":"AUSWERTUNG_L!B52","v":{"$error":"#DIV/0!"}},null,null,{"$error":"#DIV/0!"},null,null,{"$error":"#DIV/0!"},null,null,{"$error":"#DIV/0!"}]
[39,{"$f":"IF(OR(FRAGEN!$D$52=TRUE,FRAGEN!$D$54=TRUE),FRAGEN!$B$54,\"leer\")","v":"leer"},null,{"$f":"AUSWERTUNG_S!B53","v":{"$error":"#DIV/0!"}},null,{"$f":"AUSWERTUNG_H!B53","v":{"$error":"#DIV/0!"}},null,{"$f":"AUSWERTUNG_L!B53","v":{"$error":"#DIV/0!"}},null,null,{"$error":"#DIV/0!"},null,null,{"$error":"#DIV/0!"},null,null,{"$error":"#DIV/0!"}]
[40,{"$f":"IF(OR(FRAGEN!$D$52=TRUE,FRAGEN!$D$55=TRUE),FRAGEN!$B$55,\"leer\")","v":"leer"},null,{"$f":"AUSWERTUNG_S!B54","v":{"$error":"#DIV/0!"}},null,{"$f":"AUSWERTUNG_H!B54","v":{"$error":"#DIV/0!"}},null,{"$f":"AUSWERTUNG_L!B54","v":{"$error":"#DIV/0!"}},null,null,{"$error":"#DIV/0!"},null,null,{"$error":"#DIV/0!"},null,null,{"$error":"#DIV/0!"}]
[41,null,null,null,{"$f":"AUSWERTUNG_S!D55","v":{"$error":"#DIV/0!"}},null,{"$f":"AUSWERTUNG_H!D55","v":{"$error":"#DIV/0!"}},null,{"$f":"AUSWERTUNG_L!D55","v":{"$error":"#DIV/0!"}},null,null,{"$error":"#DIV/0!"},null,null,{"$error":"#DIV/0!"},null,null,{"$error":"#DIV/0!"}]
[9,{"$f":"IF(OR(FRAGEN!$D$56=TRUE,FRAGEN!$D$57=TRUE),FRAGEN!$B$57,\"leer\")","v":"leer"},null,{"$f":"AUSWERTUNG_S!B56","v":{"$error":"#DIV/0!"}},null,{"$f":"AUSWERTUNG_H!B56","v":{"$error":"#DIV/0!"}},null,{"$f":"AUSWERTUNG_L!B56","v":{"$error":"#DIV/0!"}},null,null,{"$error":"#DIV/0!"},null,null,{"$error":"#DIV/0!"},null,null,{"$error":"#DIV/0!"}]
[42,{"$f":"IF(OR(FRAGEN!$D$56=TRUE,FRAGEN!$D$58=TRUE),FRAGEN!$B$58,\"leer\")","v":"leer"},null,{"$f":"AUSWERTUNG_S!B57","v":{"$error":"#DIV/0!"}},null,{"$f":"AUSWERTUNG_H!B57","v":{"$error":"#DIV/0!"}},null,{"$f":"AUSWERTUNG_L!B57","v":{"$error":"#DIV/0!"}},null,null,{"$error":"#DIV/0!"},null,null,{"$error":"#DIV/0!"},null,null,{"$error":"#DIV/0!"}]
[43,{"$f":"IF(OR(FRAGEN!$D$56=TRUE,FRAGEN!$D$59=TRUE),FRAGEN!$B$59,\"leer\")","v":"leer"},null,{"$f":"AUSWERTUNG_S!B58","v":{"$error":"#DIV/0!"}},null,{"$f":"AUSWERTUNG_H!B58","v":{"$error":"#DIV/0!"}},null,{"$f":"AUSWERTUNG_L!B58","v":{"$error":"#DIV/0!"}},null,null,{"$error":"#DIV/0!"},null,null,{"$error":"#DIV/0!"},null,null,{"$error":"#DIV/0!"}]
[44,{"$f":"IF(OR(FRAGEN!$D$56=TRUE,FRAGEN!$D$60=TRUE),FRAGEN!$B$60,\"leer\")","v":"leer"},null,{"$f":"AUSWERTUNG_S!B59","v":{"$error":"#DIV/0!"}},null,{"$f":"AUSWERTUNG_H!B59","v":{"$error":"#DIV/0!"}},null,{"$f":"AUSWERTUNG_L!B59","v":{"$error":"#DIV/0!"}},null,null,{"$error":"#DIV/0!"},null,null,{"$error":"#DIV/0!"},null,null,{"$error":"#DIV/0!"}]
[45]
[]
[]
[null,null,null,null,{"$f":"AUSWERTUNG_S!D63","v":{"$error":"#DIV/0!"}},null,{"$f":"AUSWERTUNG_H!D63","v":{"$error":"#DIV/0!"}},null,{"$f":"AUSWERTUNG_L!D63","v":{"$error":"#DIV/0!"}},null,null,{"$error":"#DIV/0!"},null,null,{"$error":"#DIV/0!"},null,null,{"$error":"#DIV/0!"}]
[10,{"$f":"IF(OR(FRAGEN!$D$64=TRUE,FRAGEN!$D$65=TRUE),FRAGEN!$B$65,\"leer\")","v":"leer"},null,{"$f":"AUSWERTUNG_S!B64","v":{"$error":"#DIV/0!"}},null,{"$f":"AUSWERTUNG_H!B64","v":{"$error":"#DIV/0!"}},null,{"$f":"AUSWERTUNG_L!B64","v":{"$error":"#DIV/0!"}},null,null,{"$error":"#DIV/0!"},null,null,{"$error":"#DIV/0!"},null,null,{"$error":"#DIV/0!"}]
[46,{"$f":"IF(OR(FRAGEN!$D$64=TRUE,FRAGEN!$D$66=TRUE),FRAGEN!$B$66,\"leer\")","v":"leer"},null,{"$f":"AUSWERTUNG_S!B65","v":{"$error":"#DIV/0!"}},null,{"$f":"AUSWERTUNG_H!B65","v":{"$error":"#DIV/0!"}},null,{"$f":"AUSWERTUNG_L!B65","v":{"$error":"#DIV/0!"}},null,null,{"$error":"#DIV/0!"},null,null,{"$error":"#DIV/0!"},null,null,{"$error":"#DIV/0!"}]
[47,{"$f":"IF(OR(FRAGEN!$D$64=TRUE,FRAGEN!$D$67=TRUE),FRAGEN!$B$67,\"leer\")","v":"leer"},null,{"$f":"AUSWERTUNG_S!B66","v":{"$error":"#DIV/0!"}},null,{"$f":"AUSWERTUNG_H!B66","v":{"$error":"#DIV/0!"}},null,{"$f":"AUSWERTUNG_L!B66","v":{"$error":"#DIV/0!"}},null,null,{"$error":"#DIV/0!"},null,null,{"$error":"#DIV/0!"},null,null,{"$error":"#DIV/0!"}]
[48]
[null,null,null,null,{"$f":"AUSWERTUNG_S!D68","v":{"$error":"#DIV/0!"}},null,{"$f":"AUSWERTUNG_H!D68","v":{"$error":"#DIV/0!"}},null,{"$f":"AUSWERTUNG_L!D68","v":{"$error":"#DIV/0!"}},null,null,{"$f":"ABS(E70-G70)","v":{"$error":"#DIV/0!"}},null,null,{"$f":"ABS(E70-I70)","v":{"$error":"#DIV/0!"}},null,null,{"$f":"ABS(G70-I70)","v":{"$error":"#DIV/0!"}}]
[11,{"$f":"IF(OR(FRAGEN!$D$69=TRUE,FRAGEN!$D$70=TRUE),FRAGEN!$B$70,\"leer\")","v":"leer"},null,{"$f":"AUSWERTUNG_S!B69","v":{"$error":"#DIV/0!"}},null,{"$f":"AUSWERTUNG_H!B69","v":{"$error":"#DIV/0!"}},null,{"$f":"AUSWERTUNG_L!B69","v":{"$error":"#DIV/0!"}},null,null,{"$f":"ABS(D71-F71)","v":{"$error":"#DIV/0!"}},null,null,{"$f":"ABS(D71-H71)","v":{"$error":"#DIV/0!"}},null,null,{"$f":"ABS(F71-H71)","v":{"$error":"#DIV/0!"}}]
[49,{"$f":"IF(OR(FRAGEN!$D$69=TRUE,FRAGEN!$D$71=TRUE),FRAGEN!$B$71,\"leer\")","v":"leer"},null,{"$f":"AUSWERTUNG_S!B70","v":{"$error":"#DIV/0!"}},null,{"$f":"AUSWERTUNG_H!B70","v":{"$error":"#DIV/0!"}},null,{"$f":"AUSWERTUNG_L!B70","v":{"$error":"#DIV/0!"}},null,null,{"$error":"#DIV/0!"},null,null,{"$error":"#DIV/0!"},null,null,{"$error":"#DIV/0!"}]
[50,{"$f":"IF(OR(FRAGEN!$D$69=TRUE,FRAGEN!$D$72=TRUE),FRAGEN!$B$72,\"leer\")","v":"leer"},null,{"$f":"AUSWERTUNG_S!B71","v":{"$error":"#DIV/0!"}},null,{"$f":"AUSWERTUNG_H!B71","v":{"$error":"#DIV/0!"}},null,{"$f":"AUSWERTUNG_L!B71","v":{"$error":"#DIV/0!"}},null,null,{"$error":"#DIV/0!"},null,null,{"$error":"#DIV/0!"},null,null,{"$error":"#DIV/0!"}]
[51,{"$f":"IF(OR(FRAGEN!$D$69=TRUE,FRAGEN!$D$73=TRUE),FRAGEN!$B$73,\"leer\")","v":"leer"},null,{"$f":"AUSWERTUNG_S!B72","v":{"$error":"#DIV/0!"}},null,{"$f":"AUSWERTUNG_H!B72","v":{"$error":"#DIV/0!"}},null,{"$f":"AUSWERTUNG_L!B72","v":{"$error":"#DIV/0!"}},null,null,{"$error":"#DIV/0!"},null,null,{"$error":"#DIV/0!"},null,null,{"$error":"#DIV/0!"}]
[52,null,null,null,{"$f":"AUSWERTUNG_S!D73","v":{"$error":"#DIV/0!"}},null,{"$f":"AUSWERTUNG_H!D73","v":{"$error":"#DIV/0!"}},null,{"$f":"AUSWERTUNG_L!D73","v":{"$error":"#DIV/0!"}},null,null,{"$error":"#DIV/0!"},null,null,{"$error":"#DIV/0!"},null,null,{"$error":"#DIV/0!"}]
[12,{"$f":"IF(OR(FRAGEN!$D$74=TRUE,FRAGEN!$D$75=TRUE),FRAGEN!$B$75,\"leer\")","v":"leer"},null,{"$f":"AUSWERTUNG_S!B74","v":{"$error":"#DIV/0!"}},null,{"$f":"AUSWERTUNG_H!B74","v":{"$error":"#DIV/0!"}},null,{"$f":"AUSWERTUNG_L!B74","v":{"$error":"#DIV/0!"}},null,null,{"$error":"#DIV/0!"},null,null,{"$error":"#DIV/0!"},null,null,{"$error":"#DIV/0!"}]
[53,{"$f":"IF(OR(FRAGEN!$D$74=TRUE,FRAGEN!$D$76=TRUE),FRAGEN!$B$76,\"leer\")","v":"leer"},null,{"$f":"AUSWERTUNG_S!B75","v":{"$error":"#DIV/0!"}},null,{"$f":"AUSWERTUNG_H!B75","v":{"$error":"#DIV/0!"}},null,{"$f":"AUSWERTUNG_L!B75","v":{"$error":"#DIV/0!"}},null,null,{"$error":"#DIV/0!"},null,null,{"$error":"#DIV/0!"},null,null,{"$error":"#DIV/0!"}]
[54,{"$f":"IF(OR(FRAGEN!$D$74=TRUE,FRAGEN!$D$77=TRUE),FRAGEN!$B$77,\"leer\")","v":"leer"},null,{"$f":"AUSWERTUNG_S!B76","v":{"$error":"#DIV/0!"}},null,{"$f":"AUSWERTUNG_H!B76","v":{"$error":"#DIV/0!"}},null,{"$f":"AUSWERTUNG_L!B76","v":{"$error":"#DIV/0!"}},null,null,{"$error":"#DIV/0!"},null,null,{"$error":"#DIV/0!"},null,null,{"$error":"#DIV/0!"}]
[55,{"$f":"IF(OR(FRAGEN!$D$74=TRUE,FRAGEN!$D$78=TRUE),FRAGEN!$B$78,\"leer\")","v":"leer"},null,{"$f":"AUSWERTUNG_S!B77","v":{"$error":"#DIV/0!"}},null,{"$f":"AUSWERTUNG_H!B77","v":{"$error":"#DIV/0!"}},null,{"$f":"AUSWERTUNG_L!B77","v":{"$error":"#DIV/0!"}},null,null,{"$error":"#DIV/0!"},null,null,{"$error":"#DIV/0!"},null,null,{"$error":"#DIV/0!"}]
[56,{"$f":"IF(OR(FRAGEN!$D$74=TRUE,FRAGEN!$D$79=TRUE),FRAGEN!$B$79,\"leer\")","v":"leer"},null,{"$f":"AUSWERTUNG_S!B78","v":{"$error":"#DIV/0!"}},null,{"$f":"AUSWERTUNG_H!B78","v":{"$error":"#DIV/0!"}},null,{"$f":"AUSWERTUNG_L!B78","v":{"$error":"#DIV/0!"}},null,null,{"$error":"#DIV/0!"},null,null,{"$error":"#DIV/0!"},null,null,{"$error":"#DIV/0!"}]
[57]
[13,null,null,null,{"$f":"AUSWERTUNG_S!D80","v":{"$error":"#DIV/0!"}},null,{"$f":"AUSWERTUNG_H!D80","v":{"$error":"#DIV/0!"}},null,{"$f":"AUSWERTUNG_L!D80","v":{"$error":"#DIV/0!"}},null,null,{"$error":"#DIV/0!"},null,null,{"$error":"#DIV/0!"},null,null,{"$error":"#DIV/0!"}]
[null,{"$f":"IF(OR(FRAGEN!$D$81=TRUE,FRAGEN!$D$82=TRUE),FRAGEN!$B$82,\"leer\")","v":"leer"},null,{"$f":"AUSWERTUNG_S!B81","v":{"$error":"#DIV/0!"}},null,{"$f":"AUSWERTUNG_H!B81","v":{"$error":"#DIV/0!"}},null,{"$f":"AUSWERTUNG_L!B81","v":{"$error":"#DIV/0!"}},null,null,{"$error":"#DIV/0!"},null,null,{"$error":"#DIV/0!"},null,null,{"$error":"#DIV/0!"}]
[58,{"$f":"IF(OR(FRAGEN!$D$81=TRUE,FRAGEN!$D$83=TRUE),FRAGEN!$B$83,\"leer\")","v":"leer"},null,{"$f":"AUSWERTUNG_S!B82","v":{"$error":"#DIV/0!"}},null,{"$f":"AUSWERTUNG_H!B82","v":{"$error":"#DIV/0!"}},null,{"$f":"AUSWERTUNG_L!B82","v":{"$error":"#DIV/0!"}},null,null,{"$error":"#DIV/0!"},null,null,{"$error":"#DIV/0!"},null,null,{"$error":"#DIV/0!"}]
[59,{"$f":"IF(OR(FRAGEN!$D$81=TRUE,FRAGEN!$D$84=TRUE),FRAGEN!$B$84,\"leer\")","v":"leer"},null,{"$f":"AUSWERTUNG_S!B83","v":{"$error":"#DIV/0!"}},null,{"$f":"AUSWERTUNG_H!B83","v":{"$error":"#DIV/0!"}},null,{"$f":"AUSWERTUNG_L!B83","v":{"$error":"#DIV/0!"}},null,null,{"$error":"#DIV/0!"},null,null,{"$error":"#DIV/0!"},null,null,{"$error":"#DIV/0!"}]
[60,{"$f":"IF(OR(FRAGEN!$D$81=TRUE,FRAGEN!$D$85=TRUE),FRAGEN!$B$85,\"leer\")","v":"leer"},null,{"$f":"AUSWERTUNG_S!B84","v":{"$error":"#DIV/0!"}},null,{"$f":"AUSWERTUNG_H!B84","v":{"$error":"#DIV/0!"}},null,{"$f":"AUSWERTUNG_L!B84","v":{"$error":"#DIV/0!"}},null,null,{"$error":"#DIV/0!"},null,null,{"$error":"#DIV/0!"},null,null,{"$error":"#DIV/0!"}]
[61]
[]
[]
[14,null,null,null,{"$f":"AUSWERTUNG_S!D88","v":{"$error":"#DIV/0!"}},null,{"$f":"AUSWERTUNG_H!D88","v":{"$error":"#DIV/0!"}},null,{"$f":"AUSWERTUNG_L!D88","v":{"$error":"#DIV/0!"}},null,null,{"$error":"#DIV/0!"},null,null,{"$error":"#DIV/0!"},null,null,{"$error":"#DIV/0!"}]
[62,{"$f":"IF(OR(FRAGEN!$D$88=TRUE,FRAGEN!$D$89=TRUE),FRAGEN!$B$89,\"leer\")","v":"leer"},null,{"$f":"AUSWERTUNG_S!B89","v":{"$error":"#DIV/0!"}},null,{"$f":"AUSWERTUNG_H!B89","v":{"$error":"#DIV/0!"}},null,{"$f":"AUSWERTUNG_L!B89","v":{"$error":"#DIV/0!"}},null,null,{"$error":"#DIV/0!"},null,null,{"$error":"#DIV/0!"},null,null,{"$error":"#DIV/0!"}]
[63,{"$f":"IF(OR(FRAGEN!$D$88=TRUE,FRAGEN!$D$90=TRUE),FRAGEN!$B$90,\"leer\")","v":"leer"},null,{"$f":"AUSWERTUNG_S!B90","v":{"$error":"#DIV/0!"}},null,{"$f":"AUSWERTUNG_H!B90","v":{"$error":"#DIV/0!"}},null,{"$f":"AUSWERTUNG_L!B90","v":{"$error":"#DIV/0!"}},null,null,{"$error":"#DIV/0!"},null,null,{"$error":"#DIV/0!"},null,null,{"$error":"#DIV/0!"}]
[64,{"$f":"IF(OR(FRAGEN!$D$88=TRUE,FRAGEN!$D$91=TRUE),FRAGEN!$B$91,\"leer\")","v":"leer"},null,{"$f":"AUSWERTUNG_S!B91","v":{"$error":"#DIV/0!"}},null,{"$f":"AUSWERTUNG_H!B91","v":{"$error":"#DIV/0!"}},null,{"$f":"AUSWERTUNG_L!B91","v":{"$error":"#DIV/0!"}},null,null,{"$error":"#DIV/0!"},null,null,{"$error":"#DIV/0!"},null,null,{"$error":"#DIV/0!"}]
[65,{"$f":"IF(OR(FRAGEN!$D$88=TRUE,FRAGEN!$D$92=TRUE),FRAGEN!$B$92,\"leer\")","v":"leer"},null,{"$f":"AUSWERTUNG_S!B92","v":{"$error":"#DIV/0!"}},null,{"$f":"AUSWERTUNG_H!B92","v":{"$error":"#DIV/0!"}},null,{"$f":"AUSWERTUNG_L!B92","v":{"$error":"#DIV/0!"}},null,null,{"$error":"#DIV/0!"},null,null,{"$error":"#DIV/0!"},null,null,{"$error":"#DIV/0!"}]
[66,{"$f":"IF(OR(FRAGEN!$D$88=TRUE,FRAGEN!$D$93=TRUE),FRAGEN!$B$93,\"leer\")","v":"leer"},null,{"$f":"AUSWERTUNG_S!B93","v":{"$error":"#DIV/0!"}},null,{"$f":"AUSWERTUNG_H!B93","v":{"$error":"#DIV/0!"}},null,{"$f":"AUSWERTUNG_L!B93","v":{"$error":"#DIV/0!"}},null,null,{"$error":"#DIV/0!"},null,null,{"$error":"#DIV/0!"},null,null,{"$error":"#DIV/0!"}]
[67,{"$f":"IF(OR(FRAGEN!$D$88=TRUE,FRAGEN!$D$94=TRUE),FRAGEN!$B$94,\"leer\")","v":"leer"},null,{"$f":"AUSWERTUNG_S!B94","v":{"$error":"#DIV/0!"}},null,{"$f":"AUSWERTUNG_H!B94","v":{"$error":"#DIV/0!"}},null,{"$f":"AUSWERTUNG_L!B94","v":{"$error":"#DIV/0!"}},null,null,{"$error":"#DIV/0!"},null,null,{"$error":"#DIV/0!"},null,null,{"$error":"#DIV/0!"}]
[68,{"$f":"IF(OR(FRAGEN!$D$88=TRUE,FRAGEN!$D$95=TRUE),FRAGEN!$B$95,\"leer\")","v":"leer"},null,{"$f":"AUSWERTUNG_S!B95","v":{"$error":"#DIV/0!"}},null,{"$f":"AUSWERTUNG_H!B95","v":{"$error":"#DIV/0!"}},null,{"$f":"AUSWERTUNG_L!B95","v":{"$error":"#DIV/0!"}},null,null,{"$error":"#DIV/0!"},null,null,{"$error":"#DIV/0!"},null,null,{"$error":"#DIV/0!"}]
[69,{"$f":"IF(OR(FRAGEN!$D$88=TRUE,FRAGEN!$D$96=TRUE),FRAGEN!$B$96,\"leer\")","v":"leer"},null,{"$f":"AUSWERTUNG_S!B96","v":{"$error":"#DIV/0!"}},null,{"$f":"AUSWERTUNG_H!B96","v":{"$error":"#DIV/0!"}},null,{"$f":"AUSWERTUNG_L!B96","v":{"$error":"#DIV/0!"}},null,null,{"$error":"#DIV/0!"},null,null,{"$error":"#DIV/0!"},null,null,{"$error":"#DIV/0!"}]
[70,{"$f":"IF(OR(FRAGEN!$D$88=TRUE,FRAGEN!$D$97=TRUE),FRAGEN!$B$97,\"leer\")","v":"leer"},null,{"$f":"AUSWERTUNG_S!B97","v":{"$error":"#DIV/0!"}},null,{"$f":"AUSWERTUNG_H!B97","v":{"$error":"#DIV/0!"}},null,{"$f":"AUSWERTUNG_L!B97","v":{"$error":"#DIV/0!"}},null,null,{"$error":"#DIV/0!"},null,null,{"$error":"#DIV/0!"},null,null,{"$error":"#DIV/0!"}]
[71,{"$f":"IF(OR(FRAGEN!$D$88=TRUE,FRAGEN!$D$98=TRUE),FRAGEN!$B$98,\"leer\")","v":"leer"},null,{"$f":"AUSWERTUNG_S!B98","v":{"$error":"#DIV/0!"}},null,{"$f":"AUSWERTUNG_H!B98","v":{"$error":"#DIV/0!"}},null,{"$f":"AUSWERTUNG_L!B98","v":{"$error":"#DIV/0!"}},null,null,{"$error":"#DIV/0!"},null,null,{"$error":"#DIV/0!"},null,null,{"$error":"#DIV/0!"}]
[72,{"$f":"IF(OR(FRAGEN!$D$88=TRUE,FRAGEN!$D$99=TRUE),FRAGEN!$B$99,\"leer\")","v":"leer"},null,{"$f":"AUSWERTUNG_S!B99","v":{"$error":"#DIV/0!"}},null,{"$f":"AUSWERTUNG_H!B99","v":{"$error":"#DIV/0!"}},null,{"$f":"AUSWERTUNG_L!B99","v":{"$error":"#DIV/0!"}},null,null,{"$error":"#DIV/0!"},null,null,{"$error":"#DIV/0!"},null,null,{"$error":"#DIV/0!"}]
[73,{"$f":"IF(OR(FRAGEN!$D$88=TRUE,FRAGEN!$D$100=TRUE),FRAGEN!$B$100,\"leer\")","v":"leer"},null,{"$f":"AUSWERTUNG_S!B100","v":{"$error":"#DIV/0!"}},null,{"$f":"AUSWERTUNG_H!B100","v":{"$error":"#DIV/0!"}},null,{"$f":"AUSWERTUNG_L!B100","v":{"$error":"#DIV/0!"}},null,null,{"$error":"#DIV/0!"},null,null,{"$error":"#DIV/0!"},null,null,{"$error":"#DIV/0!"}]
[74,{"$f":"IF(OR(FRAGEN!$D$88=TRUE,FRAGEN!$D$101=TRUE),FRAGEN!$B$101,\"leer\")","v":"leer"},null,{"$f":"AUSWERTUNG_S!B101","v":{"$error":"#DIV/0!"}},null,{"$f":"AUSWERTUNG_H!B101","v":{"$error":"#DIV/0!"}},null,{"$f":"AUSWERTUNG_L!B101","v":{"$error":"#DIV/0!"}},null,null,{"$error":"#DIV/0!"},null,null,{"$error":"#DIV/0!"},null,null,{"$error":"#DIV/0!"}]
[75,{"$f":"IF(OR(FRAGEN!$D$88=TRUE,FRAGEN!$D$102=TRUE),FRAGEN!$B$102,\"leer\")","v":"leer"},null,{"$f":"AUSWERTUNG_S!B102","v":{"$error":"#DIV/0!"}},null,{"$f":"AUSWERTUNG_H!B102","v":{"$error":"#DIV/0!"}},null,{"$f":"AUSWERTUNG_L!B102","v":{"$error":"#DIV/0!"}},null,null,{"$error":"#DIV/0!"},null,null,{"$error":"#DIV/0!"},null,null,{"$error":"#DIV/0!"}]
[76,{"$f":"IF(OR(FRAGEN!$D$88=TRUE,FRAGEN!$D$103=TRUE),FRAGEN!$B$103,\"leer\")","v":"leer"},null,{"$f":"AUSWERTUNG_S!B103","v":{"$error":"#DIV/0!"}},null,{"$f":"AUSWERTUNG_H!B103","v":{"$error":"#DIV/0!"}},null,{"$f":"AUSWERTUNG_L!B103","v":{"$error":"#DIV/0!"}},null,null,{"$error":"#DIV/0!"},null,null,{"$error":"#DIV/0!"},null,null,{"$error":"#DIV/0!"}]
[77,{"$f":"IF(OR(FRAGEN!$D$88=TRUE,FRAGEN!$D$104=TRUE),FRAGEN!$B$104,\"leer\")","v":"leer"},null,{"$f":"AUSWERTUNG_S!B104","v":{"$error":"#DIV/0!"}},null,{"$f":"AUSWERTUNG_H!B104","v":{"$error":"#DIV/0!"}},null,{"$f":"AUSWERTUNG_L!B104","v":{"$error":"#DIV/0!"}},null,null,{"$error":"#DIV/0!"},null,null,{"$error":"#DIV/0!"},null,null,{"$error":"#DIV/0!"}]
[78,{"$f":"IF(OR(FRAGEN!$D$88=TRUE,FRAGEN!$D$105=TRUE),FRAGEN!$B$105,\"leer\")","v":"leer"},null,{"$f":"AUSWERTUNG_S!B105","v":{"$error":"#DIV/0!"}},null,{"$f":"AUSWERTUNG_H!B105","v":{"$error":"#DIV/0!"}},null,{"$f":"AUSWERTUNG_L!B105","v":{"$error":"#DIV/0!"}},null,null,{"$error":"#DIV/0!"},null,null,{"$error":"#DIV/0!"},null,null,{"$error":"#DIV/0!"}]
[79,{"$f":"IF(OR(FRAGEN!$D$88=TRUE,FRAGEN!$D$106=TRUE),FRAGEN!$B$106,\"leer\")","v":"leer"},null,{"$f":"AUSWERTUNG_S!B106","v":{"$error":"#DIV/0!"}},null,{"$f":"AUSWERTUNG_H!B106","v":{"$error":"#DIV/0!"}},null,{"$f":"AUSWERTUNG_L!B106","v":{"$error":"#DIV/0!"}},null,null,{"$error":"#DIV/0!"},null,null,{"$error":"#DIV/0!"},null,null,{"$error":"#DIV/0!"}]
[80,{"$f":"IF(OR(FRAGEN!$D$88=TRUE,FRAGEN!$D$107=TRUE),FRAGEN!$B$107,\"leer\")","v":"leer"},null,{"$f":"AUSWERTUNG_S!B107","v":{"$error":"#DIV/0!"}},null,{"$f":"AUSWERTUNG_H!B107","v":{"$error":"#DIV/0!"}},null,{"$f":"AUSWERTUNG_L!B107","v":{"$error":"#DIV/0!"}},null,null,{"$error":"#DIV/0!"},null,null,{"$error":"#DIV/0!"},null,null,{"$error":"#DIV/0!"}]
[81,{"$f":"IF(OR(FRAGEN!$D$88=TRUE,FRAGEN!$D$108=TRUE),FRAGEN!$B$108,\"leer\")","v":"leer"},null,{"$f":"AUSWERTUNG_S!B108","v":{"$error":"#DIV/0!"}},null,{"$f":"AUSWERTUNG_H!B108","v":{"$error":"#DIV/0!"}},null,{"$f":"AUSWERTUNG_L!B108","v":{"$error":"#DIV/0!"}},null,null,{"$error":"#DIV/0!"},null,null,{"$error":"#DIV/0!"},null,null,{"$error":"#DIV/0!"}]